Workbook

Sheet Start Here - Data Entry
H2: Step 1 - Build your school
B3: School Name | D3: Legacy Options HS | H3: Enter student and school demographics in the white cells.
H4: It's important to be as thorough as possible to ensure Student
B5: School Type | E5: 5 | H5: Based Budget (SBB) Revenue is calculated appropriately.
B6: (Scroll in Drop Down Box) | H6: Note that ECE funding is provided separately by the Early Ed Dept.
H7: ECE funding is NOT included in this SBB planning template.
B8: Multiple Pathways Center | E8: no | H8: - Enter in White Cells Only -
B9: (Select From Down Box)
G10: 2015-16 | H10: 2016-17 | I10: 2017-18 | J10: 2018-19 | K10: 2019-20
F11: YEAR 0 | G11: YEAR 1 | H11: YEAR 2 | I11: YEAR 3 | J11: YEAR 4 | K11: YEAR 5
C13: Salary Growth | F13: 0 | G13: 0 | H13: 0 | I13: 0 | J13: 0 | K13: 0
C15: Free and Reduced Lunch Percentage | F15: NA | G15: 0.95 | H15: 0.95 | I15: 0.95 | J15: 0.95 | K15: 0.95
C17: Spanish Speaking Students | F17: NA | G17: 20 | H17: 40 | I17: 60 | J17: 80 | K17: 80
C18: If a 6-12 school, # of grades 6-8 | F18: NA | G18: =G17 -> 20 | H18: =H17 -> 40 | I18: =I17 -> 60 | J18: =J17 -> 80 | K18: =K17 -> 80
C19: If a 6-12 school, # of grades 9-12 | F19: NA | G19: 0 | H19: 0 | I19: 0 | J19: 0 | K19: 0
C20: ACCESS 1, 2 and 3 Students | F20: NA | G20: 5 | H20: 10 | I20: 15 | J20: 20 | K20: 20
C22: ECE Enrollment | F22: NA | G22: 0 | H22: 0 | I22: 0 | J22: 0 | K22: 0
C23: Grades K - 5 Enrollment | F23: NA | G23: 0 | H23: 0 | I23: 0 | J23: 0 | K23: 0
C24: Grades 6 - 8 Enrollment | F24: NA | G24: 0 | H24: 0 | I24: 0 | J24: 0 | K24: 0
C25: Grades 9 - 12 Enrollment | F25: NA | G25: 60 | H25: 120 | I25: 180 | J25: 240 | K25: 240
C26: Total Enrollment | F26: NA | G26: =SUM(G22:G25) -> 60 | H26: =SUM(H22:H25) -> 120 | I26: 180 | J26: 240 | K26: 240
C28: Number of Center Programs | F28: NA | G28: 0 | H28: 0 | I28: 0 | J28: 0 | K28: 0
C30: GT Enrollment (input only grades K-8) | F30: NA | G30: 9 | H30: 18 | I30: 27 | J30: 36 | K30: 36
C32: Mild Moderate Enrollment | F32: NA | G32: 9 | H32: 18 | I32: 27 | J32: 36 | K32: 36
C34: ECE Slots/Classrooms | F34: NA | G34: 0 | H34: 0 | I34: 0 | J34: 0 | K34: 0
C35: Kinder Slots/Classrooms | F35: NA | G35: 0 | H35: 0 | I35: 0 | J35: 0 | K35: 0
C168: yes
C169: no

Sheet Step 2 - Review Revenue
B1: ='Start Here - Data Entry '!D3&" - REVENUE" -> Legacy Options HS - REVENUE | I1: Step 2 - Review Your Revenue
I2: Review the SBB revenue output in the green cells.
I3: Add any additional funding in lines 9-10.
G4: - Enter in White Cells Only- | I4: It's important to spread additional revenue appropriately across
I5: plan years to ensure funding gaps are accurately identified
G7: NON-SBB FUNDING | J7: 2015-16 | K7: 2016-17 | L7: 2017-18 | M7: 2018-19 | N7: 2019-20
I8: YEAR 0 | J8: YEAR 1 | K8: YEAR 2 | L8: YEAR 3 | M8: YEAR 4 | N8: YEAR 5
B9: Mill Levy Support - Intensive Pathway School Projection | J9: 361902 | K9: 417241 | L9: 590221 | M9: 460965 | N9: 460965
B10: District Start-up Funding | I10: 0 | J10: 200000 | K10: 150000 | L10: 0 | M10: 0 | N10: 0
B11: Start Up Funding Sources | I11: =SUM(I10:I10) -> 0 | J11: =SUM(J9:J10) -> 561902 | K11: =SUM(K9:K10) -> 567241 | L11: =SUM(L9:L10) -> 590221 | M11: =SUM(M9:M10) -> 460965 | N11: =SUM(N9:N10) -> 460965
B13: GENERAL FUND
B14: Funding Source | F14: Per pupil calculation | G14: Use of Funding | I14: YEAR 0 | J14: YEAR 1 | K14: YEAR 2 | L14: YEAR 3 | M14: YEAR 4 | N14: YEAR 5
B15: Per Pupil Base Funding (Total of lines 16-18) | F15: =F16+F18 -> 4076 | I15: =SUM(I16:I18) -> 0 | J15: 244560 | K15: 489120 | L15: 733680 | M15: 978240 | N15: 978240
B16: SBB Base Allocation (K-12) | F16: 4024 | G16: Discretionary | I16: 0 | J16: =$F$16*('Start Here - Data Entry '!G26-'Start Here - Data Entry '!G22) -> 241440 | K16: =$F$16*('Start Here - Data Entry '!H26-'Start Here - Data Entry '!H22) -> 482880 | L16: =$F$16*('Start Here - Data Entry '!I26-'Start Here - Data Entry '!I22) -> 724320 | M16: =$F$16*('Start Here - Data Entry '!J26-'Start Here - Data Entry '!J22) -> 965760 | N16: =$F$16*('Start Here - Data Entry '!K26-'Start Here - Data Entry '!K22) -> 965760
B17: Supplemental Funding for Center Programs (K-12) | F17: 7480 | G17: Discretionary | I17: 0 | J17: =$F$17*'Start Here - Data Entry '!G28 -> 0 | K17: =$F$17*'Start Here - Data Entry '!H28 -> 0 | L17: =$F$17*'Start Here - Data Entry '!I28 -> 0 | M17: =$F$17*'Start Here - Data Entry '!J28 -> 0 | N17: =$F$17*'Start Here - Data Entry '!K28 -> 0
B18: Guest Teacher Allocation (ECE-12) | F18: ='Calculations - HIDE'!C21 -> 52 | G18: Guest teacher | I18: 0 | J18: =$F$18*'Start Here - Data Entry '!G26 -> 3120 | K18: =$F$18*'Start Here - Data Entry '!H26 -> 6240 | L18: =$F$18*'Start Here - Data Entry '!I26 -> 9360 | M18: =$F$18*'Start Here - Data Entry '!J26 -> 12480 | N18: =$F$18*'Start Here - Data Entry '!K26 -> 12480
B19: Free and Reduced Lunch Supp Funds (K-12) | F19: =VLOOKUP('Start Here - Data Entry '!$E$5,'Calculations - HIDE'!A25:C29,3,FALSE) -> 503 | G19: Discretionary | I19: 0 | J19: =$F$19*'Start Here - Data Entry '!G15*('Start Here - Data Entry '!G26-'Start Here - Data Entry '!G22) -> 28671 | K19: =$F$19*'Start Here - Data Entry '!H15*('Start Here - Data Entry '!H26-'Start Here - Data Entry '!H22) -> 57342 | L19: =$F$19*'Start Here - Data Entry '!I15*('Start Here - Data Entry '!I26-'Start Here - Data Entry '!I22) -> 86013 | M19: =$F$19*'Start Here - Data Entry '!J15*('Start Here - Data Entry '!J26-'Start Here - Data Entry '!J22) -> 114684 | N19: =$F$19*'Start Here - Data Entry '!K15*('Start Here - Data Entry '!K26-'Start Here - Data Entry '!K22) -> 114684
B20: Targeted Interventions | G20: See Budget Guidance Manual | I20: 0 | J20: 0 | K20: 0 | L20: 0 | M20: 0 | N20: 0
B21: MPC Subsidy | F21: 2791 | G21: Discretionary | I21: =IF('Start Here - Data Entry '!$E$8="no",0,'Calculations - HIDE'!O243) -> 0 | J21: =IF('Start Here - Data Entry '!$E$8="no",0,'Calculations - HIDE'!K243) -> 0 | K21: =IF('Start Here - Data Entry '!$E$8="no",0,'Calculations - HIDE'!Q243) -> 0 | L21: =IF('Start Here - Data Entry '!$E$8="no",0,'Calculations - HIDE'!W243) -> 0 | M21: =IF('Start Here - Data Entry '!$E$8="no",0,'Calculations - HIDE'!AC243) -> 0 | N21: =IF('Start Here - Data Entry '!$E$8="no",0,'Calculations - HIDE'!AI243) -> 0
B22: Performance Incentive (K-12) | G22: See Budget Guidance Manual | I22: 0 | J22: 0 | K22: 0 | L22: 0 | M22: 0 | N22: 0
B23: GT Allocation (per identified GT student K-8) | F23: =".25 FTE & $"&'Calculations - HIDE'!C44&" per" -> .25 FTE & $120 per | G23: Gifted & Talented | I23: 0 | J23: =(0.25*'Step 3 - Staffing Tool'!$G$29)+(120*'Start Here - Data Entry '!G30) -> 17958.826 | K23: =(0.25*'Step 3 - Staffing Tool'!$G$29)+(120*'Start Here - Data Entry '!H30) -> 19038.826 | L23: =(0.25*'Step 3 - Staffing Tool'!$G$29)+(120*'Start Here - Data Entry '!I30) -> 20118.826 | M23: =(0.25*'Step 3 - Staffing Tool'!$G$29)+(120*'Start Here - Data Entry '!J30) -> 21198.826 | N23: =(0.25*'Step 3 - Staffing Tool'!$G$29)+(120*'Start Here - Data Entry '!K30) -> 21198.826
B24: ELA/Para | G24: See Budget Guidance Manual | I24: 0 | J24: =SUM('Calculations - HIDE'!$K50:$K55) -> 3507.84 | K24: 7016 | L24: =SUM('Calculations - HIDE'!$W50:$W55) -> 10523.52 | M24: =SUM('Calculations - HIDE'!$AC50:$AC55) -> 35078.4 | N24: 35078
B25: Student Based ELL Funds | F25: ='Calculations - HIDE'!C242 -> 400 | G25: Per Access 1, 2 and 3 | I25: 0 | J25: =$F$25*'Start Here - Data Entry '!G20 -> 2000 | K25: =$F$25*'Start Here - Data Entry '!H20 -> 4000 | L25: =$F$25*'Start Here - Data Entry '!I20 -> 6000 | M25: =$F$25*'Start Here - Data Entry '!J20 -> 8000 | N25: =$F$25*'Start Here - Data Entry '!K20 -> 8000
B26: TNLI/Zone School Allocation | G26: See Budget Guidance Manual | I26: 0 | J26: 0 | K26: 0 | L26: 0 | M26: 0 | N26: 0
B27: ARE Stipends (for SALs) (K-12) | F27: 4 | G27: Discretionary | I27: 0 | J27: =$F$27*('Start Here - Data Entry '!G26-'Start Here - Data Entry '!G22) -> 240 | K27: =$F$27*('Start Here - Data Entry '!H26-'Start Here - Data Entry '!H22) -> 480 | L27: =$F$27*('Start Here - Data Entry '!I26-'Start Here - Data Entry '!I22) -> 720 | M27: =$F$27*('Start Here - Data Entry '!J26-'Start Here - Data Entry '!J22) -> 960 | N27: =$F$27*('Start Here - Data Entry '!K26-'Start Here - Data Entry '!K22) -> 960
B28: Extended Learning Opportunity | G28: Discretionary | I28: 0 | J28: 0 | K28: 0 | L28: 0 | M28: 0 | N28: 0
B29: Negotiated Para (K-5) | F29: 15.66 | G29: Discretionary | I29: 0 | J29: =$F$29*'Start Here - Data Entry '!G23 -> 0 | K29: =$F$29*'Start Here - Data Entry '!H23 -> 0 | L29: =$F$29*'Start Here - Data Entry '!I23 -> 0 | M29: =$F$29*'Start Here - Data Entry '!J23 -> 0 | N29: =$F$29*'Start Here - Data Entry '!K23 -> 0
B30: GENERAL FUNDS | I30: =SUM(I16:I26) -> 0 | J30: 296697.666 | K30: 576516.826 | L30: 856335.346 | M30: 1157201.226 | N30: 1157200.826
B32: MILL LEVY ALLOCATIONS
B33: Student Literacy Development (1998 ML) (K-12) | F33: ='Calculations - HIDE'!C97 -> 69 | G33: Boost literacy, math & science | I33: 0 | J33: =$F$33*('Start Here - Data Entry '!G26-'Start Here - Data Entry '!G22) -> 4140 | K33: =$F$33*('Start Here - Data Entry '!H26-'Start Here - Data Entry '!H22) -> 8280 | L33: =$F$33*('Start Here - Data Entry '!I26-'Start Here - Data Entry '!I22) -> 12420 | M33: =$F$33*('Start Here - Data Entry '!J26-'Start Here - Data Entry '!J22) -> 16560 | N33: =$F$33*('Start Here - Data Entry '!K26-'Start Here - Data Entry '!K22) -> 16560
B34: Technology (1998 ML) (ECE-12) | F34: ='Calculations - HIDE'!C98 -> 22 | G34: Tech equip, software, repair, staff | I34: 0 | J34: =$F$34*'Start Here - Data Entry '!G26 -> 1320 | K34: =$F$34*'Start Here - Data Entry '!H26 -> 2640 | L34: =$F$34*'Start Here - Data Entry '!I26 -> 3960 | M34: =$F$34*'Start Here - Data Entry '!J26 -> 5280 | N34: =$F$34*'Start Here - Data Entry '!K26 -> 5280
B35: The Arts - Elementary (2003 ML) (K-8) | F35: ="FTE (see table) + $7 per" -> FTE (see table) + $7 per | G35: FTE, Supplies | I35: 0 | J35: =IF(OR('Start Here - Data Entry '!$E$5=1,'Start Here - Data Entry '!$E$5=2),(7*('Start Here - Data Entry '!G$26-'Start Here - Data Entry '!G$22))+VLOOKUP(('Start Here - Data Entry '!G$26-'Start Here - Data Entry '!G$22),'Arts Vlookup'!$A:$B,2,FALSE),0) -> 0 | K35: =IF(OR('Start Here - Data Entry '!$E$5=1,'Start Here - Data Entry '!$E$5=2),(7*('Start Here - Data Entry '!H$26-'Start Here - Data Entry '!H$22))+VLOOKUP(('Start Here - Data Entry '!H$26-'Start Here - Data Entry '!H$22),'Arts Vlookup'!$A:$B,2,FALSE),0) -> 0 | L35: =IF(OR('Start Here - Data Entry '!$E$5=1,'Start Here - Data Entry '!$E$5=2),(7*('Start Here - Data Entry '!I$26-'Start Here - Data Entry '!I$22))+VLOOKUP(('Start Here - Data Entry '!I$26-'Start Here - Data Entry '!I$22),'Arts Vlookup'!$A:$B,2,FALSE),0) -> 0 | M35: =IF(OR('Start Here - Data Entry '!$E$5=1,'Start Here - Data Entry '!$E$5=2),(7*('Start Here - Data Entry '!J$26-'Start Here - Data Entry '!J$22))+VLOOKUP(('Start Here - Data Entry '!J$26-'Start Here - Data Entry '!J$22),'Arts Vlookup'!$A:$B,2,FALSE),0) -> 0 | N35: =IF(OR('Start Here - Data Entry '!$E$5=1,'Start Here - Data Entry '!$E$5=2),(7*('Start Here - Data Entry '!K$26-'Start Here - Data Entry '!K$22))+VLOOKUP(('Start Here - Data Entry '!K$26-'Start Here - Data Entry '!K$22),'Arts Vlookup'!$A:$B,2,FALSE),0) -> 0
B36: Textbooks (2003 ML) (K-12) | F36: ='Calculations - HIDE'!C107 -> 10 | G36: Classroom textbooks/consumables | I36: 0 | J36: =$F$36*('Start Here - Data Entry '!G26-'Start Here - Data Entry '!G22) -> 600 | K36: =$F$36*('Start Here - Data Entry '!H26-'Start Here - Data Entry '!H22) -> 1200 | L36: =$F$36*('Start Here - Data Entry '!I26-'Start Here - Data Entry '!I22) -> 1800 | M36: =$F$36*('Start Here - Data Entry '!J26-'Start Here - Data Entry '!J22) -> 2400 | N36: =$F$36*('Start Here - Data Entry '!K26-'Start Here - Data Entry '!K22) -> 2400
B37: Library Books Centrally Managed | F37: ='Calculations - HIDE'!C108 -> 6 | G37: Library Books | I37: 0 | J37: =$F$37*'Start Here - Data Entry '!G26 -> 360 | K37: =$F$37*'Start Here - Data Entry '!H26 -> 720 | L37: =$F$37*'Start Here - Data Entry '!I26 -> 1080 | M37: =$F$37*'Start Here - Data Entry '!J26 -> 1440 | N37: =$F$37*'Start Here - Data Entry '!K26 -> 1440
B38: Technology (2012 ML) (ECE-12) | F38: 45 | G38: Tech equip, software, repair, staff | I38: 0 | J38: =$F$38*'Start Here - Data Entry '!G26 -> 2700 | K38: =$F$38*'Start Here - Data Entry '!H26 -> 5400 | L38: =$F$38*'Start Here - Data Entry '!I26 -> 8100 | M38: =$F$38*'Start Here - Data Entry '!J26 -> 10800 | N38: =$F$38*'Start Here - Data Entry '!K26 -> 10800
B39: PE/Engagement (2012 ML) (ECE-12) | F39: ($60 per or .5 FTE) + $5 per | G39: Greater of $60 per pupil or 0.5 FTE | I39: 0 | J39: =(5*'Start Here - Data Entry '!G26)+(IF('Start Here - Data Entry '!G26*60>0.5*'Step 3 - Staffing Tool'!$G$28,'Start Here - Data Entry '!G26*60,0.5*'Step 3 - Staffing Tool'!$G$28)) -> 27335.9 | K39: =(5*'Start Here - Data Entry '!H26)+(IF('Start Here - Data Entry '!H26*60>0.5*'Step 3 - Staffing Tool'!$G$28,'Start Here - Data Entry '!H26*60,0.5*'Step 3 - Staffing Tool'!$G$28)) -> 27635.9 | L39: =(5*'Start Here - Data Entry '!I26)+(IF('Start Here - Data Entry '!I26*60>0.5*'Step 3 - Staffing Tool'!$G$28,'Start Here - Data Entry '!I26*60,0.5*'Step 3 - Staffing Tool'!$G$28)) -> 27935.9 | M39: =(5*'Start Here - Data Entry '!J26)+(IF('Start Here - Data Entry '!J26*60>0.5*'Step 3 - Staffing Tool'!$G$28,'Start Here - Data Entry '!J26*60,0.5*'Step 3 - Staffing Tool'!$G$28)) -> 28235.9 | N39: =(5*'Start Here - Data Entry '!K26)+(IF('Start Here - Data Entry '!K26*60>0.5*'Step 3 - Staffing Tool'!$G$28,'Start Here - Data Entry '!K26*60,0.5*'Step 3 - Staffing Tool'!$G$28)) -> 28235.9
B40: The Arts - Secondary (2012 ML) (Grades 6-12) | F40: ($160 per or .5 FTE) + $7 per | G40: Greater of $160 per pupil or 0.5 FTE | I40: 0 | J40: =IF(OR('Start Here - Data Entry '!$E$5=3,'Start Here - Data Entry '!$E$5=4,'Start Here - Data Entry '!$E$5=5),(7*'Start Here - Data Entry '!G$26)+(IF('Start Here - Data Entry '!G$26*160>0.5*'Step 3 - Staffing Tool'!$G$28,'Start Here - Data Entry '!G$26*160,0.5*'Step 3 - Staffing Tool'!$G$28)),0) -> 27455.9 | K40: =IF(OR('Start Here - Data Entry '!$E$5=3,'Start Here - Data Entry '!$E$5=4,'Start Here - Data Entry '!$E$5=5),(7*'Start Here - Data Entry '!H$26)+(IF('Start Here - Data Entry '!H$26*160>0.5*'Step 3 - Staffing Tool'!$G$28,'Start Here - Data Entry '!H$26*160,0.5*'Step 3 - Staffing Tool'!$G$28)),0) -> 27875.9 | L40: =IF(OR('Start Here - Data Entry '!$E$5=3,'Start Here - Data Entry '!$E$5=4,'Start Here - Data Entry '!$E$5=5),(7*'Start Here - Data Entry '!I$26)+(IF('Start Here - Data Entry '!I$26*160>0.5*'Step 3 - Staffing Tool'!$G$28,'Start Here - Data Entry '!I$26*160,0.5*'Step 3 - Staffing Tool'!$G$28)),0) -> 30060 | M40: =IF(OR('Start Here - Data Entry '!$E$5=3,'Start Here - Data Entry '!$E$5=4,'Start Here - Data Entry '!$E$5=5),(7*'Start Here - Data Entry '!J$26)+(IF('Start Here - Data Entry '!J$26*160>0.5*'Step 3 - Staffing Tool'!$G$28,'Start Here - Data Entry '!J$26*160,0.5*'Step 3 - Staffing Tool'!$G$28)),0) -> 40080 | N40: =IF(OR('Start Here - Data Entry '!$E$5=3,'Start Here - Data Entry '!$E$5=4,'Start Here - Data Entry '!$E$5=5),(7*'Start Here - Data Entry '!K$26)+(IF('Start Here - Data Entry '!K$26*160>0.5*'Step 3 - Staffing Tool'!$G$28,'Start Here - Data Entry '!K$26*160,0.5*'Step 3 - Staffing Tool'!$G$28)),0) -> 40080
B41: Math Tutoring (2012 ML) | F41: Allocation based on SPF | G41: Target students below grade level math proficiency | I41: 0 | J41: 0 | K41: 0 | L41: 0 | M41: 0 | N41: 0
B42: 1998, 2003 & 2012 MILL LEVY FUNDS | I42: =SUM(I33:I41) -> 0 | J42: 63911.8 | K42: 73751.8 | L42: 85355.9 | M42: 104795.9 | N42: 104795.9
B44: STATE AND FEDERAL FUNDING SOURCES
B45: Title I (K-12) (per Free & Reduced Lunch population) | F45: $415/$365 | G45: Supplementary support for FRL students | I45: 0 | J45: =IF(AND('Start Here - Data Entry '!G15>=0.64,'Start Here - Data Entry '!G15<0.9),365*('Start Here - Data Entry '!G26-'Start Here - Data Entry '!G22),IF('Start Here - Data Entry '!G15>=0.9,415*('Start Here - Data Entry '!G26-'Start Here - Data Entry '!G22),0)) -> 24900 | K45: =IF(AND('Start Here - Data Entry '!H15>=0.64,'Start Here - Data Entry '!H15<0.9),365*('Start Here - Data Entry '!H26-'Start Here - Data Entry '!H22),IF('Start Here - Data Entry '!H15>=0.9,415*('Start Here - Data Entry '!H26-'Start Here - Data Entry '!H22),0)) -> 49800 | L45: =IF(AND('Start Here - Data Entry '!I15>=0.64,'Start Here - Data Entry '!I15<0.9),365*('Start Here - Data Entry '!I26-'Start Here - Data Entry '!I22),IF('Start Here - Data Entry '!I15>=0.9,415*('Start Here - Data Entry '!I26-'Start Here - Data Entry '!I22),0)) -> 74700 | M45: =IF(AND('Start Here - Data Entry '!J15>=0.64,'Start Here - Data Entry '!J15<0.9),365*('Start Here - Data Entry '!J26-'Start Here - Data Entry '!J22),IF('Start Here - Data Entry '!J15>=0.9,415*('Start Here - Data Entry '!J26-'Start Here - Data Entry '!J22),0)) -> 99600 | N45: =IF(AND('Start Here - Data Entry '!K15>=0.64,'Start Here - Data Entry '!K15<0.9),365*('Start Here - Data Entry '!K26-'Start Here - Data Entry '!K22),IF('Start Here - Data Entry '!K15>=0.9,415*('Start Here - Data Entry '!K26-'Start Here - Data Entry '!K22),0)) -> 99600
B46: Title I - Parent Involvement (K-12) (per FRL population) | F46: ='Calculations - HIDE'!C152 -> 5.92 | G46: Parent involvement activities | I46: 0 | J46: =IF(J45>0,$F$46*'Start Here - Data Entry '!G15*('Start Here - Data Entry '!G26-'Start Here - Data Entry '!G22),0) -> 337.44 | K46: =IF(K45>0,$F$46*'Start Here - Data Entry '!H15*('Start Here - Data Entry '!H26-'Start Here - Data Entry '!H22),0) -> 674.88 | L46: =IF(L45>0,$F$46*'Start Here - Data Entry '!I15*('Start Here - Data Entry '!I26-'Start Here - Data Entry '!I22),0) -> 1012.32 | M46: =IF(M45>0,$F$46*'Start Here - Data Entry '!J15*('Start Here - Data Entry '!J26-'Start Here - Data Entry '!J22),0) -> 1349.76 | N46: =IF(N45>0,$F$46*'Start Here - Data Entry '!K15*('Start Here - Data Entry '!K26-'Start Here - Data Entry '!K22),0) -> 1349.76
B47: STATE AND FEDERAL FUNDING SOURCES | I47: =SUM(I45:I46) -> 0 | J47: 25237.44 | K47: 50474.88 | L47: 75712.32 | M47: 100949.76 | N47: 100949.76
B49: ECE FUNDING
B51: ECE Allocation | F51: 3233 | G51: Teacher Para, supplies | I51: 0 | J51: 0 | K51: 0 | L51: 0 | M51: 0 | N51: 0
F53: This calculation varies by program and is therefore an estimate. Refer to the Budget Guidance Manual for more detailed information
B55: ECE FUNDING | I55: =SUM(I50:I51) -> 0 | J55: 0 | K55: 0 | L55: 0 | M55: 0 | N55: 0
B57: Required / Recommended FTEs
B58: Recommended Mild Moderate | J58: ='Calculations - HIDE'!$K192 -> 1 | K58: ='Calculations - HIDE'!$Q192 -> 1 | L58: ='Calculations - HIDE'!$W192 -> 1 | M58: ='Calculations - HIDE'!$AC192 -> 1.5 | N58: ='Calculations - HIDE'!$AI192 -> 1.5
B59: Recommended Nurse | J59: ='Calculations - HIDE'!$K214 -> 0.6 | K59: ='Calculations - HIDE'!$Q214 -> 0.6 | L59: ='Calculations - HIDE'!$W214 -> 0.6 | M59: ='Calculations - HIDE'!$AC214 -> 0.6 | N59: ='Calculations - HIDE'!$AI214 -> 0.6
B60: Recommended Mental Health Days (Psychologist & Social Worker) | J60: ='Calculations - HIDE'!$K239 -> 0.8 | K60: ='Calculations - HIDE'!$Q239 -> 0.8 | L60: ='Calculations - HIDE'!$W239 -> 0.8 | M60: ='Calculations - HIDE'!$AC239 -> 0.8 | N60: ='Calculations - HIDE'!$AI239 -> 0.8
B61: Required Arts (Art, Music, Dance, Drama, Graphic Design, etc) | J61: =IF(OR('Start Here - Data Entry '!$E$5=1,'Start Here - Data Entry '!$E$5=2),VLOOKUP(('Start Here - Data Entry '!G$26-'Start Here - Data Entry '!G$22),'Arts Vlookup'!$A:$C,3,FALSE),VLOOKUP('Start Here - Data Entry '!G26,'Arts Vlookup'!$F:$H,3,FALSE)) -> 1.5 | K61: =IF(OR('Start Here - Data Entry '!$E$5=1,'Start Here - Data Entry '!$E$5=2),VLOOKUP(('Start Here - Data Entry '!H$26-'Start Here - Data Entry '!H$22),'Arts Vlookup'!$A:$C,3,FALSE),VLOOKUP('Start Here - Data Entry '!H26,'Arts Vlookup'!$F:$H,3,FALSE)) -> 1.5 | L61: =IF(OR('Start Here - Data Entry '!$E$5=1,'Start Here - Data Entry '!$E$5=2),VLOOKUP(('Start Here - Data Entry '!I$26-'Start Here - Data Entry '!I$22),'Arts Vlookup'!$A:$C,3,FALSE),VLOOKUP('Start Here - Data Entry '!I26,'Arts Vlookup'!$F:$H,3,FALSE)) -> 1.5 | M61: =IF(OR('Start Here - Data Entry '!$E$5=1,'Start Here - Data Entry '!$E$5=2),VLOOKUP(('Start Here - Data Entry '!J$26-'Start Here - Data Entry '!J$22),'Arts Vlookup'!$A:$C,3,FALSE),VLOOKUP('Start Here - Data Entry '!J26,'Arts Vlookup'!$F:$H,3,FALSE)) -> 1.5 | N61: =IF(OR('Start Here - Data Entry '!$E$5=1,'Start Here - Data Entry '!$E$5=2),VLOOKUP(('Start Here - Data Entry '!K$26-'Start Here - Data Entry '!K$22),'Arts Vlookup'!$A:$C,3,FALSE),VLOOKUP('Start Here - Data Entry '!K26,'Arts Vlookup'!$F:$H,3,FALSE)) -> 1.5
B62: REQUIRED/RECOMMENDED FTE'S
B64: TOTAL SBB FUNDS | I64: =I30+I42+I47+I55 -> 0 | J64: 385846.906 | K64: 700743.506 | L64: 1017403.566 | M64: 1362946.886 | N64: 1362946.486
B66: TOTAL SBB + OTHER | I66: =I64+I11 -> 0 | J66: 947748.906 | K66: 1267984.506 | L66: 1607624.566 | M66: 1823911.886 | N66: 1823911.486

Sheet Calculations - HIDE (hidden)
B1: YEAR 0 - SBB = NA | H1: YEAR 1 | N1: YEAR 2 | T1: YEAR 3 | Z1: YEAR 4 | AF1: YEAR 5
D4: Constants: | J4: Constants: | P4: Constants: | V4: Constants: | AB4: Constants: | AH4: Constants:
D5: Salary | E5: 67515 | G5: =E5-(E5*1.5%) -> 66502.275 | J5: Salary | K5: 67515 | P5: Salary | Q5: =K5*(1+'Start Here - Data Entry '!$H$13) -> 67515 | V5: Salary | W5: =Q5*(1+'Start Here - Data Entry '!$I$13) -> 67515 | AB5: Salary | AC5: =W5*(1+'Start Here - Data Entry '!$J$13) -> 67515 | AH5: Salary | AI5: =AC5*(1+'Start Here - Data Entry '!$K$13) -> 67515
D6: ELA Para Hourly Rate | E6: 12.18 | J6: ELA Para Hourly Rate | K6: =E6*(1+'Start Here - Data Entry '!$G$13) -> 12.18 | P6: ELA Para Hourly Rate | Q6: =K6*(1+'Start Here - Data Entry '!$H$13) -> 12.18 | V6: ELA Para Hourly Rate | W6: =Q6*(1+'Start Here - Data Entry '!$I$13) -> 12.18 | AB6: ELA Para Hourly Rate | AC6: =W6*(1+'Start Here - Data Entry '!$J$13) -> 12.18 | AH6: ELA Para Hourly Rate | AI6: =AC6*(1+'Start Here - Data Entry '!$K$13) -> 12.18
D7: Average Kinder | E7: 0 | K7: 0 | Q7: =K7*(1+'Start Here - Data Entry '!$H$13) -> 0 | W7: =ROUND(Q7*(1+'Start Here - Data Entry '!$I$13),0) -> 0 | AC7: =ROUND(W7*(1+'Start Here - Data Entry '!$J$13),0) -> 0 | AI7: =ROUND(AC7*(1+'Start Here - Data Entry '!$J$13),0) -> 0
D8: Average ECE | E8: 0 | J8: Average ECE | K8: 0 | P8: Average ECE | Q8: =ROUND(K8*(1+'Start Here - Data Entry '!$H$13),0) -> 0 | V8: Average ECE | W8: =ROUND(Q8*(1+'Start Here - Data Entry '!$I$13),0) -> 0 | AB8: Average ECE | AC8: =ROUND(W8*(1+'Start Here - Data Entry '!$J$13),0) -> 0 | AH8: Average ECE | AI8: =ROUND(AC8*(1+'Start Here - Data Entry '!$J$13),0) -> 0
B10: SBB BASE CALCULATIONS (General Fund) | H10: SBB BASE CALCULATIONS (General Fund) | N10: SBB BASE CALCULATIONS (General Fund) | T10: SBB BASE CALCULATIONS (General Fund) | Z10: SBB BASE CALCULATIONS (General Fund) | AF10: SBB BASE CALCULATIONS (General Fund)
A11: Drop Down List ID # | B11: Funding Source | C11: Rate | D11: Students | E11: Year 1 - Total | G11: Drop Down List ID # | H11: Funding Source | I11: Rate | J11: Students | K11: Year 1 - Total | M11: Drop Down List ID # | N11: Funding Source | O11: Rate | P11: Students | Q11: Year 1 - Total | S11: Drop Down List ID # | T11: Funding Source | U11: Rate | V11: Students | W11: Year 1 - Total | Y11: Drop Down List ID # | Z11: Funding Source | AA11: Rate | AB11: Students | AC11: Year 1 - Total | AE11: Drop Down List ID # | AF11: Funding Source | AG11: Rate | AH11: Students | AI11: Year 1 - Total
B12: SBB Base (K-12 - K@.5) | C12: 4024 | D12: =SUM('Start Here - Data Entry '!#REF!,'Start Here - Data Entry '!$F$23) ->  | E12: =D12*C12 ->  | H12: SBB Base (K-12 - K@1) | I12: 4024 | J12: ='Start Here - Data Entry '!G23+'Start Here - Data Entry '!G24+'Start Here - Data Entry '!G25 -> 60 | K12: =J12*I12 -> 241440 | N12: SBB Base (K-12 - K@1) | O12: =I12 -> 4024 | P12: ='Start Here - Data Entry '!H23+'Start Here - Data Entry '!H24+'Start Here - Data Entry '!H25 -> 120 | Q12: =P12*O12 -> 482880 | T12: SBB Base (K-12 - K@1) | U12: =I12 -> 4024 | V12: ='Start Here - Data Entry '!I23+'Start Here - Data Entry '!I24+'Start Here - Data Entry '!I25 -> 180 | W12: =V12*U12 -> 724320 | Z12: SBB Base (K-12 - K@1) | AA12: =I12 -> 4024 | AB12: ='Start Here - Data Entry '!J23+'Start Here - Data Entry '!J24+'Start Here - Data Entry '!J25 -> 240 | AC12: =AB12*AA12 -> 965760 | AF12: SBB Base (K-12 - K@1) | AG12: =I12 -> 4024 | AH12: ='Start Here - Data Entry '!K23+'Start Here - Data Entry '!K24+'Start Here - Data Entry '!K25 -> 240 | AI12: =AH12*AG12 -> 965760
B14: Supplemental Base funding for Center Programs (K-12 - K@.5) | H14: Supplemental Base funding for Center Programs | N14: Supplemental Base funding for Center Programs (K-12 - K@.5) | T14: Supplemental Base funding for Center Programs (K-12 - K@.5) | Z14: Supplemental Base funding for Center Programs (K-12 - K@.5) | AF14: Supplemental Base funding for Center Programs (K-12 - K@.5)
A15: 1 | B15: ES | C15: 12 | D15: =IF('Start Here - Data Entry '!$E$5=A15,'Calculations - HIDE'!$D$12,0) -> 0 | E15: =C15*D15*'Start Here - Data Entry '!$F$28 ->  | G15: 1 | H15: ES | I15: 7480 | J15: =IF('Start Here - Data Entry '!$E$5=G15,'Start Here - Data Entry '!$G$28,0) -> 0 | K15: =I15*J15 -> 0 | M15: 1 | N15: ES | O15: =I15 -> 7480 | P15: =IF('Start Here - Data Entry '!$E$5=M15,'Start Here - Data Entry '!$H$28,0) -> 0 | Q15: =O15*P15 -> 0 | S15: 1 | T15: ES | U15: =O15 -> 7480 | V15: =IF('Start Here - Data Entry '!$E$5=S15,'Start Here - Data Entry '!$I$28,0) -> 0 | W15: =U15*V15 -> 0 | Y15: 1 | Z15: ES | AA15: =U15 -> 7480 | AB15: =IF('Start Here - Data Entry '!$E$5=Y15,'Start Here - Data Entry '!$J$28,0) -> 0 | AC15: =AA15*AB15 -> 0 | AE15: 1 | AF15: ES | AG15: 7480 | AH15: =IF('Start Here - Data Entry '!$E$5=AE15,'Start Here - Data Entry '!$K$28,0) -> 0 | AI15: =AG15*AH15 -> 0 | AK15: =IF('Start Here - Data Entry '!$E$5=1,1,0) -> 0
A16: 2 | B16: K-8 | C16: 12 | D16: =IF('Start Here - Data Entry '!$E$5=A16,'Calculations - HIDE'!$D$12,0) -> 0 | E16: =C16*D16*'Start Here - Data Entry '!$F$28 ->  | G16: 2 | H16: K-8 | I16: 7480 | J16: =IF('Start Here - Data Entry '!$E$5=G16,'Start Here - Data Entry '!$G$28,0) -> 0 | K16: =I16*J16 -> 0 | M16: 2 | N16: K-8 | O16: =I16 -> 7480 | P16: =IF('Start Here - Data Entry '!$E$5=M16,'Start Here - Data Entry '!$H$28,0) -> 0 | Q16: =O16*P16 -> 0 | S16: 2 | T16: K-8 | U16: =O16 -> 7480 | V16: =IF('Start Here - Data Entry '!$E$5=S16,'Start Here - Data Entry '!$I$28,0) -> 0 | W16: =U16*V16 -> 0 | Y16: 2 | Z16: K-8 | AA16: =U16 -> 7480 | AB16: =IF('Start Here - Data Entry '!$E$5=Y16,'Start Here - Data Entry '!$J$28,0) -> 0 | AC16: =AA16*AB16 -> 0 | AE16: 2 | AF16: K-8 | AG16: 7480 | AH16: =IF('Start Here - Data Entry '!$E$5=AE16,'Start Here - Data Entry '!$K$28,0) -> 0 | AI16: =AG16*AH16 -> 0 | AK16: =IF('Start Here - Data Entry '!$E$5=2,2,0) -> 0
A17: 3 | B17: MS | C17: 13 | D17: =IF('Start Here - Data Entry '!$E$5=A17,'Calculations - HIDE'!$D$12,0) -> 0 | E17: =C17*D17*'Start Here - Data Entry '!$F$28 ->  | G17: 3 | H17: MS | I17: 7480 | J17: =IF('Start Here - Data Entry '!$E$5=G17,'Start Here - Data Entry '!$G$28,0) -> 0 | K17: 0 | M17: 3 | N17: MS | O17: 7480 | P17: =IF('Start Here - Data Entry '!$E$5=M17,'Start Here - Data Entry '!$H$28,0) -> 0 | Q17: 0 | S17: 3 | T17: MS | U17: 7480 | V17: =IF('Start Here - Data Entry '!$E$5=S17,'Start Here - Data Entry '!$I$28,0) -> 0 | W17: 0 | Y17: 3 | Z17: MS | AA17: 7480 | AB17: =IF('Start Here - Data Entry '!$E$5=Y17,'Start Here - Data Entry '!$J$28,0) -> 0 | AC17: 0 | AE17: 3 | AF17: MS | AG17: 7480 | AH17: =IF('Start Here - Data Entry '!$E$5=AE17,'Start Here - Data Entry '!$K$28,0) -> 0 | AI17: 0 | AK17: =IF('Start Here - Data Entry '!$E$5=3,3,0) -> 0
A18: 4 | B18: 6-12 | C18: 13 | D18: =IF('Start Here - Data Entry '!$E$5=A18,'Calculations - HIDE'!$D$12,0) -> 0 | E18: =C18*D18*'Start Here - Data Entry '!$F$28 ->  | G18: 4 | H18: 6-12 | I18: 7480 | J18: =IF('Start Here - Data Entry '!$E$5=G18,'Start Here - Data Entry '!$G$28,0) -> 0 | K18: 0 | M18: 4 | N18: 6-12 | O18: 7480 | P18: =IF('Start Here - Data Entry '!$E$5=M18,'Start Here - Data Entry '!$H$28,0) -> 0 | Q18: 0 | S18: 4 | T18: 6-12 | U18: 7480 | V18: =IF('Start Here - Data Entry '!$E$5=S18,'Start Here - Data Entry '!$I$28,0) -> 0 | W18: 0 | Y18: 4 | Z18: 6-12 | AA18: 7480 | AB18: =IF('Start Here - Data Entry '!$E$5=Y18,'Start Here - Data Entry '!$J$28,0) -> 0 | AC18: 0 | AE18: 4 | AF18: 6-12 | AG18: 7480 | AH18: =IF('Start Here - Data Entry '!$E$5=AE18,'Start Here - Data Entry '!$K$28,0) -> 0 | AI18: 0 | AK18: =IF('Start Here - Data Entry '!$E$5=4,4,0) -> 0
A19: 5 | B19: HS | C19: 11 | D19: =IF('Start Here - Data Entry '!$E$5=A19,'Calculations - HIDE'!$D$12,0) ->  | E19: =C19*D19*'Start Here - Data Entry '!$F$28 ->  | G19: 5 | H19: HS | I19: 7480 | J19: =IF('Start Here - Data Entry '!$E$5=G19,'Start Here - Data Entry '!$G$28,0) -> 0 | K19: 0 | M19: 5 | N19: HS | O19: 7480 | P19: =IF('Start Here - Data Entry '!$E$5=M19,'Start Here - Data Entry '!$H$28,0) -> 0 | Q19: 0 | S19: 5 | T19: HS | U19: 7480 | V19: =IF('Start Here - Data Entry '!$E$5=S19,'Start Here - Data Entry '!$I$28,0) -> 0 | W19: 0 | Y19: 5 | Z19: HS | AA19: 7480 | AB19: =IF('Start Here - Data Entry '!$E$5=Y19,'Start Here - Data Entry '!$J$28,0) -> 0 | AC19: 0 | AE19: 5 | AF19: HS | AG19: 7480 | AH19: =IF('Start Here - Data Entry '!$E$5=AE19,'Start Here - Data Entry '!$K$28,0) -> 0 | AI19: 0 | AK19: =IF('Start Here - Data Entry '!$E$5=5,5,0) -> 5
B21: Guest Teachers (ECE-12 @ 1.00) | C21: 52 | D21: ='Start Here - Data Entry '!$F26 -> NA | E21: =D21*C21 ->  | H21: Guest Teachers (ECE-12 @ 1.00) | I21: 52 | J21: ='Start Here - Data Entry '!$G26 -> 60 | K21: =J21*I21 -> 3120 | N21: Guest Teachers (ECE-12 @ 1.00) | O21: =I21 -> 52 | P21: ='Start Here - Data Entry '!$H26 -> 120 | Q21: =P21*O21 -> 6240 | T21: Guest Teachers (ECE-12 @ 1.00) | U21: 52 | V21: ='Start Here - Data Entry '!$I26 -> 180 | W21: =V21*U21 -> 9360 | Z21: Guest Teachers (ECE-12 @ 1.00) | AA21: 52 | AB21: ='Start Here - Data Entry '!$J26 -> 240 | AC21: =AB21*AA21 -> 12480 | AF21: Guest Teachers (ECE-12 @ 1.00) | AG21: 52 | AH21: ='Start Here - Data Entry '!$K26 -> 240 | AI21: =AH21*AG21 -> 12480
B23: Free & Reduced Lunch Supplemental (per FRL pupil) | H23: Free & Reduced Lunch Supplemental (per FRL pupil) | N23: Free & Reduced Lunch Supplemental (per FRL pupil) | T23: Free & Reduced Lunch Supplemental (per FRL pupil) | Z23: Free & Reduced Lunch Supplemental (per FRL pupil) | AF23: Free & Reduced Lunch Supplemental (per FRL pupil)
B24: Calculate FRL pupil count from % (k-12 - k @1.0) | C24: ='Start Here - Data Entry '!$F15 -> NA | D24: =ROUND(C24*(SUM('Start Here - Data Entry '!#REF!,'Start Here - Data Entry '!$F$23)),0) ->  | H24: Calculate FRL pupil count from % (k-12 - k @1.0) | I24: ='Start Here - Data Entry '!$G15 -> 0.95 | J24: =J12*I24 -> 57 | N24: Calculate FRL pupil count from % (k-12 - k @1.0) | O24: ='Start Here - Data Entry '!$H15 -> 0.95 | P24: =O24*P12 -> 114 | T24: Calculate FRL pupil count from % (k-12 - k @1.0) | U24: ='Start Here - Data Entry '!$I15 -> 0.95 | V24: =V12*U24 -> 171 | Z24: Calculate FRL pupil count from % (k-12 - k @1.0) | AA24: ='Start Here - Data Entry '!$J15 -> 0.95 | AB24: =AB12*AA24 -> 228 | AF24: Calculate FRL pupil count from % (k-12 - k @1.0) | AG24: ='Start Here - Data Entry '!$K15 -> 0.95 | AH24: =AH12*AG24 -> 228
A25: 1 | B25: ES | C25: 503 | D25: =IF('Start Here - Data Entry '!$E$5='Calculations - HIDE'!A25,D24,0) -> 0 | E25: =C25*D25 -> 0 | G25: 1 | H25: ES | I25: 503 | J25: =IF('Start Here - Data Entry '!$E$5='Calculations - HIDE'!G25,J24,0) -> 0 | K25: =I25*J25 -> 0 | M25: 1 | N25: ES | O25: 503 | P25: =IF('Start Here - Data Entry '!$E$5='Calculations - HIDE'!M25,P24,0) -> 0 | Q25: =O25*P25 -> 0 | S25: 1 | T25: ES | U25: 503 | V25: =IF('Start Here - Data Entry '!$E$5='Calculations - HIDE'!S25,V24,0) -> 0 | W25: =U25*V25 -> 0 | Y25: 1 | Z25: ES | AA25: 503 | AB25: =IF('Start Here - Data Entry '!$E$5='Calculations - HIDE'!Y25,AB24,0) -> 0 | AC25: =AA25*AB25 -> 0 | AE25: 1 | AF25: ES | AG25: 503 | AH25: =IF('Start Here - Data Entry '!$E$5='Calculations - HIDE'!AE25,AH24,0) -> 0 | AI25: =AG25*AH25 -> 0
A26: 2 | B26: K-8 | C26: 503 | D26: =IF('Start Here - Data Entry '!$E$5='Calculations - HIDE'!A26,$D$24,0) -> 0 | E26: =C26*D26 -> 0 | G26: 2 | H26: K-8 | I26: 503 | J26: =IF('Start Here - Data Entry '!$E$5='Calculations - HIDE'!G26,$J$24,0) -> 0 | K26: =I26*J26 -> 0 | M26: 2 | N26: K-8 | O26: 503 | P26: =IF('Start Here - Data Entry '!$E$5='Calculations - HIDE'!M26,P24,0) -> 0 | Q26: =O26*P26 -> 0 | S26: 2 | T26: K-8 | U26: 503 | V26: =IF('Start Here - Data Entry '!$E$5='Calculations - HIDE'!S26,$V$24,0) -> 0 | W26: =U26*V26 -> 0 | Y26: 2 | Z26: K-8 | AA26: 503 | AB26: =IF('Start Here - Data Entry '!$E$5='Calculations - HIDE'!Y26,$AB$24,0) -> 0 | AC26: =AA26*AB26 -> 0 | AE26: 2 | AF26: K-8 | AG26: 503 | AH26: =IF('Start Here - Data Entry '!$E$5='Calculations - HIDE'!AE26,$AH$24,0) -> 0 | AI26: =AG26*AH26 -> 0
A27: 3 | B27: MS | C27: 503 | D27: =IF('Start Here - Data Entry '!$E$5='Calculations - HIDE'!A27,$D$24,0) -> 0 | E27: =C27*D27 -> 0 | G27: 3 | H27: MS | I27: 503 | J27: =IF('Start Here - Data Entry '!$E$5='Calculations - HIDE'!G27,$J$24,0) -> 0 | K27: =I27*J27 -> 0 | M27: 3 | N27: MS | O27: =I27 -> 503 | P27: =IF('Start Here - Data Entry '!$E$5='Calculations - HIDE'!M27,P24,0) -> 0 | Q27: =O27*P27 -> 0 | S27: 3 | T27: MS | U27: 503 | V27: =IF('Start Here - Data Entry '!$E$5='Calculations - HIDE'!S27,$V$24,0) -> 0 | W27: =U27*V27 -> 0 | Y27: 3 | Z27: MS | AA27: 503 | AB27: =IF('Start Here - Data Entry '!$E$5='Calculations - HIDE'!Y27,$AB$24,0) -> 0 | AC27: =AA27*AB27 -> 0 | AE27: 3 | AF27: MS | AG27: 503 | AH27: =IF('Start Here - Data Entry '!$E$5='Calculations - HIDE'!AE27,$AH$24,0) -> 0 | AI27: =AG27*AH27 -> 0
A28: 4 | B28: 6-12 | C28: 503 | D28: =IF('Start Here - Data Entry '!$E$5='Calculations - HIDE'!A28,$D$24,0) -> 0 | E28: =C28*D28 -> 0 | G28: 4 | H28: 6-12 | I28: 503 | J28: =IF('Start Here - Data Entry '!$E$5='Calculations - HIDE'!G28,$J$24,0) -> 0 | K28: =I28*J28 -> 0 | M28: 4 | N28: 6-12 | O28: 503 | P28: =IF('Start Here - Data Entry '!$E$5='Calculations - HIDE'!M28,P24,0) -> 0 | Q28: =O28*P28 -> 0 | S28: 4 | T28: 6-12 | U28: 503 | V28: =IF('Start Here - Data Entry '!$E$5='Calculations - HIDE'!S28,$V$24,0) -> 0 | W28: =U28*V28 -> 0 | Y28: 4 | Z28: 6-12 | AA28: 503 | AB28: =IF('Start Here - Data Entry '!$E$5='Calculations - HIDE'!Y28,$AB$24,0) -> 0 | AC28: =AA28*AB28 -> 0 | AE28: 4 | AF28: 6-12 | AG28: 503 | AH28: =IF('Start Here - Data Entry '!$E$5='Calculations - HIDE'!AE28,$AH$24,0) -> 0 | AI28: =AG28*AH28 -> 0
A29: 5 | B29: HS | C29: 503 | D29: =IF('Start Here - Data Entry '!$E$5='Calculations - HIDE'!A29,$D$24,0) ->  | E29: =C29*D29 ->  | G29: 5 | H29: HS | I29: 503 | J29: =IF('Start Here - Data Entry '!$E$5='Calculations - HIDE'!G29,$J$24,0) -> 57 | K29: =I29*J29 -> 28671 | M29: 5 | N29: HS | O29: 503 | P29: =IF('Start Here - Data Entry '!$E$5='Calculations - HIDE'!M29,P24,0) -> 114 | Q29: =O29*P29 -> 57342 | S29: 5 | T29: HS | U29: 503 | V29: =IF('Start Here - Data Entry '!$E$5='Calculations - HIDE'!S29,$V$24,0) -> 171 | W29: =U29*V29 -> 86013 | Y29: 5 | Z29: HS | AA29: 503 | AB29: =IF('Start Here - Data Entry '!$E$5='Calculations - HIDE'!Y29,$AB$24,0) -> 228 | AC29: =AA29*AB29 -> 114684 | AE29: 5 | AF29: HS | AG29: 503 | AH29: =IF('Start Here - Data Entry '!$E$5='Calculations - HIDE'!AE29,$AH$24,0) -> 228 | AI29: =AG29*AH29 -> 114684
B31: Targeted Intevention (original allocation) | E31: =IF('Start Here - Data Entry '!#REF!=1,'Calculations - HIDE'!C32,0) ->  | H31: Targeted Intevention (original allocation) | K31: =IF('Start Here - Data Entry '!#REF!=1,'Calculations - HIDE'!I32,0) ->  | N31: Targeted Intevention (original allocation) | Q31: =IF('Start Here - Data Entry '!#REF!=1,'Calculations - HIDE'!O32,0) ->  | T31: Targeted Intevention (original allocation) | W31: =IF('Start Here - Data Entry '!#REF!=1,'Calculations - HIDE'!U32,0) ->  | Z31: Targeted Intevention (original allocation) | AC31: =IF('Start Here - Data Entry '!#REF!=1,'Calculations - HIDE'!AA32,0) ->  | AF31: Targeted Intevention (original allocation) | AI31: =IF('Start Here - Data Entry '!#REF!=1,'Calculations - HIDE'!AG32,0) -> 
A32: 1 | B32: Yes | C32: 100000 | G32: 1 | H32: Yes | I32: 100000 | M32: 1 | N32: Yes | O32: =I32 -> 100000 | S32: 1 | T32: Yes | U32: 100000 | Y32: 1 | Z32: Yes | AA32: 100000 | AE32: 1 | AF32: Yes | AG32: 100000
A33: 2 | B33: No | C33: 0 | G33: 2 | H33: No | I33: 0 | M33: 2 | N33: No | O33: =I33 -> 0 | S33: 2 | T33: No | U33: 0 | Y33: 2 | Z33: No | AA33: 0 | AE33: 2 | AF33: No | AG33: 0
B35: Performance Allocation (K-12) | H35: Performance Allocation (K-12) | N35: Performance Allocation (K-12) | T35: Performance Allocation (K-12) | Z35: Performance Allocation (K-12) | AF35: Performance Allocation (K-12)
A36: 1 | B36: Maintain Blue | C36: 65 | D36: =IF('Start Here - Data Entry '!#REF!=A36,'Calculations - HIDE'!$D$12,0) ->  | E36: =D36*C36 ->  | G36: 1 | H36: Maintain Blue | I36: 65 | J36: =IF('Start Here - Data Entry '!#REF!=G36,'Calculations - HIDE'!$J$12,0) ->  | K36: =J36*I36 ->  | M36: 1 | N36: Maintain Blue | O36: =I36 -> 65 | P36: =IF('Start Here - Data Entry '!#REF!=M36,'Calculations - HIDE'!$P$12,0) ->  | Q36: =P36*O36 ->  | S36: 1 | T36: Maintain Blue | U36: 65 | V36: =IF('Start Here - Data Entry '!#REF!=S36,'Calculations - HIDE'!$V$12,0) ->  | W36: =V36*U36 ->  | Y36: 1 | Z36: Maintain Blue | AA36: 65 | AB36: 0 | AC36: =AB36*AA36 -> 0 | AE36: 1 | AF36: Maintain Blue | AG36: 65 | AH36: =IF('Start Here - Data Entry '!#REF!=AE36,'Calculations - HIDE'!$AH$12,0) ->  | AI36: =AH36*AG36 -> 
A37: 2 | B37: Growth to Orange | C37: 100 | D37: =IF('Start Here - Data Entry '!#REF!=A37,'Calculations - HIDE'!$D$12,0) ->  | E37: =D37*C37 ->  | G37: 2 | H37: Growth to Orange | I37: 100 | J37: =IF('Start Here - Data Entry '!#REF!=G37,'Calculations - HIDE'!$J$12,0) ->  | K37: =J37*I37 ->  | M37: 2 | N37: Growth to Orange | O37: =I37 -> 100 | P37: =IF('Start Here - Data Entry '!#REF!=M37,'Calculations - HIDE'!$P$12,0) ->  | Q37: =P37*O37 ->  | S37: 2 | T37: Growth to Orange | U37: 100 | V37: =IF('Start Here - Data Entry '!#REF!=S37,'Calculations - HIDE'!$V$12,0) ->  | W37: =V37*U37 ->  | Y37: 2 | Z37: Growth to Orange | AA37: 100 | AB37: =IF('Start Here - Data Entry '!#REF!=Y37,'Calculations - HIDE'!$AB$12,0) ->  | AC37: =AB37*AA37 ->  | AE37: 2 | AF37: Growth to Orange | AG37: 100 | AH37: =IF('Start Here - Data Entry '!#REF!=AE37,'Calculations - HIDE'!$AH$12,0) ->  | AI37: =AH37*AG37 -> 
A38: 3 | B38: Growth to Yellow | C38: 105 | D38: =IF('Start Here - Data Entry '!#REF!=A38,'Calculations - HIDE'!$D$12,0) ->  | E38: =D38*C38 ->  | G38: 3 | H38: Growth to Yellow | I38: 105 | J38: =IF('Start Here - Data Entry '!#REF!=G38,'Calculations - HIDE'!$J$12,0) ->  | K38: =J38*I38 ->  | M38: 3 | N38: Growth to Yellow | O38: 105 | P38: =IF('Start Here - Data Entry '!#REF!=M38,'Calculations - HIDE'!$P$12,0) ->  | Q38: =P38*O38 ->  | S38: 3 | T38: Growth to Yellow | U38: 105 | V38: =IF('Start Here - Data Entry '!#REF!=S38,'Calculations - HIDE'!$V$12,0) ->  | W38: =V38*U38 ->  | Y38: 3 | Z38: Growth to Yellow | AA38: 105 | AB38: =IF('Start Here - Data Entry '!#REF!=Y38,'Calculations - HIDE'!$AB$12,0) ->  | AC38: =AB38*AA38 ->  | AE38: 3 | AF38: Growth to Yellow | AG38: 105 | AH38: =IF('Start Here - Data Entry '!#REF!=AE38,'Calculations - HIDE'!$AH$12,0) ->  | AI38: =AH38*AG38 -> 
A39: 4 | B39: Growth to Green | C39: 110 | D39: =IF('Start Here - Data Entry '!#REF!=A39,'Calculations - HIDE'!$D$12,0) ->  | E39: =D39*C39 ->  | G39: 4 | H39: Growth to Green | I39: 110 | J39: =IF('Start Here - Data Entry '!#REF!=G39,'Calculations - HIDE'!$J$12,0) ->  | K39: =J39*I39 ->  | M39: 4 | N39: Growth to Green | O39: 110 | P39: =IF('Start Here - Data Entry '!#REF!=M39,'Calculations - HIDE'!$P$12,0) ->  | Q39: =P39*O39 ->  | S39: 4 | T39: Growth to Green | U39: 110 | V39: =IF('Start Here - Data Entry '!#REF!=S39,'Calculations - HIDE'!$V$12,0) ->  | W39: =V39*U39 ->  | Y39: 4 | Z39: Growth to Green | AA39: 110 | AB39: 0 | AC39: =AB39*AA39 -> 0 | AE39: 4 | AF39: Growth to Green | AG39: 110 | AH39: =IF('Start Here - Data Entry '!#REF!=AE39,'Calculations - HIDE'!$AH$12,0) ->  | AI39: =AH39*AG39 -> 
A40: 5 | B40: Growth to Blue | C40: 115 | D40: =IF('Start Here - Data Entry '!#REF!=A40,'Calculations - HIDE'!$D$12,0) ->  | E40: =D40*C40 ->  | G40: 5 | H40: Growth to Blue | I40: 115 | J40: =IF('Start Here - Data Entry '!#REF!=G40,'Calculations - HIDE'!$J$12,0) ->  | K40: =J40*I40 ->  | M40: 5 | N40: Growth to Blue | O40: 115 | P40: =IF('Start Here - Data Entry '!#REF!=M40,'Calculations - HIDE'!$P$12,0) ->  | Q40: =P40*O40 ->  | S40: 5 | T40: Growth to Blue | U40: 115 | V40: =IF('Start Here - Data Entry '!#REF!=S40,'Calculations - HIDE'!$V$12,0) ->  | W40: =V40*U40 ->  | Y40: 5 | Z40: Growth to Blue | AA40: 115 | AB40: 450 | AC40: =AB40*AA40 -> 51750 | AE40: 5 | AF40: Growth to Blue | AG40: 115 | AH40: =IF('Start Here - Data Entry '!#REF!=AE40,'Calculations - HIDE'!$AH$12,0) ->  | AI40: =AH40*AG40 -> 
A41: 6 | B41: No Growth / Not Blue | C41: 0 | D41: 0 | E41: 0 | G41: 6 | H41: No Growth / Not Blue | I41: 0 | J41: =IF('Start Here - Data Entry '!#REF!=G41,'Calculations - HIDE'!$J$12,0) ->  | K41: 0 | M41: 6 | N41: No Growth / Not Blue | O41: 0 | P41: =IF('Start Here - Data Entry '!#REF!=M41,'Calculations - HIDE'!$P$12,0) ->  | Q41: 0 | S41: 6 | T41: No Growth / Not Blue | U41: 0 | V41: =IF('Start Here - Data Entry '!#REF!=S41,'Calculations - HIDE'!$V$12,0) ->  | W41: 0 | Y41: 6 | Z41: No Growth / Not Blue | AA41: 0 | AB41: =IF('Start Here - Data Entry '!#REF!=Y41,'Calculations - HIDE'!$AB$12,0) ->  | AC41: 0 | AE41: 6 | AF41: No Growth / Not Blue | AG41: 0 | AH41: =IF('Start Here - Data Entry '!#REF!=AE41,'Calculations - HIDE'!$AH$12,0) ->  | AI41: 0
B43: GT Allocation (FTE + Per Pupil) | H43: GT Allocation (FTE + Per Pupil) | N43: GT Allocation (FTE + Per Pupil) | T43: GT Allocation (FTE + Per Pupil) | Z43: GT Allocation (FTE + Per Pupil) | AF43: GT Allocation (FTE + Per Pupil)
B44: Additional GT Funding | C44: 120 | D44: ='Start Here - Data Entry '!$F30 -> NA | E44: =IF('Start Here - Data Entry '!$E$5=5,0,D44*C44) -> 0 | H44: Additional GT Funding | I44: 120 | J44: ='Start Here - Data Entry '!$G30 -> 9 | K44: =IF('Start Here - Data Entry '!$E$5=5,0,J44*I44) -> 0 | N44: Additional GT Funding | O44: =I44 -> 120 | P44: ='Start Here - Data Entry '!$H30 -> 18 | Q44: =IF('Start Here - Data Entry '!$E$5=5,0,P44*O44) -> 0 | T44: Additional GT Funding | U44: 120 | V44: ='Start Here - Data Entry '!$I30 -> 27 | W44: =IF('Start Here - Data Entry '!$E$5=5,0,V44*U44) -> 0 | Z44: Additional GT Funding | AA44: 120 | AB44: ='Start Here - Data Entry '!$J30 -> 36 | AC44: =IF('Start Here - Data Entry '!$E$5=5,0,AB44*AA44) -> 0 | AF44: Additional GT Funding | AG44: 120 | AH44: ='Start Here - Data Entry '!$K30 -> 36 | AI44: =IF('Start Here - Data Entry '!$E$5=5,0,AH44*AG44) -> 0
B45: GT Minimum | E45: =IF('Start Here - Data Entry '!$E$5=5,0,IF(D44<=0,0,0.25*E5)) -> 0 | H45: GT Minimum | K45: =IF('Start Here - Data Entry '!$E$5=5,0,IF(J44<=0,0,0.25*K5)) -> 0 | N45: GT Minimum | Q45: =IF('Start Here - Data Entry '!$E$5=5,0,IF(P44<=0,0,0.25*Q5)) -> 0 | T45: GT Minimum | W45: =IF('Start Here - Data Entry '!$E$5=5,0,IF(V44<=0,0,0.25*W5)) -> 0 | Z45: GT Minimum | AC45: =IF('Start Here - Data Entry '!$E$5=5,0,IF(AB44<=0,0,0.25*AC5)) -> 0 | AF45: GT Minimum | AI45: =IF('Start Here - Data Entry '!$E$5=5,0,IF(AH44<=0,0,0.25*AI5)) -> 0
B49: English Language Learners | E49: 4 - Actual | H49: English Language Learners | K49: 4 - Actual | N49: English Language Learners | Q49: 4 - Actual | T49: English Language Learners | W49: 4 - Actual | Z49: English Language Learners | AC49: 4 - Actual | AF49: English Language Learners | AI49: 4 - Actual
A50: 1 | B50: ES | C50: see table | D50: =IF(D15>0,E73,0) -> 0 | E50: =ROUND(E87,0) -> 0 | G50: 1 | H50: ES | I50: see table | J50: =IF($J$12>0,K73,0) -> 0 | K50: =ROUND(K87,0) -> 0 | M50: 1 | N50: ES | O50: see table | P50: =IF(P12>0,Q73,0) -> 0 | Q50: =ROUND(Q87,0) -> 0 | S50: 1 | T50: ES | U50: see table | V50: =IF($V$12>0,W73,0) -> 0 | W50: =ROUND(W87,0) -> 0 | Y50: 1 | Z50: ES | AA50: see table | AB50: =IF($AB$12>0,AC73,0) -> 0 | AC50: =ROUND(AC87,0) -> 0 | AE50: 1 | AF50: ES | AG50: see table | AH50: =IF($AH$12>0,AI73,0) -> 0 | AI50: =ROUND(AI87,0) -> 0
A51: 2 | B51: K-8 | C51: see table | D51: =IF(D16>0,E74,0) -> 0 | E51: =E88 -> 0 | G51: 2 | H51: K-8 | I51: see table | J51: =IF($J$12>0,K74,0) -> 0 | K51: =K88 -> 0 | M51: 2 | N51: K-8 | O51: see table | P51: =IF(P16>0,Q74,0) -> 0 | Q51: =Q88 -> 0 | S51: 2 | T51: K-8 | U51: see table | V51: =IF($V$12>0,W74,0) -> 0 | W51: =W88 -> 0 | Y51: 2 | Z51: K-8 | AA51: see table | AB51: =IF($AB$12>0,AC74,0) -> 0 | AC51: =AC88 -> 0 | AE51: 2 | AF51: K-8 | AG51: see table | AH51: =IF($AH$12>0,AI74,0) -> 0 | AI51: =AI88 -> 0
A52: 3 | B52: MS | C52: see table | D52: =IF(D17>0,E75,0) -> 0 | E52: =E89 -> 0 | G52: 3 | H52: MS | I52: see table | J52: 0 | K52: =K89 -> 0 | M52: 3 | N52: MS | O52: see table | P52: =IF(P17>0,Q75,0) -> 0 | Q52: =Q89 -> 0 | S52: 3 | T52: MS | U52: see table | V52: 0 | W52: =W89 -> 0 | Y52: 3 | Z52: MS | AA52: see table | AB52: 0 | AC52: =AC89 -> 0 | AE52: 3 | AF52: MS | AG52: see table | AH52: 0 | AI52: =AI89 -> 0
A53: 4 | B53: 6-12 (grades 6-8) | C53: see table | D53: =IF(D18>0,E76,0) -> 0 | E53: =E90 -> 0 | G53: 4 | H53: 6-12 (grades 6-8) | I53: see table | J53: =IF($J$12>0,K76,0) -> 0 | K53: =K90 -> 0 | M53: 4 | N53: 6-12 (grades 6-8) | O53: see table | P53: =IF(P18>0,Q76,0) -> 0 | Q53: =Q90 -> 0 | S53: 4 | T53: 6-12 (grades 6-8) | U53: see table | V53: 0 | W53: =W90 -> 0 | Y53: 4 | Z53: 6-12 (grades 6-8) | AA53: see table | AB53: 0 | AC53: =AC90 -> 0 | AE53: 4 | AF53: 6-12 (grades 6-8) | AG53: see table | AH53: 0 | AI53: =AI90 -> 0
A54: 4 | B54: 6-12 (grades 9-12) | C54: see table | D54: =IF(D18>0,E77,0) -> 0 | E54: =E91 -> 0 | G54: 4 | H54: 6-12 (grades 9-12) | I54: see table | J54: 0 | K54: =K91 -> 0 | M54: 4 | N54: 6-12 (grades 9-12) | O54: see table | P54: =IF(P18>0,Q77,0) -> 0 | Q54: =Q91 -> 0 | S54: 4 | T54: 6-12 (grades 9-12) | U54: see table | V54: 60 | W54: =W91 -> 10523.52 | Y54: 4 | Z54: 6-12 (grades 9-12) | AA54: see table | AB54: 80 | AC54: =AC91 -> 17539.2 | AE54: 4 | AF54: 6-12 (grades 9-12) | AG54: see table | AH54: 0 | AI54: =AI91 -> 0
A55: 5 | B55: HS | C55: see table | D55: =IF(D19>0,E78,0) ->  | E55: =E92 ->  | G55: 5 | H55: HS | I55: see table | J55: 20 | K55: =K92 -> 3507.84 | M55: 5 | N55: HS | O55: see table | P55: =IF(P19>0,Q78,0) -> 0 | Q55: =Q92 -> 0 | S55: 5 | T55: HS | U55: see table | V55: 0 | W55: =W92 -> 0 | Y55: 5 | Z55: HS | AA55: see table | AB55: 80 | AC55: =AC92 -> 17539.2 | AE55: 5 | AF55: HS | AG55: see table | AH55: 80 | AI55: =AI92 -> 17539.2
B56: **ELL - constants and calculations (see below) | H56: **ELL - constants and calculations (see below) | N56: **ELL - constants and calculations (see below) | T56: **ELL - constants and calculations (see below) | Z56: **ELL - constants and calculations (see below) | AF56: **ELL - constants and calculations (see below)
B57: Hourly Rate | C57: =E6 -> 12.18 | H57: Hourly Rate | I57: =K6 -> 12.18 | N57: Hourly Rate | O57: =Q6 -> 12.18 | T57: Hourly Rate | U57: =W6 -> 12.18 | Z57: Hourly Rate | AA57: =AC6 -> 12.18 | AF57: Hourly Rate | AG57: =AI6 -> 12.18
B58: Min ELA Req | C58: Alloc Per | H58: Min ELA Req | I58: Alloc Per | N58: Min ELA Req | O58: Alloc Per | T58: Min ELA Req | U58: Alloc Per | Z58: Min ELA Req | AA58: Alloc Per | AF58: Min ELA Req | AG58: Alloc Per
A59: ES | B59: 24 | C59: 8 | G59: ES | H59: 24 | I59: 8 | M59: ES | N59: 24 | O59: 8 | S59: ES | T59: 24 | U59: 8 | Y59: ES | Z59: 24 | AA59: 8 | AE59: ES | AF59: 24 | AG59: 8
A60: K-8 | B60: 24 | C60: 8 | G60: K-8 | H60: 24 | I60: 8 | M60: K-8 | N60: 24 | O60: 8 | S60: K-8 | T60: 24 | U60: 8 | Y60: K-8 | Z60: 24 | AA60: 8 | AE60: K-8 | AF60: 24 | AG60: 8
A61: MS | B61: 0 | C61: 12 | G61: MS | H61: 0 | I61: 12 | M61: MS | N61: 0 | O61: 12 | S61: MS | T61: 0 | U61: 12 | Y61: MS | Z61: 0 | AA61: 12 | AE61: MS | AF61: 0 | AG61: 12
A62: 6-12 (grades 6-8) | B62: 0 | C62: 12 | G62: 6-12 (grades 6-8) | H62: 0 | I62: 12 | M62: 6-12 (grades 6-8) | N62: 0 | O62: 12 | S62: 6-12 (grades 6-8) | T62: 0 | U62: 12 | Y62: 6-12 (grades 6-8) | Z62: 0 | AA62: 12 | AE62: 6-12 (grades 6-8) | AF62: 0 | AG62: 12
A63: 6-12 (grades 9-12) | B63: 0 | C63: 16 | G63: 6-12 (grades 9-12) | H63: 0 | I63: 16 | M63: 6-12 (grades 9-12) | N63: 0 | O63: 16 | S63: 6-12 (grades 9-12) | T63: 0 | U63: 16 | Y63: 6-12 (grades 9-12) | Z63: 0 | AA63: 16 | AE63: 6-12 (grades 9-12) | AF63: 0 | AG63: 16
A64: HS | B64: 0 | C64: 16 | G64: HS | H64: 0 | I64: 16 | M64: HS | N64: 0 | O64: 16 | S64: HS | T64: 0 | U64: 16 | Y64: HS | Z64: 0 | AA64: 16 | AE64: HS | AF64: 0 | AG64: 16
B65: Base Hours | C65: Extra Hours | D65: Work Year | H65: Base Hours | I65: Extra Hours | J65: Work Year | N65: Base Hours | O65: Extra Hours | P65: Work Year | T65: Base Hours | U65: Extra Hours | V65: Work Year | Z65: Base Hours | AA65: Extra Hours | AB65: Work Year | AF65: Base Hours | AG65: Extra Hours | AH65: Work Year
A66: ES | B66: 3 | C66: 1 | D66: 180 | G66: ES | H66: 3 | I66: 1 | J66: 180 | M66: ES | N66: 3 | O66: 1 | P66: 180 | S66: ES | T66: 3 | U66: 1 | V66: 180 | Y66: ES | Z66: 3 | AA66: 1 | AB66: 180 | AE66: ES | AF66: 3 | AG66: 1 | AH66: 180
A67: K-8 | B67: 3 | C67: 1 | D67: 180 | G67: K-8 | H67: 3 | I67: 1 | J67: 180 | M67: K-8 | N67: 3 | O67: 1 | P67: 180 | S67: K-8 | T67: 3 | U67: 1 | V67: 180 | Y67: K-8 | Z67: 3 | AA67: 1 | AB67: 180 | AE67: K-8 | AF67: 3 | AG67: 1 | AH67: 180
A68: MS | B68: 1.6 | C68: 1.6 | D68: 180 | G68: MS | H68: 1.6 | I68: 1.6 | J68: 180 | M68: MS | N68: 1.6 | O68: 1.6 | P68: 180 | S68: MS | T68: 1.6 | U68: 1.6 | V68: 180 | Y68: MS | Z68: 1.6 | AA68: 1.6 | AB68: 180 | AE68: MS | AF68: 1.6 | AG68: 1.6 | AH68: 180
A69: 6-12 (grades 6-8) | B69: 1.6 | C69: 1.6 | D69: 180 | G69: 6-12 (grades 6-8) | H69: 1.6 | I69: 1.6 | J69: 180 | M69: 6-12 (grades 6-8) | N69: 1.6 | O69: 1.6 | P69: 180 | S69: 6-12 (grades 6-8) | T69: 1.6 | U69: 1.6 | V69: 180 | Y69: 6-12 (grades 6-8) | Z69: 1.6 | AA69: 1.6 | AB69: 180 | AE69: 6-12 (grades 6-8) | AF69: 1.6 | AG69: 1.6 | AH69: 180
A70: 6-12 (grades 9-12) | B70: 1.6 | C70: 1.6 | D70: 180 | G70: 6-12 (grades 9-12) | H70: 1.6 | I70: 1.6 | J70: 180 | M70: 6-12 (grades 9-12) | N70: 1.6 | O70: 1.6 | P70: 180 | S70: 6-12 (grades 9-12) | T70: 1.6 | U70: 1.6 | V70: 180 | Y70: 6-12 (grades 9-12) | Z70: 1.6 | AA70: 1.6 | AB70: 180 | AE70: 6-12 (grades 9-12) | AF70: 1.6 | AG70: 1.6 | AH70: 180
A71: HS | B71: 1.6 | C71: 1.6 | D71: 180 | G71: HS | H71: 1.6 | I71: 1.6 | J71: 180 | M71: HS | N71: 1.6 | O71: 1.6 | P71: 180 | S71: HS | T71: 1.6 | U71: 1.6 | V71: 180 | Y71: HS | Z71: 1.6 | AA71: 1.6 | AB71: 180 | AE71: HS | AF71: 1.6 | AG71: 1.6 | AH71: 180
E72: 1- # of Students | K72: 1- # of Students | Q72: 1- # of Students | W72: 1- # of Students | AC72: 1- # of Students | AI72: 1- # of Students
B73: ES | E73: ='Start Here - Data Entry '!$F$17 -> NA | H73: ES | K73: =IF('Start Here - Data Entry '!$E$5=G15,'Start Here - Data Entry '!$G$17,0) -> 0 | N73: ES | Q73: =IF('Start Here - Data Entry '!$E$5=M15,'Start Here - Data Entry '!$H$17,0) -> 0 | T73: ES | W73: =IF('Start Here - Data Entry '!$E$5=S15,'Start Here - Data Entry '!$I$17,0) -> 0 | Z73: ES | AC73: =IF('Start Here - Data Entry '!$E$5=Y15,'Start Here - Data Entry '!$J$17,0) -> 0 | AF73: ES | AI73: =IF('Start Here - Data Entry '!$E$5=AE15,'Start Here - Data Entry '!$K$17,0) -> 0
B74: K-8 | E74: ='Start Here - Data Entry '!$F$17 -> NA | H74: K-8 | K74: =IF('Start Here - Data Entry '!$E$5=G16,'Start Here - Data Entry '!$G$17,0) -> 0 | N74: K-8 | Q74: =IF('Start Here - Data Entry '!$E$5=M16,'Start Here - Data Entry '!$H$17,0) -> 0 | T74: K-8 | W74: =IF('Start Here - Data Entry '!$E$5=S16,'Start Here - Data Entry '!$I$17,0) -> 0 | Z74: K-8 | AC74: =IF('Start Here - Data Entry '!$E$5=Y16,'Start Here - Data Entry '!$J$17,0) -> 0 | AF74: K-8 | AI74: =IF('Start Here - Data Entry '!$E$5=AE16,'Start Here - Data Entry '!$K$17,0) -> 0
B75: MS | E75: ='Start Here - Data Entry '!$F$17 -> NA | H75: MS | K75: =IF('Start Here - Data Entry '!$E$5=G17,'Start Here - Data Entry '!$G$17,0) -> 0 | N75: MS | Q75: =IF('Start Here - Data Entry '!$E$5=M17,'Start Here - Data Entry '!$H$17,0) -> 0 | T75: MS | W75: =IF('Start Here - Data Entry '!$E$5=S17,'Start Here - Data Entry '!$I$17,0) -> 0 | Z75: MS | AC75: =IF('Start Here - Data Entry '!$E$5=Y17,'Start Here - Data Entry '!$J$17,0) -> 0 | AF75: MS | AI75: =IF('Start Here - Data Entry '!$E$5=AE17,'Start Here - Data Entry '!$K$17,0) -> 0
B76: 6-12 (grades 6-8) | E76: ='Start Here - Data Entry '!$F$18 -> NA | H76: 6-12 (grades 6-8) | K76: =IF('Start Here - Data Entry '!$E$5=G18,'Start Here - Data Entry '!$G$17,0) -> 0 | N76: 6-12 (grades 6-8) | Q76: =IF('Start Here - Data Entry '!$E$5=M18,'Start Here - Data Entry '!$H$17,0) -> 0 | T76: 6-12 (grades 6-8) | W76: =IF('Start Here - Data Entry '!$E$5=S18,'Start Here - Data Entry '!$I$17,0) -> 0 | Z76: 6-12 (grades 6-8) | AC76: =IF('Start Here - Data Entry '!$E$5=Y18,'Start Here - Data Entry '!$J$17,0) -> 0 | AF76: 6-12 (grades 6-8) | AI76: =IF('Start Here - Data Entry '!$E$5=AE18,'Start Here - Data Entry '!$K$17,0) -> 0
B77: 6-12 (grades 9-12) | E77: ='Start Here - Data Entry '!$F$19 -> NA | H77: 6-12 (grades 9-12) | K77: ='Start Here - Data Entry '!G19 -> 0 | N77: 6-12 (grades 9-12) | Q77: =IF('Start Here - Data Entry '!$E$5=M19,'Start Here - Data Entry '!$H$17,0) -> 40 | T77: 6-12 (grades 9-12) | W77: =IF('Start Here - Data Entry '!$E$5=S19,'Start Here - Data Entry '!$I$17,0) -> 60 | Z77: 6-12 (grades 9-12) | AC77: =IF('Start Here - Data Entry '!$E$5=Y19,'Start Here - Data Entry '!$J$17,0) -> 80 | AF77: 6-12 (grades 9-12) | AI77: ='Start Here - Data Entry '!K19 -> 0
B78: HS | E78: ='Start Here - Data Entry '!$F$17 -> NA | H78: HS | K78: =IF('Start Here - Data Entry '!$E$5=G19,'Start Here - Data Entry '!$G$17,0) -> 20 | N78: HS | Q78: =IF('Start Here - Data Entry '!$E$5=M19,'Start Here - Data Entry '!$H$17,0) -> 40 | T78: HS | W78: =IF('Start Here - Data Entry '!$E$5=S20,'Start Here - Data Entry '!$I$17,0) -> 0 | Z78: HS | AC78: =IF('Start Here - Data Entry '!$E$5=Y19,'Start Here - Data Entry '!$J$17,0) -> 80 | AF78: HS | AI78: =IF('Start Here - Data Entry '!$E$5=AE19,'Start Here - Data Entry '!$K$17,0) -> 80
E79: 2- Alloc Group | K79: 2- Alloc Group | Q79: 2- Alloc Group | W79: 2- Alloc Group | AC79: 2- Alloc Group | AI79: 2- Alloc Group
B80: ES | E80: =ROUNDDOWN((IF(E73<B59,0,(D50/C59))),0) -> 0 | H80: ES | K80: =ROUNDDOWN((IF(K73<H59,0,(J50/I59))),0) -> 0 | N80: ES | Q80: =ROUNDDOWN((IF(Q73<N59,0,(P50/O59))),0) -> 0 | T80: ES | W80: =ROUNDDOWN((IF(W73<T59,0,(V50/U59))),0) -> 0 | Z80: ES | AC80: =ROUNDDOWN((IF(AC73<Z59,0,(AB50/AA59))),0) -> 0 | AF80: ES | AI80: =ROUNDDOWN((IF(AI73<AF59,0,(AH50/AG59))),0) -> 0
B81: K-8 | E81: 0 | H81: K-8 | K81: =ROUNDDOWN((IF(K74<H60,0,(J51/I60))),0) -> 0 | N81: K-8 | Q81: 0 | T81: K-8 | W81: 0 | Z81: K-8 | AC81: 0 | AF81: K-8 | AI81: 0
B82: MS | E82: 0 | H82: MS | K82: 0 | N82: MS | Q82: 0 | T82: MS | W82: 0 | Z82: MS | AC82: 0 | AF82: MS | AI82: 0
B83: 6-12 (grades 6-8) | E83: 0 | H83: 6-12 (grades 6-8) | K83: 0 | N83: 6-12 (grades 6-8) | Q83: 0 | T83: 6-12 (grades 6-8) | W83: 0 | Z83: 6-12 (grades 6-8) | AC83: 0 | AF83: 6-12 (grades 6-8) | AI83: 0
B84: 6-12 (grades 9-12) | E84: 0 | H84: 6-12 (grades 9-12) | K84: 0 | N84: 6-12 (grades 9-12) | Q84: 0 | T84: 6-12 (grades 9-12) | W84: 3 | Z84: 6-12 (grades 9-12) | AC84: 5 | AF84: 6-12 (grades 9-12) | AI84: 0
B85: HS | H85: HS | K85: 1 | N85: HS | Q85: 0 | T85: HS | W85: 0 | Z85: HS | AC85: 5 | AF85: HS | AI85: 5
E86: 3- Total Alloc | K86: 3- Total Alloc | Q86: 3- Total Alloc | W86: 3- Total Alloc | AC86: 3- Total Alloc | AI86: 3- Total Alloc
B87: ES | E87: =IF(E73>=B59,IF(E73<(B59+C59),(E80*C66*D66*$C$57),(E80*C66*D66*$C$57)),0) -> 0 | H87: ES | K87: =IF(K73>=H59,IF(K73<(H59+I59),(K80*I66*J66*$C$57),(K80*I66*J66*$C$57)),0) -> 0 | N87: ES | Q87: =IF(Q73>=N59,IF(Q73<(N59+O59),(Q80*O66*P66*$C$57),(Q80*O66*P66*$C$57)),0) -> 0 | T87: ES | W87: =IF(W73>=T59,IF(W73<(T59+U59),(W80*U66*V66*$C$57),(W80*U66*V66*$C$57)),0) -> 0 | Z87: ES | AC87: =IF(AC73>=Z59,IF(AC73<(Z59+AA59),(AC80*AA66*AB66*$C$57),(AC80*AA66*AB66*$C$57)),0) -> 0 | AF87: ES | AI87: =IF(AI73>=AF59,IF(AI73<(AF59+AG59),(AI80*AG66*AH66*$C$57),(AI80*AG66*AH66*$C$57)),0) -> 0
B88: K-8 | E88: =IF(E74>=B60,IF(E74<(B60+C60),(E81*C67*D67*$C$57),(E81*C67*D67*$C$57)),0) -> 0 | H88: K-8 | K88: =IF(K74>=H60,IF(K74<(H60+I60),(K81*I67*J67*$C$57),(K81*I67*J67*$C$57)),0) -> 0 | N88: K-8 | Q88: =IF(Q74>=N60,IF(Q74<(N60+O60),(Q81*O67*P67*$C$57),(Q81*O67*P67*$C$57)),0) -> 0 | T88: K-8 | W88: =IF(W74>=T60,IF(W74<(T60+U60),(W81*U67*V67*$C$57),(W81*U67*V67*$C$57)),0) -> 0 | Z88: K-8 | AC88: =IF(AC74>=Z60,IF(AC74<(Z60+AA60),(AC81*AA67*AB67*$C$57),(AC81*AA67*AB67*$C$57)),0) -> 0 | AF88: K-8 | AI88: =IF(AI74>=AF60,IF(AI74<(AF60+AG60),(AI81*AG67*AH67*$C$57),(AI81*AG67*AH67*$C$57)),0) -> 0
B89: MS | E89: =IF(E75=B61,(E82*B68*D68*$C$57),(E82*C68*D68*$C$57)) -> 0 | H89: MS | K89: =IF(K75=H61,(K82*H68*J68*$C$57),(K82*I68*J68*$C$57)) -> 0 | N89: MS | Q89: =IF(Q75=N61,(Q82*N68*P68*$C$57),(Q82*O68*P68*$C$57)) -> 0 | T89: MS | W89: =IF(W75=T61,(W82*T68*V68*$C$57),(W82*U68*V68*$C$57)) -> 0 | Z89: MS | AC89: =IF(AC75=Z61,(AC82*Z68*AB68*$C$57),(AC82*AA68*AB68*$C$57)) -> 0 | AF89: MS | AI89: =IF(AI75=AF61,(AI82*AF68*AH68*$C$57),(AI82*AG68*AH68*$C$57)) -> 0
B90: 6-12 (grades 6-8) | E90: =IF(E76=B62,(E83*B69*D69*$C$57),(E83*C69*D69*$C$57)) -> 0 | H90: 6-12 (grades 6-8) | K90: =IF(K76=H62,(K83*H69*J69*$C$57),(K83*I69*J69*$C$57)) -> 0 | N90: 6-12 (grades 6-8) | Q90: =IF(Q76=N62,(Q83*N69*P69*$C$57),(Q83*O69*P69*$C$57)) -> 0 | T90: 6-12 (grades 6-8) | W90: =IF(W76=T62,(W83*T69*V69*$C$57),(W83*U69*V69*$C$57)) -> 0 | Z90: 6-12 (grades 6-8) | AC90: =IF(AC76=Z62,(AC83*Z69*AB69*$C$57),(AC83*AA69*AB69*$C$57)) -> 0 | AF90: 6-12 (grades 6-8) | AI90: =IF(AI76=AF62,(AI83*AF69*AH69*$C$57),(AI83*AG69*AH69*$C$57)) -> 0
B91: 6-12 (grades 9-12) | E91: =IF(E77=B63,(E84*B70*D70*$C$57),(E84*C70*D70*$C$57)) -> 0 | H91: 6-12 (grades 9-12) | K91: =IF(K77=H63,(K84*H70*J70*$C$57),(K84*I70*J70*$C$57)) -> 0 | N91: 6-12 (grades 9-12) | Q91: =IF(Q77=N63,(Q84*N70*P70*$C$57),(Q84*O70*P70*$C$57)) -> 0 | T91: 6-12 (grades 9-12) | W91: =IF(W77=T63,(W84*T70*V70*$C$57),(W84*U70*V70*$C$57)) -> 10523.52 | Z91: 6-12 (grades 9-12) | AC91: =IF(AC77=Z63,(AC84*Z70*AB70*$C$57),(AC84*AA70*AB70*$C$57)) -> 17539.2 | AF91: 6-12 (grades 9-12) | AI91: =IF(AI77=AF63,(AI84*AF70*AH70*$C$57),(AI84*AG70*AH70*$C$57)) -> 0
B92: HS | E92: =IF(E78=B64,(E85*B71*D71*$C$57),(E85*C71*D71*$C$57)) ->  | H92: HS | K92: =IF(K78=H64,(K85*H71*J71*$C$57),(K85*I71*J71*$C$57)) -> 3507.84 | N92: HS | Q92: =IF(Q78=N64,(Q85*N71*P71*$C$57),(Q85*O71*P71*$C$57)) -> 0 | T92: HS | W92: =IF(W78=T64,(W85*T71*V71*$C$57),(W85*U71*V71*$C$57)) -> 0 | Z92: HS | AC92: =IF(AC78=Z64,(AC85*Z71*AB71*$C$57),(AC85*AA71*AB71*$C$57)) -> 17539.2 | AF92: HS | AI92: =IF(AI78=AF64,(AI85*AF71*AH71*$C$57),(AI85*AG71*AH71*$C$57)) -> 17539.2
B95: MILL LEVY | H95: MILL LEVY | N95: MILL LEVY | T95: MILL LEVY | Z95: MILL LEVY | AF95: MILL LEVY
B96: Funding Source | C96: Rate | D96: Students | E96: Total | H96: Funding Source | I96: Rate | J96: Students | K96: Total | N96: Funding Source | O96: Rate | P96: Students | Q96: Total | T96: Funding Source | U96: Rate | V96: Students | W96: Total | Z96: Funding Source | AA96: Rate | AB96: Students | AC96: Total | AF96: Funding Source | AG96: Rate | AH96: Students | AI96: Total
B97: Student Literacy Development (K-12 - K@.5) | C97: 69 | D97: =D12 ->  | E97: =D97*C97 ->  | H97: Student Literacy Development (K-12 - K@.5) | I97: 69 | J97: =J12 -> 60 | K97: =J97*I97 -> 4140 | N97: Student Literacy Development (K-12 - K@.5) | O97: =I97 -> 69 | P97: =P12 -> 120 | Q97: =P97*O97 -> 8280 | T97: Student Literacy Development (K-12 - K@.5) | U97: 69 | V97: =V12 -> 180 | W97: =V97*U97 -> 12420 | Z97: Student Literacy Development (K-12 - K@.5) | AA97: 69 | AB97: =AB12 -> 240 | AC97: =AB97*AA97 -> 16560 | AF97: Student Literacy Development (K-12 - K@.5) | AG97: 69 | AH97: =AH12 -> 240 | AI97: =AH97*AG97 -> 16560
B98: Technology (ECE-12 @ 1.00) | C98: 22 | D98: ='Start Here - Data Entry '!$F26 -> NA | E98: =D98*C98 ->  | H98: Technology (ECE-12 @ 1.00) | I98: 22 | J98: ='Start Here - Data Entry '!$G26 -> 60 | K98: =J98*I98 -> 1320 | N98: Technology (ECE-12 @ 1.00) | O98: =I98 -> 22 | P98: ='Start Here - Data Entry '!$H26 -> 120 | Q98: =P98*O98 -> 2640 | T98: Technology (ECE-12 @ 1.00) | U98: 22 | V98: ='Start Here - Data Entry '!$I26 -> 180 | W98: =V98*U98 -> 3960 | Z98: Technology (ECE-12 @ 1.00) | AA98: 22 | AB98: ='Start Here - Data Entry '!$J26 -> 240 | AC98: =AB98*AA98 -> 5280 | AF98: Technology (ECE-12 @ 1.00) | AG98: 22 | AH98: ='Start Here - Data Entry '!$K26 -> 240 | AI98: =AH98*AG98 -> 5280
B99: Art & Music FTE (x = projectecd enrollment , k-8 - k @ 0.5) | D99: $$ Alloc = | E99: =IF('Start Here - Data Entry '!$E$5>2,0,(IF(D106<=A101,E101,(IF(D106<=A102,E102,(IF(D106<=A103,E103,(IF(D106<=A104,E104,E105))))))))) -> 0 | H99: Art & Music FTE (x = projectecd enrollment , k-8 - k @ 0.5) | J99: $$ Alloc = | K99: =IF('Start Here - Data Entry '!$E$5>2,0,(IF(J106<=G101,K101,(IF(J106<=G102,K102,(IF(J106<=G103,K103,(IF(J106<=G104,K104,K105))))))))) -> 0 | N99: Art & Music FTE (x = projectecd enrollment , k-8 - k @ 0.5) | P99: $$ Alloc = | Q99: =IF('Start Here - Data Entry '!$E$5>2,0,(IF(P106<=M101,Q101,(IF(P106<=M102,Q102,(IF(P106<=M103,Q103,(IF(P106<=M104,Q104,Q105))))))))) -> 0 | T99: Art & Music FTE (x = projectecd enrollment , k-8 - k @ 0.5) | V99: $$ Alloc = | W99: =IF('Start Here - Data Entry '!$E$5>2,0,(IF(V106<=S101,W101,(IF(V106<=S102,W102,(IF(V106<=S103,W103,(IF(V106<=S104,W104,W105))))))))) -> 0 | Z99: Art & Music FTE (x = projectecd enrollment , k-8 - k @ 0.5) | AB99: $$ Alloc = | AC99: =IF('Start Here - Data Entry '!$E$5>2,0,(IF(AB106<=Y101,AC101,(IF(AB106<=Y102,AC102,(IF(AB106<=Y103,AC103,(IF(AB106<=Y104,AC104,AC105))))))))) -> 0 | AF99: Art & Music FTE (x = projectecd enrollment , k-8 - k @ 0.5) | AH99: $$ Alloc = | AI99: =IF('Start Here - Data Entry '!$E$5>2,0,(IF(AH106<=AE101,AI101,(IF(AH106<=AE102,AI102,(IF(AH106<=AE103,AI103,(IF(AH106<=AE104,AI104,AI105))))))))) -> 0
A100: Data Range | B100: (Only ES and K-8) | D100: FTE = | E100: =IF('Start Here - Data Entry '!$E$5>2,0,(IF(D106<=A101,C101,(IF(D106<=A102,C102,(IF(D106<=A103,C103,(IF(D106<=A104,C104,C105))))))))) -> 0 | G100: Data Range | H100: (Only ES and K-8) | J100: FTE = | K100: =IF('Start Here - Data Entry '!$E$5>2,0,(IF(J106<=G101,I101,(IF(J106<=G102,I102,(IF(J106<=G103,I103,(IF(J106<=G104,I104,I105))))))))) -> 0 | M100: Data Range | N100: (Only ES and K-8) | P100: FTE = | Q100: =IF('Start Here - Data Entry '!$E$5>2,0,(IF(P106<=M101,O101,(IF(P106<=M102,O102,(IF(P106<=M103,O103,(IF(P106<=M104,O104,O105))))))))) -> 0 | S100: Data Range | T100: (Only ES and K-8) | V100: FTE = | W100: =IF('Start Here - Data Entry '!$E$5>2,0,(IF(V106<=S101,U101,(IF(V106<=S102,U102,(IF(V106<=S103,U103,(IF(V106<=S104,U104,U105))))))))) -> 0 | Y100: Data Range | Z100: (Only ES and K-8) | AB100: FTE = | AC100: =IF('Start Here - Data Entry '!$E$5>2,0,(IF(AB106<=Y101,AA101,(IF(AB106<=Y102,AA102,(IF(AB106<=Y103,AA103,(IF(AB106<=Y104,AA104,AA105))))))))) -> 0 | AE100: Data Range | AF100: (Only ES and K-8) | AH100: FTE = | AI100: =IF('Start Here - Data Entry '!$E$5>2,0,(IF(AH106<=AE101,AG101,(IF(AH106<=AE102,AG102,(IF(AH106<=AE103,AG103,(IF(AH106<=AE104,AG104,AG105))))))))) -> 0
A101: 200 | B101: x <=200 | C101: 0.5 | D101: =$D$106 -> 0 | E101: =C101*$E$5 -> 33757.5 | G101: 200 | H101: x <=200 | I101: 0.5 | J101: =$J$106 -> 0 | K101: =I101*$K$5 -> 33757.5 | M101: 200 | N101: x <=200 | O101: =I101 -> 0.5 | P101: =$P$106 -> 0 | Q101: =O101*$Q$5 -> 33757.5 | S101: 200 | T101: x <=200 | U101: 0.5 | V101: =$V$106 -> 0 | W101: =U101*$W$5 -> 33757.5 | Y101: 200 | Z101: x <=200 | AA101: 0.5 | AB101: =$AB$106 -> 0 | AC101: =AA101*$AC$5 -> 33757.5 | AE101: 200 | AF101: x <=200 | AG101: 0.5 | AH101: =$AH$106 -> 0 | AI101: =AG101*$AI$5 -> 33757.5
A102: 400 | B102: 200 < x <= 400 | C102: 1 | D102: =$D$106 -> 0 | E102: =C102*$E$5 -> 67515 | G102: 400 | H102: 200 < x <= 400 | I102: 1 | J102: =$J$106 -> 0 | K102: =I102*$K$5 -> 67515 | M102: 400 | N102: 200 < x <= 400 | O102: =I102 -> 1 | P102: 0 | Q102: =O102*$Q$5 -> 67515 | S102: 400 | T102: 200 < x <= 400 | U102: 1 | V102: =$V$106 -> 0 | W102: =U102*$W$5 -> 67515 | Y102: 400 | Z102: 200 < x <= 400 | AA102: 1 | AB102: 0 | AC102: =AA102*$AC$5 -> 67515 | AE102: 400 | AF102: 200 < x <= 400 | AG102: 1 | AH102: 0 | AI102: =AG102*$AI$5 -> 67515
A103: 549 | B103: 400 < x <= 549 | C103: 1 | D103: =$D$106 -> 0 | E103: =C103*$E$5 -> 67515 | G103: 549 | H103: 400 < x <= 549 | I103: 1 | J103: =$J$106 -> 0 | K103: =I103*$K$5 -> 67515 | M103: 549 | N103: 400 < x <= 549 | O103: 1 | P103: 0 | Q103: =O103*$Q$5 -> 67515 | S103: 549 | T103: 400 < x <= 549 | U103: 1 | V103: =$V$106 -> 0 | W103: =U103*$W$5 -> 67515 | Y103: 549 | Z103: 400 < x <= 549 | AA103: 1 | AB103: 0 | AC103: =AA103*$AC$5 -> 67515 | AE103: 549 | AF103: 400 < x <= 549 | AG103: 1 | AH103: 0 | AI103: =AG103*$AI$5 -> 67515
A104: 600 | B104: 549 < x <= 600 | C104: 1.5 | D104: =$D$106 -> 0 | E104: =C104*$E$5 -> 101272.5 | G104: 600 | H104: 549 < x <= 600 | I104: 1.5 | J104: =$J$106 -> 0 | K104: =I104*$K$5 -> 101272.5 | M104: 600 | N104: 549 < x <= 600 | O104: 1.5 | P104: 0 | Q104: =O104*$Q$5 -> 101272.5 | S104: 600 | T104: 549 < x <= 600 | U104: 1.5 | V104: =$V$106 -> 0 | W104: =U104*$W$5 -> 101272.5 | Y104: 600 | Z104: 549 < x <= 600 | AA104: 1.5 | AB104: 0 | AC104: =AA104*$AC$5 -> 101272.5 | AE104: 600 | AF104: 549 < x <= 600 | AG104: 1.5 | AH104: 0 | AI104: =AG104*$AI$5 -> 101272.5
B105: 600 < x | C105: 2 | D105: =$D$106 -> 0 | E105: =C105*$E$5 -> 135030 | H105: 600 < x | I105: 2 | J105: =$J$106 -> 0 | K105: =I105*$K$5 -> 135030 | N105: 600 < x | O105: 2 | P105: 0 | Q105: =O105*$Q$5 -> 135030 | T105: 600 < x | U105: 2 | V105: =$V$106 -> 0 | W105: =U105*$W$5 -> 135030 | Z105: 600 < x | AA105: 2 | AB105: 0 | AC105: =AA105*$AC$5 -> 135030 | AF105: 600 < x | AG105: 2 | AH105: 0 | AI105: =AG105*$AI$5 -> 135030
B106: Arts Resource Allocation (K - 8 - K @ 0.5) | C106: 7 | E106: =IF('Start Here - Data Entry '!$E$5>2,0,D106*C106) -> 0 | H106: Arts Resource Allocation (K - 8 - K @ 0.5) | I106: 7 | K106: =IF('Start Here - Data Entry '!$E$5>2,0,J106*I106) -> 0 | N106: Arts Resource Allocation (K - 8 ) | O106: 7 | Q106: =IF('Start Here - Data Entry '!$E$5>2,0,P106*O106) -> 0 | T106: Arts Resource Allocation (K - 8 - K @ 0.5) | U106: 7 | W106: =IF('Start Here - Data Entry '!$E$5>2,0,V106*U106) -> 0 | Z106: Arts Resource Allocation (K - 8 - K @ 0.5) | AA106: 7 | AC106: =IF('Start Here - Data Entry '!$E$5>2,0,AB106*AA106) -> 0 | AF106: Arts Resource Allocation (K - 8 - K @ 0.5) | AG106: 7 | AI106: =IF('Start Here - Data Entry '!$E$5>2,0,AH106*AG106) -> 0
B107: Textbooks - Fund 16 (K-12 @ 1.00) | C107: 10 | E107: =D107*C107 -> 0 | H107: Textbooks - Fund 16 (K-12 @ 1.00) | I107: 10 | J107: ='Start Here - Data Entry '!$G26-'Start Here - Data Entry '!$G22 -> 60 | K107: =J107*I107 -> 600 | N107: Textbooks - Fund 16 (K-12) | O107: 10 | P107: 0 | Q107: =P107*O107 -> 0 | T107: Textbooks - Fund 16 (K-12 @ 1.00) | U107: 10 | V107: =$V$106 -> 0 | W107: =V107*U107 -> 0 | Z107: Textbooks - Fund 16 (K-12 @ 1.00) | AA107: 10 | AB107: 0 | AC107: =AB107*AA107 -> 0 | AF107: Textbooks - Fund 16 (K-12 @ 1.00) | AG107: 10 | AH107: 0 | AI107: =AH107*AG107 -> 0
B108: Library Books Centrally Managed Fund 12 (ECE-12 @ 1.00) | C108: 6 | D108: ='Start Here - Data Entry '!$F26 -> NA | E108: =D108*C108 ->  | H108: Library Books Centrally Managed Fund 12 (ECE-12 @ 1.00) | I108: 6 | J108: ='Start Here - Data Entry '!$G26 -> 60 | K108: =J108*I108 -> 360 | N108: Library Books Centrally Managed Fund 12 (ECE-12 @ 1.00) | O108: 6 | P108: 0 | Q108: =P108*O108 -> 0 | T108: Library Books Centrally Managed Fund 12 (ECE-12 @ 1.00) | U108: 6 | V108: 0 | W108: =V108*U108 -> 0 | Z108: Library Books Centrally Managed Fund 12 (ECE-12 @ 1.00) | AA108: 6 | AB108: 0 | AC108: =AB108*AA108 -> 0 | AF108: Library Books Centrally Managed Fund 12 (ECE-12 @ 1.00) | AG108: 6 | AH108: 0 | AI108: =AH108*AG108 -> 0
H109: PE Fund | J109: $$ Alloc = | K109: =IF('Start Here - Data Entry '!$E$5>25,0,(IF(J116<=G111,K111,(IF(J116<=G112,K112,(IF(J116<=G113,K113,(IF(J116<=G114,K114,K115))))))))) -> 33757.5 | N109: PE Fund | P109: $$ Alloc = | Q109: =IF('Start Here - Data Entry '!$E$5>25,0,(IF(P116<=M111,Q111,(IF(P116<=M112,Q112,(IF(P116<=M113,Q113,(IF(P116<=M114,Q114,Q115))))))))) -> 33757.5 | T109: PE Fund | V109: $$ Alloc = | W109: =IF('Start Here - Data Entry '!$E$5>25,0,(IF(V116<=S111,W111,(IF(V116<=S112,W112,(IF(V116<=S113,W113,(IF(V116<=S114,W114,W115))))))))) -> 33757.5 | Z109: PE Fund | AB109: $$ Alloc = | AC109: =IF('Start Here - Data Entry '!$E$5>25,0,(IF(AB116<=Y111,AC111,(IF(AB116<=Y112,AC112,(IF(AB116<=Y113,AC113,(IF(AB116<=Y114,AC114,AC115))))))))) -> 67515 | AF109: PE Fund | AH109: $$ Alloc = | AI109: =IF('Start Here - Data Entry '!$E$5>25,0,(IF(AH116<=AE111,AI111,(IF(AH116<=AE112,AI112,(IF(AH116<=AE113,AI113,(IF(AH116<=AE114,AI114,AI115))))))))) -> 33757.5
G110: Data Range | J110: FTE = | K110: =IF('Start Here - Data Entry '!$E$5<0,0,(IF(J125<=G111,I111,(IF(J125<=G112,I112,(IF(J125<=G113,I113,(IF(J125<=G114,I114,I115))))))))) -> 0.5 | M110: Data Range | N110: (Only ES and K-8) | P110: FTE = | Q110: =IF('Start Here - Data Entry '!$E$5<0,0,(IF(P125<=M111,O111,(IF(P125<=M112,O112,(IF(P125<=M113,O113,(IF(P125<=M114,O114,O115))))))))) -> 0.5 | S110: Data Range | T110: (Only ES and K-8) | V110: FTE = | W110: =IF('Start Here - Data Entry '!$E$5<0,0,(IF(V125<=S111,U111,(IF(V125<=S112,U112,(IF(V125<=S113,U113,(IF(V125<=S114,U114,U115))))))))) -> 0.5 | Y110: Data Range | Z110: (Only ES and K-8) | AB110: FTE = | AC110: =IF('Start Here - Data Entry '!$E$5<0,0,(IF(AB125<=Y111,AA111,(IF(AB125<=Y112,AA112,(IF(AB125<=Y113,AA113,(IF(AB125<=Y114,AA114,AA115))))))))) -> 1 | AE110: Data Range | AF110: (Only ES and K-8) | AH110: FTE = | AI110: =IF('Start Here - Data Entry '!$E$5<0,0,(IF(AH125<=AE111,AG111,(IF(AH125<=AE112,AG112,(IF(AH125<=AE113,AG113,(IF(AH125<=AE114,AG114,AG115))))))))) -> 1
G111: 200 | H111: x <=200 | I111: 0.5 | J111: =$J$106 -> 0 | K111: =I111*$K$5 -> 33757.5 | M111: 200 | N111: x <=200 | O111: 0.5 | P111: =$P$106 -> 0 | Q111: =O111*$K$5 -> 33757.5 | S111: 200 | T111: x <=200 | U111: 0.5 | V111: =$V$106 -> 0 | W111: =U111*$K$5 -> 33757.5 | Y111: 200 | Z111: x <=200 | AA111: 0.5 | AB111: =$AB$106 -> 0 | AC111: =AA111*$K$5 -> 33757.5 | AE111: 200 | AF111: x <=200 | AG111: 0.5 | AH111: =$AH$106 -> 0 | AI111: =AG111*$K$5 -> 33757.5
G112: 400 | H112: 200 < x <= 400 | I112: 1 | J112: 0 | K112: =I112*$K$5 -> 67515 | M112: 400 | N112: 200 < x <= 400 | O112: 1 | P112: 0 | Q112: =O112*$K$5 -> 67515 | S112: 400 | T112: 200 < x <= 400 | U112: 1 | V112: 0 | W112: =U112*$K$5 -> 67515 | Y112: 400 | Z112: 200 < x <= 400 | AA112: 1 | AB112: 0 | AC112: =AA112*$K$5 -> 67515 | AE112: 400 | AF112: 200 < x <= 400 | AG112: 1 | AH112: 0 | AI112: =AG112*$K$5 -> 67515
G113: 549 | H113: 400 < x <= 549 | I113: 1 | J113: 0 | K113: =I113*$K$5 -> 67515 | M113: 549 | N113: 400 < x <= 549 | O113: 1 | P113: 0 | Q113: =O113*$K$5 -> 67515 | S113: 549 | T113: 400 < x <= 549 | U113: 1 | V113: 0 | W113: =U113*$K$5 -> 67515 | Y113: 549 | Z113: 400 < x <= 549 | AA113: 1 | AB113: 0 | AC113: =AA113*$K$5 -> 67515 | AE113: 549 | AF113: 400 < x <= 549 | AG113: 1 | AH113: 0 | AI113: =AG113*$K$5 -> 67515
G114: 600 | H114: 549 < x <= 600 | I114: 1.5 | J114: 0 | K114: =I114*$K$5 -> 101272.5 | M114: 600 | N114: 549 < x <= 600 | O114: 1.5 | P114: 0 | Q114: =O114*$K$5 -> 101272.5 | S114: 600 | T114: 549 < x <= 600 | U114: 1.5 | V114: 0 | W114: =U114*$K$5 -> 101272.5 | Y114: 600 | Z114: 549 < x <= 600 | AA114: 1.5 | AB114: 0 | AC114: =AA114*$K$5 -> 101272.5 | AE114: 600 | AF114: 549 < x <= 600 | AG114: 1.5 | AH114: 0 | AI114: =AG114*$K$5 -> 101272.5
H115: 600 < x | I115: 2 | J115: 0 | K115: =I115*$K$5 -> 135030 | N115: 600 < x | O115: 2 | P115: 0 | Q115: =O115*$K$5 -> 135030 | T115: 600 < x | U115: 2 | V115: 0 | W115: =U115*$K$5 -> 135030 | Z115: 600 < x | AA115: 2 | AB115: 0 | AC115: =AA115*$K$5 -> 135030 | AF115: 600 < x | AG115: 2 | AH115: 0 | AI115: =AG115*$K$5 -> 135030
H116: PE Supplies | I116: 5 | J116: 0 | K116: =I116*J116 -> 0 | N116: PE Supplies | O116: 5 | P116: 0 | Q116: =P12*5 -> 600 | T116: PE Supplies | U116: 5 | V116: 0 | W116: =V12*U116 -> 900 | Z116: PE Supplies | AA116: 5 | AB116: ='Start Here - Data Entry '!J26 -> 240 | AC116: =AB12*AA116 -> 1200 | AF116: PE Supplies | AG116: 5 | AH116: 0 | AI116: =AH12*5 -> 1200
H117: Art/Music Secondary | J117: $$ Alloc = | K117: =IF(OR('Start Here - Data Entry '!$E$5=3,'Start Here - Data Entry '!$E$5=4,'Start Here - Data Entry '!$E$5=5),K120,0) -> 33757.5 | N117: Art/Music Secondary | P117: =J117 -> $$ Alloc = | Q117: =IF(OR('Start Here - Data Entry '!$E$5=3,'Start Here - Data Entry '!$E$5=4,'Start Here - Data Entry '!$E$5=5),Q120,0) -> 33757.5 | T117: Art/Music Secondary | V117: $$ Alloc = | W117: =IF(OR('Start Here - Data Entry '!$E$5=3,'Start Here - Data Entry '!$E$5=4,'Start Here - Data Entry '!$E$5=5),W120,0) -> 33084 | Z117: Art/Music Secondary | AB117: $$ Alloc = | AC117: =IF(OR('Start Here - Data Entry '!$E$5=3,'Start Here - Data Entry '!$E$5=4,'Start Here - Data Entry '!$E$5=5),AC120,0) -> 38400 | AF117: Art/Music Secondary | AH117: $$ Alloc = | AI117: =IF(OR('Start Here - Data Entry '!$E$5=3,'Start Here - Data Entry '!$E$5=4,'Start Here - Data Entry '!$E$5=5),AI120,0) -> 38400
J118: FTE = | K118: 0.5 | P118: FTE = | Q118: 0.5 | V118: FTE = | W118: 0.5 | AB118: FTE = | AC118: 0.5 | AH118: FTE = | AI118: 0.5
H119: Art/Music MS & 6-12 & HS | J119: 160 | K119: =J12*J119 -> 9600 | N119: Art/Music MS & 6-12 & HS | P119: 160 | Q119: =P12*P119 -> 19200 | T119: Art/Music MS & 6-12 & HS | V119: 160 | W119: =V12*V119 -> 28800 | Z119: Art/Music MS & 6-12 & HS | AB119: 160 | AC119: =AB12*AB119 -> 38400 | AF119: Art/Music MS & 6-12 & HS | AH119: 160 | AI119: =AH12*AH119 -> 38400
H120: Minimum FTE | J120: 160 | K120: =IF(K119<$K$5/2,$K$5/2,K119) -> 33757.5 | N120: Minimum FTE | P120: 160 | Q120: =IF(Q119<$Q$5/2,$Q$5/2,Q119) -> 33757.5 | T120: Minimum FTE | V120: 160 | W120: =IF(W119<33084,33084,W119) -> 33084 | Z120: Minimum FTE | AB120: 160 | AC120: =IF(AC119<33084,33084,AC119) -> 38400 | AF120: Minimum FTE | AH120: 160 | AI120: =IF(AI119<33084,33084,AI119) -> 38400
H121: Art/Music HS | J121: 160 | K121: =$J$12*J121 -> 9600 | N121: Art/Music HS | P121: 160 | Q121: =P14*P121 -> 0 | T121: Art/Music HS | V121: 160 | W121: =V14*V121 -> 0 | Z121: Art/Music HS | AB121: 160 | AC121: =AB14*AB121 -> 0 | AF121: Art/Music HS | AH121: 160 | AI121: =AH14*AH121 -> 0
H122: Art/Music Alt | J122: 160 | K122: =$J$12*J122 -> 9600 | N122: Art/Music Alt | P122: 160 | Q122: =P15*P122 -> 0 | T122: Art/Music Alt | V122: 160 | W122: =V15*V122 -> 0 | Z122: Art/Music Alt | AB122: 160 | AC122: =AB15*AB122 -> 0 | AF122: Art/Music Alt | AH122: 160 | AI122: =AH15*AH122 -> 0
H123: Art/Music Charter | J123: 160 | K123: 9600 | N123: Art/Music Charter | P123: 160 | Q123: =P16*P123 -> 0 | T123: Art/Music Charter | V123: 160 | W123: =V16*V123 -> 0 | Z123: Art/Music Charter | AB123: 160 | AC123: =AB16*AB123 -> 0 | AF123: Art/Music Charter | AH123: 160 | AI123: =AH16*AH123 -> 0
H124: Art/Music Supplies | I124: 7 | J124: ='Start Here - Data Entry '!$G$26 -> 60 | K124: =IF(OR('Start Here - Data Entry '!$E$5=3,'Start Here - Data Entry '!$E$5=4,'Start Here - Data Entry '!$E$5=5),(I124*J124),0) -> 420 | N124: Art/Music Supplies | O124: 7 | P124: ='Start Here - Data Entry '!$H$26 -> 120 | Q124: =IF(OR('Start Here - Data Entry '!$E$5=3,'Start Here - Data Entry '!$E$5=4,'Start Here - Data Entry '!$E$5=5),(O124*P124),0) -> 840 | T124: Art/Music Supplies | U124: 7 | V124: ='Start Here - Data Entry '!$I$26 -> 180 | W124: =IF(OR('Start Here - Data Entry '!$E$5=3,'Start Here - Data Entry '!$E$5=4,'Start Here - Data Entry '!$E$5=5),(U124*V124),0) -> 1260 | Z124: Art/Music Supplies | AA124: 7 | AB124: ='Start Here - Data Entry '!$J$26 -> 240 | AC124: =IF(OR('Start Here - Data Entry '!$E$5=3,'Start Here - Data Entry '!$E$5=4,'Start Here - Data Entry '!$E$5=5),(AA124*AB124),0) -> 1680 | AF124: Art/Music Supplies | AG124: 7 | AH124: ='Start Here - Data Entry '!$K$26 -> 240 | AI124: =IF(OR('Start Here - Data Entry '!$E$5=3,'Start Here - Data Entry '!$E$5=4,'Start Here - Data Entry '!$E$5=5),(AG124*AH124),0) -> 1680
H125: Technology 2014 | I125: 45 | J125: ='Start Here - Data Entry '!$G$26 -> 60 | K125: =I125*J125 -> 2700 | N125: Technology 2014 | O125: 45 | P125: ='Start Here - Data Entry '!$H$26 -> 120 | Q125: =O125*P125 -> 5400 | T125: Technology 2014 | U125: 45 | V125: ='Start Here - Data Entry '!I26 -> 180 | W125: =U125*V125 -> 8100 | Z125: Technology 2014 | AA125: 45 | AB125: ='Start Here - Data Entry '!$J$26 -> 240 | AC125: =AA125*AB125 -> 10800 | AF125: Technology 2014 | AG125: 45 | AH125: ='Start Here - Data Entry '!$K$26 -> 240 | AI125: =AG125*AH125 -> 10800
H126: Tutoring | K126: 0 | N126: Tutoring | Q126: 0 | T126: Tutoring | W126: 0 | Z126: Tutoring | AC126: 0 | AF126: Tutoring | AI126: 0
B128: Title (based upon last year's enrollment for 5 year) | H128: Title (based upon last year's enrollment for 5 year) | N128: Title (based upon last year's enrollment for 5 year) | T128: Title (based upon last year's enrollment for 5 year) | Z128: Title (based upon last year's enrollment for 5 year) | AF128: Title (based upon last year's enrollment for 5 year)
B129: Funding Source | C129: Rate | D129: Students | E129: Total | H129: Funding Source | I129: Rate | J129: Students | K129: Total | N129: Funding Source | O129: Rate | P129: Students | Q129: Total | T129: Funding Source | U129: Rate | V129: Students | W129: Total | Z129: Funding Source | AA129: Rate | AB129: Students | AC129: Total | AF129: Funding Source | AG129: Rate | AH129: Students | AI129: Total
B130: Title I (K-12 K=.5 FRL) | C130: =C24 -> NA | D130: =D24 ->  | E130: =IF(D131>0,C131,IF(D132>0,C132,IF(D133>0,C133,IF(D134>0,C134,IF(D135>0,C135,C136))))) -> 415 | H130: Title I (K-12 K=1 FRL) | I130: =I24 -> 0.95 | J130: =J24 -> 57 | K130: =IF(J131>0,I131,IF(J132>0,I132,IF(J133>0,I133,IF(J134>0,I134,IF(J135>0,I135,I136))))) ->  | N130: Title I (K-12 K=.5 FRL) | O130: =O24 -> 0.95 | P130: =P24 -> 114 | Q130: =IF(P131>0,O131,IF(P132>0,O132,IF(P133>0,O133,IF(P134>0,O134,IF(P135>0,O135,O136))))) ->  | T130: Title I (K-12 K=.5 FRL) | U130: =U24 -> 0.95 | V130: =V24 -> 171 | W130: =IF(V131>0,U131,IF(V132>0,U132,IF(V133>0,U133,IF(V134>0,U134,IF(V135>0,U135,U136))))) ->  | Z130: Title I (K-12 K=.5 FRL) | AA130: =AA24 -> 0.95 | AB130: =AB24 -> 228 | AC130: =IF(AB131>0,AA131,IF(AB132>0,AA132,IF(AB133>0,AA133,IF(AB134>0,AA134,IF(AB135>0,AA135,AA136))))) ->  | AF130: Title I (K-12 K=.5 FRL) | AG130: =AG24 -> 0.95 | AH130: =AH24 -> 228 | AI130: =IF(AH131>0,AG131,IF(AH132>0,AG132,IF(AH133>0,AG133,IF(AH134>0,AG134,IF(AH135>0,AG135,AG136))))) -> 
B131: K - 5 (66 - 89.9%) | C131: 365 | D131: =ROUNDDOWN(IF($C$130>=C146,IF($C$130<=D146,($C$130*E139),0),0),0) -> 0 | E131: =C131*D131 -> 0 | H131: K - 5 (66 - 89.9%) | I131: 365 | J131: =ROUNDDOWN(IF($I$130>=I146,IF($I$130<=J146,($I$130*K139),0),0),0) -> 0 | K131: =I131*J131 -> 0 | N131: K - 5 (66 - 89.9%) | O131: 365 | P131: =ROUNDDOWN(IF($O$130>=O146,IF($O$130<=P146,($O$130*Q139),0),0),0) -> 0 | Q131: =O131*P131 -> 0 | T131: K - 5 (66 - 89.9%) | U131: 365 | V131: =ROUNDDOWN(IF($U$130>=U146,IF($U$130<=V146,($U$130*W139),0),0),0) -> 0 | W131: =U131*V131 -> 0 | Z131: K - 5 (66 - 89.9%) | AA131: 365 | AB131: =ROUNDDOWN(IF($AA$130>=AA146,IF($AA$130<=AB146,($AA$130*AC139),0),0),0) -> 0 | AC131: =AA131*AB131 -> 0 | AF131: K - 5 (66 - 89.9%) | AG131: 365 | AH131: =ROUNDDOWN(IF($AG$130>=AG146,IF($AG$130<=AH146,($AG$130*AI139),0),0),0) -> 0 | AI131: =AG131*AH131 -> 0
B132: K - 5 (90 - 100%) | C132: 415 | D132: 0 | E132: 0 | H132: K - 5 (90 - 100%) | I132: 415 | J132: =ROUNDDOWN(IF($I$130>=I147,IF($I$130<=J147,($I$130*K140),0),0),0) ->  | N132: K - 5 (90 - 100%) | O132: 415 | P132: =ROUNDDOWN(IF($O$130>=O147,IF($O$130<=P147,($O$130*Q140),0),0),0) ->  | T132: K - 5 (90 - 100%) | U132: 415 | V132: =ROUNDDOWN(IF($U$130>=U147,IF($U$130<=V147,($U$130*W140),0),0),0) ->  | Z132: K - 5 (90 - 100%) | AA132: 415 | AB132: =ROUNDDOWN(IF($AA$130>=AA147,IF($AA$130<=AB147,($AA$130*AC140),0),0),0) ->  | AF132: K - 5 (90 - 100%) | AG132: 415 | AH132: =ROUNDDOWN(IF($AG$130>=AG147,IF($AG$130<=AH147,($AG$130*AI140),0),0),0) -> 
B133: 6 - 8 (66 - 84.9%) | C133: 365 | D133: 0 | E133: 0 | H133: 6 - 8 (66 - 84.9%) | I133: 365 | J133: 0 | K133: 0 | N133: 6 - 8 (66 - 84.9%) | O133: 365 | P133: 0 | Q133: 0 | T133: 6 - 8 (66 - 84.9%) | U133: 365 | V133: 0 | W133: 0 | Z133: 6 - 8 (66 - 84.9%) | AA133: 365 | AB133: 0 | AC133: 0 | AF133: 6 - 8 (66 - 84.9%) | AG133: 365 | AH133: 0 | AI133: 0
B134: 6 - 8 (85 - 100%) | C134: 415 | D134: 0 | E134: 0 | H134: 6 - 8 (85 - 100%) | I134: 415 | J134: 0 | K134: 0 | N134: 6 - 8 (85 - 100%) | O134: 415 | P134: 0 | Q134: 0 | T134: 6 - 8 (85 - 100%) | U134: 415 | V134: 0 | W134: 0 | Z134: 6 - 8 (85 - 100%) | AA134: 415 | AB134: 0 | AC134: 0 | AF134: 6 - 8 (85 - 100%) | AG134: 415 | AH134: 0 | AI134: 0
B135: 9 - 12 (66 - 79.9%) | C135: 365 | D135: 0 | E135: 0 | H135: 9 - 12 (66 - 79.9%) | I135: 365 | J135: 0 | K135: 0 | N135: 9 - 12 (66 - 79.9%) | O135: 365 | P135: 0 | Q135: 0 | T135: 9 - 12 (66 - 79.9%) | U135: 365 | V135: 0 | W135: 0 | Z135: 9 - 12 (66 - 79.9%) | AA135: 365 | AB135: 0 | AC135: 0 | AF135: 9 - 12 (66 - 79.9%) | AG135: 365 | AH135: 0 | AI135: 0
B136: 9 - 12 (80 - 100%) | C136: 415 | D136: 0 | E136: 0 | H136: 9 - 12 (80 - 100%) | I136: 415 | J136: 57 | K136: 23655 | N136: 9 - 12 (80 - 100%) | O136: 415 | P136: 114 | Q136: 47310 | T136: 9 - 12 (80 - 100%) | U136: 415 | V136: 171 | W136: 70965 | Z136: 9 - 12 (80 - 100%) | AA136: 415 | AB136: 228 | AC136: 94620 | AF136: 9 - 12 (80 - 100%) | AG136: 415 | AH136: 228 | AI136: 94620
B137: **Title I - constants and calculations (see below) | H137: **Title I - constants and calculations (see below) | N137: **Title I - constants and calculations (see below) | T137: **Title I - constants and calculations (see below) | Z137: **Title I - constants and calculations (see below) | AF137: **Title I - constants and calculations (see below)
B138: Calculation | E138: # of Kids | H138: Calculation | K138: # of Kids | N138: Calculation | Q138: # of Kids | T138: Calculation | W138: # of Kids | Z138: Calculation | AC138: # of Kids | AF138: Calculation | AI138: # of Kids
B139: K - 5 (66 - 89.9%) | E139: ='Start Here - Data Entry '!#REF!+'Start Here - Data Entry '!$F23 ->  | H139: K - 5 (66 - 89.9%) | K139: ='Start Here - Data Entry '!#REF!+'Start Here - Data Entry '!$G23 ->  | N139: K - 5 (66 - 89.9%) | Q139: ='Start Here - Data Entry '!#REF!+'Start Here - Data Entry '!$H23 ->  | T139: K - 5 (66 - 89.9%) | W139: ='Start Here - Data Entry '!#REF!+'Start Here - Data Entry '!$I23 ->  | Z139: K - 5 (66 - 89.9%) | AC139: ='Start Here - Data Entry '!#REF!+'Start Here - Data Entry '!$J23 ->  | AF139: K - 5 (66 - 89.9%) | AI139: ='Start Here - Data Entry '!#REF!+'Start Here - Data Entry '!$K23 -> 
B140: K - 5 (90 - 100%) | E140: ='Start Here - Data Entry '!#REF!+'Start Here - Data Entry '!$F23 ->  | H140: K - 5 (90 - 100%) | K140: ='Start Here - Data Entry '!#REF!+'Start Here - Data Entry '!$G23 ->  | N140: K - 5 (90 - 100%) | Q140: ='Start Here - Data Entry '!#REF!+'Start Here - Data Entry '!$H23 ->  | T140: K - 5 (90 - 100%) | W140: ='Start Here - Data Entry '!#REF!+'Start Here - Data Entry '!$I23 ->  | Z140: K - 5 (90 - 100%) | AC140: ='Start Here - Data Entry '!#REF!+'Start Here - Data Entry '!$J23 ->  | AF140: K - 5 (90 - 100%) | AI140: ='Start Here - Data Entry '!#REF!+'Start Here - Data Entry '!$K23 -> 
B141: 6 - 8 (66 - 84.9%) | E141: ='Start Here - Data Entry '!$F24 -> NA | H141: 6 - 8 (66 - 84.9%) | K141: ='Start Here - Data Entry '!$G24 -> 0 | N141: 6 - 8 (66 - 84.9%) | Q141: ='Start Here - Data Entry '!$H24 -> 0 | T141: 6 - 8 (66 - 84.9%) | W141: ='Start Here - Data Entry '!$I24 -> 0 | Z141: 6 - 8 (66 - 84.9%) | AC141: ='Start Here - Data Entry '!$J24 -> 0 | AF141: 6 - 8 (66 - 84.9%) | AI141: ='Start Here - Data Entry '!$K24 -> 0
B142: 6 - 8 (85 - 100%) | E142: ='Start Here - Data Entry '!$F24 -> NA | H142: 6 - 8 (85 - 100%) | K142: ='Start Here - Data Entry '!$G24 -> 0 | N142: 6 - 8 (85 - 100%) | Q142: ='Start Here - Data Entry '!$H24 -> 0 | T142: 6 - 8 (85 - 100%) | W142: ='Start Here - Data Entry '!$I24 -> 0 | Z142: 6 - 8 (85 - 100%) | AC142: ='Start Here - Data Entry '!$J24 -> 0 | AF142: 6 - 8 (85 - 100%) | AI142: ='Start Here - Data Entry '!$K24 -> 0
B143: 9 - 12 (66 - 79.9%) | E143: ='Start Here - Data Entry '!$F25 -> NA | H143: 9 - 12 (66 - 79.9%) | K143: ='Start Here - Data Entry '!$G25 -> 60 | N143: 9 - 12 (66 - 79.9%) | Q143: ='Start Here - Data Entry '!$H25 -> 120 | T143: 9 - 12 (66 - 79.9%) | W143: ='Start Here - Data Entry '!$I25 -> 180 | Z143: 9 - 12 (66 - 79.9%) | AC143: ='Start Here - Data Entry '!$J25 -> 240 | AF143: 9 - 12 (66 - 79.9%) | AI143: ='Start Here - Data Entry '!$K25 -> 240
B144: 9 - 12 (80 - 100%) | E144: ='Start Here - Data Entry '!$F25 -> NA | H144: 9 - 12 (80 - 100%) | K144: ='Start Here - Data Entry '!$G25 -> 60 | N144: 9 - 12 (80 - 100%) | Q144: ='Start Here - Data Entry '!$H25 -> 120 | T144: 9 - 12 (80 - 100%) | W144: ='Start Here - Data Entry '!$I25 -> 180 | Z144: 9 - 12 (80 - 100%) | AC144: ='Start Here - Data Entry '!$J25 -> 240 | AF144: 9 - 12 (80 - 100%) | AI144: ='Start Here - Data Entry '!$K25 -> 240
B145: Constants | C145: Low Range | D145: High Range | H145: Constants | I145: Low Range | J145: High Range | N145: Constants | O145: Low Range | P145: High Range | T145: Constants | U145: Low Range | V145: High Range | Z145: Constants | AA145: Low Range | AB145: High Range | AF145: Constants | AG145: Low Range | AH145: High Range
B146: K - 5 (66 - 89.9%) | C146: 0.66 | D146: 0.899 | H146: K - 5 (66 - 89.9%) | I146: 0.66 | J146: 0.899 | N146: K - 5 (66 - 89.9%) | O146: 0.66 | P146: 0.899 | T146: K - 5 (66 - 89.9%) | U146: 0.66 | V146: 0.899 | Z146: K - 5 (66 - 89.9%) | AA146: 0.66 | AB146: 0.899 | AF146: K - 5 (66 - 89.9%) | AG146: 0.66 | AH146: 0.899
B147: K - 5 (90 - 100%) | C147: 0.9 | D147: 1 | H147: K - 5 (90 - 100%) | I147: 0.9 | J147: 1 | N147: K - 5 (90 - 100%) | O147: 0.9 | P147: 1 | T147: K - 5 (90 - 100%) | U147: 0.9 | V147: 1 | Z147: K - 5 (90 - 100%) | AA147: 0.9 | AB147: 1 | AF147: K - 5 (90 - 100%) | AG147: 0.9 | AH147: 1
B148: 6 - 8 (66 - 84.9%) | C148: 0.66 | D148: 0.849 | H148: 6 - 8 (66 - 84.9%) | I148: 0.66 | J148: 0.849 | N148: 6 - 8 (66 - 84.9%) | O148: 0.66 | P148: 0.849 | T148: 6 - 8 (66 - 84.9%) | U148: 0.66 | V148: 0.849 | Z148: 6 - 8 (66 - 84.9%) | AA148: 0.66 | AB148: 0.849 | AF148: 6 - 8 (66 - 84.9%) | AG148: 0.66 | AH148: 0.849
B149: 6 - 8 (85 - 100%) | C149: 0.85 | D149: 1 | H149: 6 - 8 (85 - 100%) | I149: 0.85 | J149: 1 | N149: 6 - 8 (85 - 100%) | O149: 0.85 | P149: 1 | T149: 6 - 8 (85 - 100%) | U149: 0.85 | V149: 1 | Z149: 6 - 8 (85 - 100%) | AA149: 0.85 | AB149: 1 | AF149: 6 - 8 (85 - 100%) | AG149: 0.85 | AH149: 1
B150: 9 - 12 (66 - 79.9%) | C150: 0.66 | D150: 0.799 | H150: 9 - 12 (66 - 79.9%) | I150: 0.66 | J150: 0.799 | N150: 9 - 12 (66 - 79.9%) | O150: 0.66 | P150: 0.799 | T150: 9 - 12 (66 - 79.9%) | U150: 0.66 | V150: 0.799 | Z150: 9 - 12 (66 - 79.9%) | AA150: 0.66 | AB150: 0.799 | AF150: 9 - 12 (66 - 79.9%) | AG150: 0.66 | AH150: 0.799
B151: 9 - 12 (80 - 100%) | C151: 0.8 | D151: 1 | H151: 9 - 12 (80 - 100%) | I151: 0.8 | J151: 1 | N151: 9 - 12 (80 - 100%) | O151: 0.8 | P151: 1 | T151: 9 - 12 (80 - 100%) | U151: 0.8 | V151: 1 | Z151: 9 - 12 (80 - 100%) | AA151: 0.8 | AB151: 1 | AF151: 9 - 12 (80 - 100%) | AG151: 0.8 | AH151: 1
B152: Title I Parental Involvement | C152: 5.92 | D152: =D130 ->  | E152: =IF(C130<0.66,0,C152*D152) ->  | H152: Title I Parental Involvement | I152: 5.92 | J152: =J130 -> 57 | K152: =IF(I130<0.66,0,I152*J152) -> 337.44 | N152: Title I Parental Involvement | O152: 5.92 | P152: =P130 -> 114 | Q152: =IF(O130<0.66,0,O152*P152) -> 674.88 | T152: Title I Parental Involvement | U152: 5.92 | V152: =V130 -> 171 | W152: =IF(U130<0.66,0,U152*V152) -> 1012.32 | Z152: Title I Parental Involvement | AA152: 5.92 | AB152: =AB130 -> 228 | AC152: =IF(AA130<0.66,0,AA152*AB152) -> 1349.76 | AF152: Title I Parental Involvement | AG152: 5.92 | AH152: =AH130 -> 228 | AI152: =IF(AG130<0.66,0,AG152*AH152) -> 1349.76
B153: Title II (K-12 K=.5) | C153: 0 | D153: =D12 ->  | E153: =C153*D153 ->  | H153: Title II (K-12 K=.5) | I153: 0 | J153: =J12 -> 60 | K153: =I153*J153 -> 0 | N153: Title II (K-12 K=.5) | O153: 0 | P153: =P12 -> 120 | Q153: =O153*P153 -> 0 | T153: Title II (K-12 K=.5) | U153: 0 | V153: =V12 -> 180 | W153: =U153*V153 -> 0 | Z153: Title II (K-12 K=.5) | AA153: 0 | AB153: =AB12 -> 240 | AC153: =AA153*AB153 -> 0 | AF153: Title II (K-12 K=.5) | AG153: 0 | AH153: =AH12 -> 240 | AI153: =AG153*AH153 -> 0
B155: Payback for Budget Assistance Calculation | H155: Payback for Budget Assistance Calculation | N155: Payback for Budget Assistance Calculation | T155: Payback for Budget Assistance Calculation | Z155: Payback for Budget Assistance Calculation | AF155: Payback for Budget Assistance Calculation
B156: Description | C156: Rate | D156: Students | E156: Total | H156: Description | I156: Rate | J156: Students | K156: Total | N156: Description | O156: Rate | P156: Students | Q156: Total | T156: Description | U156: Rate | V156: Students | W156: Total | Z156: Description | AA156: Rate | AB156: Students | AC156: Total | AF156: Description | AG156: Rate | AH156: Students | AI156: Total
B157: Kinder (0.5) enrollment change | C157: 0.5 | E157: ='Start Here - Data Entry '!#REF!*'Calculations - HIDE'!$C157 ->  | H157: Kinder (0.5) enrollment change | I157: 0.5 | K157: ='Start Here - Data Entry '!#REF!*'Calculations - HIDE'!$C157 ->  | N157: Kinder (0.5) enrollment change | O157: 0.5 | Q157: ='Start Here - Data Entry '!#REF!*'Calculations - HIDE'!$C157 ->  | T157: Kinder (0.5) enrollment change | U157: 0.5 | W157: ='Start Here - Data Entry '!#REF!*'Calculations - HIDE'!$C157 ->  | Z157: Kinder (0.5) enrollment change | AA157: 0.5 | AC157: ='Start Here - Data Entry '!#REF!*'Calculations - HIDE'!$C157 ->  | AF157: Kinder (0.5) enrollment change | AG157: 0.5 | AI157: ='Start Here - Data Entry '!#REF!*'Calculations - HIDE'!$C157 -> 
B158: Grades 1-12 enrollment change | C158: 1 | E158: =('Start Here - Data Entry '!$F23+'Start Here - Data Entry '!$F24+'Start Here - Data Entry '!$F25)*'Calculations - HIDE'!$C158 ->  | H158: Grades 1-12 enrollment change | I158: 1 | K158: =('Start Here - Data Entry '!$G23+'Start Here - Data Entry '!$G24+'Start Here - Data Entry '!$G25)*'Calculations - HIDE'!$C158 -> 60 | N158: Grades 1-12 enrollment change | O158: 1 | Q158: =('Start Here - Data Entry '!$H23+'Start Here - Data Entry '!$H24+'Start Here - Data Entry '!$H25)*'Calculations - HIDE'!$C158 -> 120 | T158: Grades 1-12 enrollment change | U158: 1 | W158: =('Start Here - Data Entry '!$I23+'Start Here - Data Entry '!$I24+'Start Here - Data Entry '!$I25)*'Calculations - HIDE'!$C158 -> 180 | Z158: Grades 1-12 enrollment change | AA158: 1 | AC158: =('Start Here - Data Entry '!$J23+'Start Here - Data Entry '!$J24+'Start Here - Data Entry '!$J25)*'Calculations - HIDE'!$C158 -> 240 | AF158: Grades 1-12 enrollment change | AG158: 1 | AI158: =('Start Here - Data Entry '!$K23+'Start Here - Data Entry '!$K24+'Start Here - Data Entry '!$K25)*'Calculations - HIDE'!$C158 -> 240
B159: Total enrollment change | E159: =SUM(E157:E158) ->  | H159: Total enrollment change | K159: =SUM(K157:K158) ->  | N159: Total enrollment change | Q159: =SUM(Q157:Q158) ->  | T159: Total enrollment change | W159: =SUM(W157:W158) ->  | Z159: Total enrollment change | AC159: =SUM(AC157:AC158) ->  | AF159: Total enrollment change | AI159: =SUM(AI157:AI158) -> 
C160: FTE payback | I160: FTE payback | O160: FTE payback | U160: FTE payback | AA160: FTE payback | AG160: FTE payback
B161: Benchmark # 1: 30 student increase | C161: 0.5 | D161: 30 | E161: =IF(E159>$D161,C161*E5,0) ->  | H161: Benchmark # 1: 30 student increase | I161: 0.5 | J161: 30 | K161: =IF(K159>$D161,I161*K5,0) ->  | N161: Benchmark # 1: 30 student increase | O161: 0.5 | P161: 30 | Q161: =IF(Q159>$D161,O161*Q5,0) ->  | T161: Benchmark # 1: 30 student increase | U161: 0.5 | V161: 30 | W161: =IF(W159>$D161,U161*W5,0) ->  | Z161: Benchmark # 1: 30 student increase | AA161: 0.5 | AB161: 30 | AC161: =IF(AC159>$D161,AA161*AC5,0) ->  | AF161: Benchmark # 1: 30 student increase | AG161: 0.5 | AH161: 30 | AI161: =IF(AI159>$D161,AG161*AI5,0) -> 
B162: Benchmark # 2: increments of 10 over 30 | C162: 0.5 | D162: 10 | E162: =IF(E159>=(D161+D162),(D163*C162*E5),0) ->  | H162: Benchmark # 2: increments of 10 over 30 | I162: 0.5 | J162: 10 | K162: =IF(K159>=(J161+J162),(J163*I162*K5),0) ->  | N162: Benchmark # 2: increments of 10 over 30 | O162: 0.5 | P162: 10 | Q162: =IF(Q159>=(P161+P162),(P163*O162*Q5),0) ->  | T162: Benchmark # 2: increments of 10 over 30 | U162: 0.5 | V162: 10 | W162: =IF(W159>=(V161+V162),(V163*U162*W5),0) ->  | Z162: Benchmark # 2: increments of 10 over 30 | AA162: 0.5 | AB162: 10 | AC162: =IF(AC159>=(AB161+AB162),(AB163*AA162*AC5),0) ->  | AF162: Benchmark # 2: increments of 10 over 30 | AG162: 0.5 | AH162: 10 | AI162: =IF(AI159>=(AH161+AH162),(AH163*AG162*AI5),0) -> 
B163: Multiple of 10 > = 40 | D163: =ROUNDDOWN(((E159-D161)/D162),0) ->  | H163: Multiple of 10 > = 40 | J163: =ROUNDDOWN(((K159-J161)/J162),0) ->  | N163: Multiple of 10 > = 40 | P163: =ROUNDDOWN(((Q159-P161)/P162),0) ->  | T163: Multiple of 10 > = 40 | V163: =ROUNDDOWN(((W159-V161)/V162),0) ->  | Z163: Multiple of 10 > = 40 | AB163: =ROUNDDOWN(((AC159-AB161)/AB162),0) ->  | AF163: Multiple of 10 > = 40 | AH163: =ROUNDDOWN(((AI159-AH161)/AH162),0) -> 
B164: Total Payback | E164: =SUM(E161:E162) ->  | H164: Total Payback | K164: =SUM(K161:K162) ->  | N164: Total Payback | Q164: =SUM(Q161:Q162) ->  | T164: Total Payback | W164: =SUM(W161:W162) ->  | Z164: Total Payback | AC164: =SUM(AC161:AC162) ->  | AF164: Total Payback | AI164: =SUM(AI161:AI162) -> 
B166: Required / Recommended FTEs | H166: Required / Recommended FTEs | N166: Required / Recommended FTEs | T166: Required / Recommended FTEs | Z166: Required / Recommended FTEs | AF166: Required / Recommended FTEs
B167: Funding Source | C167: Rate | D167: Students | E167: Total | H167: Funding Source | I167: Rate | J167: Students | K167: Total | N167: Funding Source | O167: Rate | P167: Students | Q167: Total | T167: Funding Source | U167: Rate | V167: Students | W167: Total | Z167: Funding Source | AA167: Rate | AB167: Students | AC167: Total | AF167: Funding Source | AG167: Rate | AH167: Students | AI167: Total
A168: Data Range | B168: ML Arts Match | C168: GF | E168: =IF('Start Here - Data Entry '!$E$5>2,0,IF(D174<=A169,E169,(IF(D174<=A170,E170,(IF(D174<=A171,E171,(IF(D174<=A172,E172,E173)))))))) -> 0 | G168: Data Range | H168: ML Arts Match | I168: GF | K168: =IF('Start Here - Data Entry '!$E$5>2,0,IF(J174<=G169,K169,(IF(J174<=G170,K170,(IF(J174<=G171,K171,(IF(J174<=G172,K172,K173)))))))) -> 0 | M168: Data Range | N168: ML Arts Match | O168: GF | Q168: =IF('Start Here - Data Entry '!$E$5>2,0,IF(P174<=M169,Q169,(IF(P174<=M170,Q170,(IF(P174<=M171,Q171,(IF(P174<=M172,Q172,Q173)))))))) -> 0 | S168: Data Range | T168: ML Arts Match | U168: GF | W168: =IF('Start Here - Data Entry '!$E$5>2,0,IF(V174<=S169,W169,(IF(V174<=S170,W170,(IF(V174<=S171,W171,(IF(V174<=S172,W172,W173)))))))) -> 0 | Y168: Data Range | Z168: ML Arts Match | AA168: GF | AC168: =IF('Start Here - Data Entry '!$E$5>2,0,IF(AB174<=Y169,AC169,(IF(AB174<=Y170,AC170,(IF(AB174<=Y171,AC171,(IF(AB174<=Y172,AC172,AC173)))))))) -> 0 | AE168: Data Range | AF168: ML Arts Match | AG168: GF | AI168: =IF('Start Here - Data Entry '!$E$5>2,0,IF(AH174<=AE169,AI169,(IF(AH174<=AE170,AI170,(IF(AH174<=AE171,AI171,(IF(AH174<=AE172,AI172,AI173)))))))) -> 0
A169: 200 | B169: x <=200 | C169: 0.5 | D169: =$D$106 -> 0 | E169: =C169 -> 0.5 | G169: 200 | H169: x <=200 | I169: 0.5 | J169: =$J$106 -> 0 | K169: =I169 -> 0.5 | M169: 200 | N169: x <=200 | O169: 0.5 | P169: =$P$106 -> 0 | Q169: =O169 -> 0.5 | S169: 200 | T169: x <=200 | U169: 0.5 | V169: =$V$106 -> 0 | W169: =U169 -> 0.5 | Y169: 200 | Z169: x <=200 | AA169: 0.5 | AB169: =$AB$106 -> 0 | AC169: =AA169 -> 0.5 | AE169: 200 | AF169: x <=200 | AG169: 0.5 | AH169: =$AH$106 -> 0 | AI169: =AG169 -> 0.5
A170: 400 | B170: 200 < x <= 400 | C170: 0.5 | D170: =$D$106 -> 0 | E170: =C170 -> 0.5 | G170: 400 | H170: 200 < x <= 400 | I170: 0.5 | J170: =$J$106 -> 0 | K170: =I170 -> 0.5 | M170: 400 | N170: 200 < x <= 400 | O170: 0.5 | P170: =$P$106 -> 0 | Q170: =O170 -> 0.5 | S170: 400 | T170: 200 < x <= 400 | U170: 0.5 | V170: =$V$106 -> 0 | W170: =U170 -> 0.5 | Y170: 400 | Z170: 200 < x <= 400 | AA170: 0.5 | AB170: =$AB$106 -> 0 | AC170: =AA170 -> 0.5 | AE170: 400 | AF170: 200 < x <= 400 | AG170: 0.5 | AH170: =$AH$106 -> 0 | AI170: =AG170 -> 0.5
A171: 549 | B171: 400 < x <= 549 | C171: 1 | D171: =$D$106 -> 0 | E171: =C171 -> 1 | G171: 549 | H171: 400 < x <= 549 | I171: 1 | J171: =$J$106 -> 0 | K171: =I171 -> 1 | M171: 549 | N171: 400 < x <= 549 | O171: 1 | P171: =$P$106 -> 0 | Q171: =O171 -> 1 | S171: 549 | T171: 400 < x <= 549 | U171: 1 | V171: =$V$106 -> 0 | W171: =U171 -> 1 | Y171: 549 | Z171: 400 < x <= 549 | AA171: 1 | AB171: =$AB$106 -> 0 | AC171: =AA171 -> 1 | AE171: 549 | AF171: 400 < x <= 549 | AG171: 1 | AH171: =$AH$106 -> 0 | AI171: =AG171 -> 1
A172: 600 | B172: 549 < x <= 600 | C172: 1 | D172: =$D$106 -> 0 | E172: =C172 -> 1 | G172: 600 | H172: 549 < x <= 600 | I172: 1 | J172: =$J$106 -> 0 | K172: =I172 -> 1 | M172: 600 | N172: 549 < x <= 600 | O172: 1 | P172: =$P$106 -> 0 | Q172: =O172 -> 1 | S172: 600 | T172: 549 < x <= 600 | U172: 1 | V172: =$V$106 -> 0 | W172: =U172 -> 1 | Y172: 600 | Z172: 549 < x <= 600 | AA172: 1 | AB172: =$AB$106 -> 0 | AC172: =AA172 -> 1 | AE172: 600 | AF172: 549 < x <= 600 | AG172: 1 | AH172: =$AH$106 -> 0 | AI172: =AG172 -> 1
B173: 600 < x | C173: 1.5 | D173: =$D$106 -> 0 | E173: =C173 -> 1.5 | H173: 600 < x | I173: 1.5 | J173: =$J$106 -> 0 | K173: =I173 -> 1.5 | N173: 600 < x | O173: 1.5 | P173: =$P$106 -> 0 | Q173: =O173 -> 1.5 | T173: 600 < x | U173: 1.5 | V173: =$V$106 -> 0 | W173: =U173 -> 1.5 | Z173: 600 < x | AA173: 1.5 | AB173: =$AB$106 -> 0 | AC173: =AA173 -> 1.5 | AF173: 600 < x | AG173: 1.5 | AH173: =$AH$106 -> 0 | AI173: =AG173 -> 1.5
B174: Art pupil count | D174: =D106 -> 0 | H174: Art pupil count | J174: =J106 -> 0 | N174: Art pupil count | P174: =P106 -> 0 | T174: Art pupil count | V174: =V106 -> 0 | Z174: Art pupil count | AB174: =AB106 -> 0 | AF174: Art pupil count | AH174: =AH106 -> 0
B176: Required / Recommended FTEs (Continued) | H176: Required / Recommended FTEs (Continued) | N176: Required / Recommended FTEs (Continued) | T176: Required / Recommended FTEs (Continued) | Z176: Required / Recommended FTEs (Continued) | AF176: Required / Recommended FTEs (Continued)
B177: Funding Source | C177: Rate | D177: Students | E177: Total | H177: Funding Source | I177: Rate | J177: Students | K177: Total | N177: Funding Source | O177: Rate | P177: Students | Q177: Total | T177: Funding Source | U177: Rate | V177: Students | W177: Total | Z177: Funding Source | AA177: Rate | AB177: Students | AC177: Total | AF177: Funding Source | AG177: Rate | AH177: Students | AI177: Total
B178: Mild Moderate Recommendation (see the below tables) | H178: Mild Moderate Recommendation (see the below tables) | N178: Mild Moderate Recommendation (see the below tables) | T178: Mild Moderate Recommendation (see the below tables) | Z178: Mild Moderate Recommendation (see the below tables) | AF178: Mild Moderate Recommendation (see the below tables)
B179: M/M Enrollment | E179: ='Start Here - Data Entry '!$F32 -> NA | H179: M/M Enrollment | K179: ='Start Here - Data Entry '!$G32 -> 9 | N179: M/M Enrollment | Q179: ='Start Here - Data Entry '!$H32 -> 18 | T179: M/M Enrollment | W179: ='Start Here - Data Entry '!$I32 -> 27 | Z179: M/M Enrollment | AC179: ='Start Here - Data Entry '!$J32 -> 36 | AF179: M/M Enrollment | AI179: ='Start Here - Data Entry '!$K32 -> 36
B180: Round | E180: =ROUND(E179,0) ->  | H180: Round | K180: =ROUND(K179,0) -> 9 | N180: Round | Q180: =ROUND(Q179,0) -> 18 | T180: Round | W180: =ROUND(W179,0) -> 27 | Z180: Round | AC180: =ROUND(AC179,0) -> 36 | AF180: Round | AI180: =ROUND(AI179,0) -> 36
B181: Ratios | H181: Ratios | N181: Ratios | T181: Ratios | Z181: Ratios | AF181: Ratios
A182: 1 | B182: ES | E182: 19 | G182: 1 | H182: ES | K182: 19 | M182: 1 | N182: ES | Q182: 19 | S182: 1 | T182: ES | W182: 19 | Y182: 1 | Z182: ES | AC182: 19 | AE182: 1 | AF182: ES | AI182: 19
A183: 2 | B183: K-8 | E183: 19 | G183: 2 | H183: K-8 | K183: 19 | M183: 2 | N183: K-8 | Q183: 19 | S183: 2 | T183: K-8 | W183: 19 | Y183: 2 | Z183: K-8 | AC183: 19 | AE183: 2 | AF183: K-8 | AI183: 19
A184: 3 | B184: MS | E184: 21 | G184: 3 | H184: MS | K184: 21 | M184: 3 | N184: MS | Q184: 21 | S184: 3 | T184: MS | W184: 21 | Y184: 3 | Z184: MS | AC184: 21 | AE184: 3 | AF184: MS | AI184: 21
A185: 4 | B185: 6-12 | E185: 21 | G185: 4 | H185: 6-12 | K185: 21 | M185: 4 | N185: 6-12 | Q185: 21 | S185: 4 | T185: 6-12 | W185: 21 | Y185: 4 | Z185: 6-12 | AC185: 21 | AE185: 4 | AF185: 6-12 | AI185: 21
A186: 5 | B186: HS | E186: 23 | G186: 5 | H186: HS | K186: 23 | M186: 5 | N186: HS | Q186: 23 | S186: 5 | T186: HS | W186: 23 | Y186: 5 | Z186: HS | AC186: 23 | AE186: 5 | AF186: HS | AI186: 23
B187: Ratio used for this calculation | E187: =IF('Start Here - Data Entry '!$E$5='Calculations - HIDE'!A182,'Calculations - HIDE'!E182,IF('Start Here - Data Entry '!$E$5='Calculations - HIDE'!A183,'Calculations - HIDE'!E183,IF('Start Here - Data Entry '!$E$5='Calculations - HIDE'!A184,'Calculations - HIDE'!E184,IF('Start Here - Data Entry '!$E$5='Calculations - HIDE'!A185,'Calculations - HIDE'!E185,'Calculations - HIDE'!E186)))) -> 23 | H187: Ratio used for this calculation | K187: =IF('Start Here - Data Entry '!$E$5='Calculations - HIDE'!G182,'Calculations - HIDE'!K182,IF('Start Here - Data Entry '!$E$5='Calculations - HIDE'!G183,'Calculations - HIDE'!K183,IF('Start Here - Data Entry '!$E$5='Calculations - HIDE'!G184,'Calculations - HIDE'!K184,IF('Start Here - Data Entry '!$E$5='Calculations - HIDE'!G185,'Calculations - HIDE'!K185,'Calculations - HIDE'!K186)))) -> 23 | N187: Ratio used for this calculation | Q187: =IF('Start Here - Data Entry '!$E$5='Calculations - HIDE'!M182,'Calculations - HIDE'!Q182,IF('Start Here - Data Entry '!$E$5='Calculations - HIDE'!M183,'Calculations - HIDE'!Q183,IF('Start Here - Data Entry '!$E$5='Calculations - HIDE'!M184,'Calculations - HIDE'!Q184,IF('Start Here - Data Entry '!$E$5='Calculations - HIDE'!M185,'Calculations - HIDE'!Q185,'Calculations - HIDE'!Q186)))) -> 23 | T187: Ratio used for this calculation | W187: =IF('Start Here - Data Entry '!$E$5='Calculations - HIDE'!S182,'Calculations - HIDE'!W182,IF('Start Here - Data Entry '!$E$5='Calculations - HIDE'!S183,'Calculations - HIDE'!W183,IF('Start Here - Data Entry '!$E$5='Calculations - HIDE'!S184,'Calculations - HIDE'!W184,IF('Start Here - Data Entry '!$E$5='Calculations - HIDE'!S185,'Calculations - HIDE'!W185,'Calculations - HIDE'!W186)))) -> 23 | Z187: Ratio used for this calculation | AC187: =IF('Start Here - Data Entry '!$E$5='Calculations - HIDE'!Y182,'Calculations - HIDE'!AC182,IF('Start Here - Data Entry '!$E$5='Calculations - HIDE'!Y183,'Calculations - HIDE'!AC183,IF('Start Here - Data Entry '!$E$5='Calculations - HIDE'!Y184,'Calculations - HIDE'!AC184,IF('Start Here - Data Entry '!$E$5='Calculations - HIDE'!Y185,'Calculations - HIDE'!AC185,'Calculations - HIDE'!AC186)))) -> 23 | AF187: Ratio used for this calculation | AI187: =IF('Start Here - Data Entry '!$E$5='Calculations - HIDE'!AE182,'Calculations - HIDE'!AI182,IF('Start Here - Data Entry '!$E$5='Calculations - HIDE'!AE183,'Calculations - HIDE'!AI183,IF('Start Here - Data Entry '!$E$5='Calculations - HIDE'!AE184,'Calculations - HIDE'!AI184,IF('Start Here - Data Entry '!$E$5='Calculations - HIDE'!AE185,'Calculations - HIDE'!AI185,'Calculations - HIDE'!AI186)))) -> 23
B188: Enrollment/ratio | E188: =E180/E187 ->  | H188: Enrollment/ratio | K188: =K180/K187 -> 0.3913043478 | N188: Enrollment/ratio | Q188: =Q180/Q187 -> 0.7826086957 | T188: Enrollment/ratio | W188: =W180/W187 -> 1.173913043 | Z188: Enrollment/ratio | AC188: =AC180/AC187 -> 1.565217391 | AF188: Enrollment/ratio | AI188: =AI180/AI187 -> 1.565217391
B189: truncate | E189: =TRUNC(E188) ->  | H189: truncate | K189: =TRUNC(K188) -> 0 | N189: truncate | Q189: =TRUNC(Q188) -> 0 | T189: truncate | W189: =TRUNC(W188) -> 1 | Z189: truncate | AC189: =TRUNC(AC188) -> 1 | AF189: truncate | AI189: =TRUNC(AI188) -> 1
B190: Determine Multiple | E190: =E188-E189 ->  | H190: Determine Multiple | K190: =K188-K189 -> 0.3913043478 | N190: Determine Multiple | Q190: =Q188-Q189 -> 0.7826086957 | T190: Determine Multiple | W190: =W188-W189 -> 0.1739130435 | Z190: Determine Multiple | AC190: =AC188-AC189 -> 0.5652173913 | AF190: Determine Multiple | AI190: =AI188-AI189 -> 0.5652173913
B191: Determine extra factor for MM decision | E191: =IF(E190<0.25,0,IF(E190<0.66,0.5,IF(E190>=0.66,1))) ->  | H191: Determine extra factor for MM decision | K191: =IF(K190<0.25,0,IF(K190<0.66,0.5,IF(K190>=0.66,1))) -> 0.5 | N191: Determine extra factor for MM decision | Q191: =IF(Q190<0.25,0,IF(Q190<0.66,0.5,IF(Q190>=0.66,1))) -> 1 | T191: Determine extra factor for MM decision | W191: =IF(W190<0.25,0,IF(W190<0.66,0.5,IF(W190>=0.66,1))) -> 0 | Z191: Determine extra factor for MM decision | AC191: =IF(AC190<0.25,0,IF(AC190<0.66,0.5,IF(AC190>=0.66,1))) -> 0.5 | AF191: Determine extra factor for MM decision | AI191: =IF(AI190<0.25,0,IF(AI190<0.66,0.5,IF(AI190>=0.66,1))) -> 0.5
B192: MM minimum recommendation | E192: =IF(E189+E191<1,1,E191+E189) ->  | H192: MM minimum recommendation | K192: =IF(K189+K191<1,1,K191+K189) -> 1 | N192: MM minimum recommendation | Q192: =IF(Q189+Q191<1,1,Q191+Q189) -> 1 | T192: MM minimum recommendation | W192: =IF(W189+W191<1,1,W191+W189) -> 1 | Z192: MM minimum recommendation | AC192: =IF(AC189+AC191<1,1,AC191+AC189) -> 1.5 | AF192: MM minimum recommendation | AI192: =IF(AI189+AI191<1,1,AI191+AI189) -> 1.5
B193: MM actual dollar allocation | E193: =E192*$E$5 ->  | H193: MM actual dollar allocation | K193: =K192*$E$5 -> 67515 | N193: MM actual dollar allocation | Q193: =Q192*$E$5 -> 67515 | T193: MM actual dollar allocation | W193: =W192*$E$5 -> 67515 | Z193: MM actual dollar allocation | AC193: =AC192*$E$5 -> 101272.5 | AF193: MM actual dollar allocation | AI193: =AI192*$E$5 -> 101272.5
B196: Required / Recommended FTEs (Continued) | H196: Required / Recommended FTEs (Continued) | N196: Required / Recommended FTEs (Continued) | T196: Required / Recommended FTEs (Continued) | Z196: Required / Recommended FTEs (Continued) | AF196: Required / Recommended FTEs (Continued)
B197: Funding Source | C197: Rate | D197: Students | E197: Total | H197: Funding Source | I197: Rate | J197: Students | K197: Total | N197: Funding Source | O197: Rate | P197: Students | Q197: Total | T197: Funding Source | U197: Rate | V197: Students | W197: Total | Z197: Funding Source | AA197: Rate | AB197: Students | AC197: Total | AF197: Funding Source | AG197: Rate | AH197: Students | AI197: Total
B198: Nurse minimum (use tables below) - (K-12 - K@.5) | E198: =D12 ->  | H198: Nurse minimum (use tables below) - (K-12 - K@.5) | K198: =J12 -> 60 | N198: Nurse minimum (use tables below) - (K-12 - K@.5) | Q198: =P12 -> 120 | T198: Nurse minimum (use tables below) - (K-12 - K@.5) | W198: =V12 -> 180 | Z198: Nurse minimum (use tables below) - (K-12 - K@.5) | AC198: =AB12 -> 240 | AF198: Nurse minimum (use tables below) - (K-12 - K@.5) | AI198: =AH12 -> 240
A199: 1 | B199: ES | G199: 1 | H199: ES | M199: 1 | N199: ES | S199: 1 | T199: ES | Y199: 1 | Z199: ES | AE199: 1 | AF199: ES
A200: 2 | B200: K-8 | C200: Days | D200: FTE | G200: 2 | H200: K-8 | I200: Days | J200: FTE | M200: 2 | N200: K-8 | O200: Days | P200: FTE | S200: 2 | T200: K-8 | U200: Days | V200: FTE | Y200: 2 | Z200: K-8 | AA200: Days | AB200: FTE | AE200: 2 | AF200: K-8 | AG200: Days | AH200: FTE
B201: 449 | C201: 2 | D201: =C201/5 -> 0.4 | H201: 449 | I201: 2 | J201: =I201/5 -> 0.4 | N201: 449 | O201: 2 | P201: =O201/5 -> 0.4 | T201: 449 | U201: 2 | V201: =U201/5 -> 0.4 | Z201: 449 | AA201: 2 | AB201: =AA201/5 -> 0.4 | AF201: 449 | AG201: 2 | AH201: =AG201/5 -> 0.4
B202: 700 | C202: 3 | D202: =C202/5 -> 0.6 | H202: 700 | I202: 3 | J202: =I202/5 -> 0.6 | N202: 700 | O202: 3 | P202: =O202/5 -> 0.6 | T202: 700 | U202: 3 | V202: =U202/5 -> 0.6 | Z202: 700 | AA202: 3 | AB202: =AA202/5 -> 0.6 | AF202: 700 | AG202: 3 | AH202: =AG202/5 -> 0.6
B203: 999 | C203: 3 | D203: =C203/5 -> 0.6 | H203: 999 | I203: 3 | J203: =I203/5 -> 0.6 | N203: 999 | O203: 3 | P203: =O203/5 -> 0.6 | T203: 999 | U203: 3 | V203: =U203/5 -> 0.6 | Z203: 999 | AA203: 3 | AB203: =AA203/5 -> 0.6 | AF203: 999 | AG203: 3 | AH203: =AG203/5 -> 0.6
B204: 1000 | C204: 3 | D204: =C204/5 -> 0.6 | H204: 1000 | I204: 3 | J204: =I204/5 -> 0.6 | N204: 1000 | O204: 3 | P204: =O204/5 -> 0.6 | T204: 1000 | U204: 3 | V204: =U204/5 -> 0.6 | Z204: 1000 | AA204: 3 | AB204: =AA204/5 -> 0.6 | AF204: 1000 | AG204: 3 | AH204: =AG204/5 -> 0.6
E205: =IF('Start Here - Data Entry '!$E$5<=2,(IF('Calculations - HIDE'!E198<='Calculations - HIDE'!B201,'Calculations - HIDE'!D201,(IF('Calculations - HIDE'!E198<='Calculations - HIDE'!B202,'Calculations - HIDE'!D202,(IF('Calculations - HIDE'!E198<='Calculations - HIDE'!B203,'Calculations - HIDE'!D203,D204)))))),0) -> 0 | K205: =IF('Start Here - Data Entry '!$E$5<=2,(IF('Calculations - HIDE'!K198<='Calculations - HIDE'!H201,'Calculations - HIDE'!J201,(IF('Calculations - HIDE'!K198<='Calculations - HIDE'!H202,'Calculations - HIDE'!J202,(IF('Calculations - HIDE'!K198<='Calculations - HIDE'!H203,'Calculations - HIDE'!J203,J204)))))),0) -> 0 | Q205: =IF('Start Here - Data Entry '!$E$5<=2,(IF('Calculations - HIDE'!Q198<='Calculations - HIDE'!N201,'Calculations - HIDE'!P201,(IF('Calculations - HIDE'!Q198<='Calculations - HIDE'!N202,'Calculations - HIDE'!P202,(IF('Calculations - HIDE'!Q198<='Calculations - HIDE'!N203,'Calculations - HIDE'!P203,P204)))))),0) -> 0 | W205: =IF('Start Here - Data Entry '!$E$5<=2,(IF('Calculations - HIDE'!W198<='Calculations - HIDE'!T201,'Calculations - HIDE'!V201,(IF('Calculations - HIDE'!W198<='Calculations - HIDE'!T202,'Calculations - HIDE'!V202,(IF('Calculations - HIDE'!W198<='Calculations - HIDE'!T203,'Calculations - HIDE'!V203,V204)))))),0) -> 0 | AC205: =IF('Start Here - Data Entry '!$E$5<=2,(IF('Calculations - HIDE'!AC198<='Calculations - HIDE'!Z201,'Calculations - HIDE'!AB201,(IF('Calculations - HIDE'!AC198<='Calculations - HIDE'!Z202,'Calculations - HIDE'!AB202,(IF('Calculations - HIDE'!AC198<='Calculations - HIDE'!Z203,'Calculations - HIDE'!AB203,AB204)))))),0) -> 0 | AI205: =IF('Start Here - Data Entry '!$E$5<=2,(IF('Calculations - HIDE'!AI198<='Calculations - HIDE'!AF201,'Calculations - HIDE'!AH201,(IF('Calculations - HIDE'!AI198<='Calculations - HIDE'!AF202,'Calculations - HIDE'!AH202,(IF('Calculations - HIDE'!AI198<='Calculations - HIDE'!AF203,'Calculations - HIDE'!AH203,AH204)))))),0) -> 0
A206: 3 | B206: MS | G206: 3 | H206: MS | M206: 3 | N206: MS | S206: 3 | T206: MS | Y206: 3 | Z206: MS | AE206: 3 | AF206: MS
A207: 4 | B207: 6-12 | G207: 4 | H207: 6-12 | M207: 4 | N207: 6-12 | S207: 4 | T207: 6-12 | Y207: 4 | Z207: 6-12 | AE207: 4 | AF207: 6-12
A208: 5 | B208: HS | C208: Days | D208: FTE | G208: 5 | H208: HS | I208: Days | J208: FTE | M208: 5 | N208: HS | O208: Days | P208: FTE | S208: 5 | T208: HS | U208: Days | V208: FTE | Y208: 5 | Z208: HS | AA208: Days | AB208: FTE | AE208: 5 | AF208: HS | AG208: Days | AH208: FTE
B209: 749 | C209: 3 | D209: =C209/5 -> 0.6 | H209: 749 | I209: 3 | J209: =I209/5 -> 0.6 | N209: 749 | O209: 3 | P209: =O209/5 -> 0.6 | T209: 749 | U209: 3 | V209: =U209/5 -> 0.6 | Z209: 749 | AA209: 3 | AB209: =AA209/5 -> 0.6 | AF209: 749 | AG209: 3 | AH209: =AG209/5 -> 0.6
B210: 750 | C210: 4 | D210: =C210/5 -> 0.8 | H210: 750 | I210: 4 | J210: =I210/5 -> 0.8 | N210: 750 | O210: 4 | P210: =O210/5 -> 0.8 | T210: 750 | U210: 4 | V210: =U210/5 -> 0.8 | Z210: 750 | AA210: 4 | AB210: =AA210/5 -> 0.8 | AF210: 750 | AG210: 4 | AH210: =AG210/5 -> 0.8
B211: 999 | C211: 4 | D211: =C211/5 -> 0.8 | H211: 999 | I211: 4 | J211: =I211/5 -> 0.8 | N211: 999 | O211: 4 | P211: =O211/5 -> 0.8 | T211: 999 | U211: 4 | V211: =U211/5 -> 0.8 | Z211: 999 | AA211: 4 | AB211: =AA211/5 -> 0.8 | AF211: 999 | AG211: 4 | AH211: =AG211/5 -> 0.8
B212: 1000 | C212: 5 | D212: =C212/5 -> 1 | H212: 1000 | I212: 5 | J212: =I212/5 -> 1 | N212: 1000 | O212: 5 | P212: =O212/5 -> 1 | T212: 1000 | U212: 5 | V212: =U212/5 -> 1 | Z212: 1000 | AA212: 5 | AB212: =AA212/5 -> 1 | AF212: 1000 | AG212: 5 | AH212: =AG212/5 -> 1
E213: =IF('Start Here - Data Entry '!$E$5>=3,(IF(E198<=B209,D209,(IF(E198<=B210,D210,IF(E198<=B211,D211,IF(E198>=B212,D212,0)))))),0) ->  | K213: =IF('Start Here - Data Entry '!$E$5>=3,(IF(K198<=H209,J209,(IF(K198<=H210,J210,IF(K198<=H211,J211,IF(K198>=H212,J212,0)))))),0) -> 0.6 | Q213: =IF('Start Here - Data Entry '!$E$5>=3,(IF(Q198<=N209,P209,(IF(Q198<=N210,P210,IF(Q198<=N211,P211,IF(Q198>=N212,P212,0)))))),0) -> 0.6 | W213: =IF('Start Here - Data Entry '!$E$5>=3,(IF(W198<=T209,V209,(IF(W198<=T210,V210,IF(W198<=T211,V211,IF(W198>=T212,V212,0)))))),0) -> 0.6 | AC213: =IF('Start Here - Data Entry '!$E$5>=3,(IF(AC198<=Z209,AB209,(IF(AC198<=Z210,AB210,IF(AC198<=Z211,AB211,IF(AC198>=Z212,AB212,0)))))),0) -> 0.6 | AI213: =IF('Start Here - Data Entry '!$E$5>=3,(IF(AI198<=AF209,AH209,(IF(AI198<=AF210,AH210,IF(AI198<=AF211,AH211,IF(AI198>=AF212,AH212,0)))))),0) -> 0.6
B214: Nurse Minimum | E214: =E213+E205 ->  | H214: Nurse Minimum | K214: =K213+K205 -> 0.6 | N214: Nurse Minimum | Q214: =Q213+Q205 -> 0.6 | T214: Nurse Minimum | W214: =W213+W205 -> 0.6 | Z214: Nurse Minimum | AC214: =AC213+AC205 -> 0.6 | AF214: Nurse Minimum | AI214: =AI213+AI205 -> 0.6
B215: Nurse Allocated Budget | C215: Cost per day | D215: =14941 -> 14941 | E215: =E214*$D$215*5 ->  | H215: Nurse Allocated Budget | I215: Cost per day | J215: =14941 -> 14941 | K215: =K214*$D$215*5 -> 44823 | N215: Nurse Allocated Budget | O215: Cost per day | P215: =14941 -> 14941 | Q215: =Q214*$D$215*5 -> 44823 | T215: Nurse Allocated Budget | U215: Cost per day | V215: =14941 -> 14941 | W215: =W214*$D$215*5 -> 44823 | Z215: Nurse Allocated Budget | AA215: Cost per day | AB215: =14941 -> 14941 | AC215: =AC214*$D$215*5 -> 44823 | AF215: Nurse Allocated Budget | AG215: Cost per day | AH215: =14941 -> 14941 | AI215: =AI214*$D$215*5 -> 44823
B217: Required / Recommended FTEs (Continued) | H217: Required / Recommended FTEs (Continued) | N217: Required / Recommended FTEs (Continued) | T217: Required / Recommended FTEs (Continued) | Z217: Required / Recommended FTEs (Continued) | AF217: Required / Recommended FTEs (Continued)
B218: Funding Source | C218: Rate | D218: Students | E218: Total | H218: Funding Source | I218: Rate | J218: Students | K218: Total | N218: Funding Source | O218: Rate | P218: Students | Q218: Total | T218: Funding Source | U218: Rate | V218: Students | W218: Total | Z218: Funding Source | AA218: Rate | AB218: Students | AC218: Total | AF218: Funding Source | AG218: Rate | AH218: Students | AI218: Total
B219: Social Worker / Pychminimum (K-12 - K@.5) | E219: =D12 ->  | H219: Social Worker / Pychminimum (K-12 - K@.5) | K219: =J12 -> 60 | N219: Social Worker / Pychminimum (K-12 - K@.5) | Q219: =P12 -> 120 | T219: Social Worker / Pychminimum (K-12 - K@.5) | W219: =V12 -> 180 | Z219: Social Worker / Pychminimum (K-12 - K@.5) | AC219: =AB12 -> 240 | AF219: Social Worker / Pychminimum (K-12 - K@.5) | AI219: =AH12 -> 240
A220: 1 | B220: ES | G220: 1 | H220: ES | M220: 1 | N220: ES | S220: 1 | T220: ES | Y220: 1 | Z220: ES | AE220: 1 | AF220: ES
A221: 2 | B221: K-8 | C221: Days | D221: FTE | G221: 2 | H221: K-8 | I221: Days | J221: FTE | M221: 2 | N221: K-8 | O221: Days | P221: FTE | S221: 2 | T221: K-8 | U221: Days | V221: FTE | Y221: 2 | Z221: K-8 | AA221: Days | AB221: FTE | AE221: 2 | AF221: K-8 | AG221: Days | AH221: FTE
... 21 more rows

Sheet Arts Vlookup (hidden)
A1: K-8 students | B1: Arts FTE $$$ | C1: FTE | D1: Avg Teacher Salary | F1: 2ndary | G1: Arts $$$ | H1: FTE | K1: 300 | L1: 1.5
A2: 1 | B2: =$D$2 -> 67515 | C2: =B2/$D$2 -> 1 | D2: 67515 | F2: 1 | G2: =H2*$D$2 -> 101272.5 | H2: =$L$1 -> 1.5 | K2: 600 | L2: 2
A3: 2 | B3: =$D$2 -> 67515 | C3: =B3/$D$2 -> 1 | F3: 2 | G3: =H3*$D$2 -> 101272.5 | H3: =$L$1 -> 1.5 | K3: 900 | L3: 3
A4: 3 | B4: 67515 | C4: 1 | F4: 3 | G4: 101272.5 | H4: 1.5 | K4: 1200 | L4: 4
A5: 4 | B5: 67515 | C5: 1 | F5: 4 | G5: 101272.5 | H5: 1.5 | K5: 1500 | L5: 5
A6: 5 | B6: 67515 | C6: 1 | F6: 5 | G6: 101272.5 | H6: 1.5 | K6: 2000 | L6: 6
A7: 6 | B7: 67515 | C7: 1 | F7: 6 | G7: 101272.5 | H7: 1.5 | K7: 2001 | L7: 7
A8: 7 | B8: 67515 | C8: 1 | F8: 7 | G8: 101272.5 | H8: 1.5
A9: 8 | B9: 67515 | C9: 1 | F9: 8 | G9: 101272.5 | H9: 1.5
A10: 9 | B10: 67515 | C10: 1 | F10: 9 | G10: 101272.5 | H10: 1.5
A11: 10 | B11: 67515 | C11: 1 | F11: 10 | G11: 101272.5 | H11: 1.5
A12: 11 | B12: 67515 | C12: 1 | F12: 11 | G12: 101272.5 | H12: 1.5
A13: 12 | B13: 67515 | C13: 1 | F13: 12 | G13: 101272.5 | H13: 1.5
A14: 13 | B14: 67515 | C14: 1 | F14: 13 | G14: 101272.5 | H14: 1.5
A15: 14 | B15: 67515 | C15: 1 | F15: 14 | G15: 101272.5 | H15: 1.5
A16: 15 | B16: 67515 | C16: 1 | F16: 15 | G16: 101272.5 | H16: 1.5
A17: 16 | B17: 67515 | C17: 1 | F17: 16 | G17: 101272.5 | H17: 1.5
A18: 17 | B18: 67515 | C18: 1 | F18: 17 | G18: 101272.5 | H18: 1.5
A19: 18 | B19: 67515 | C19: 1 | F19: 18 | G19: 101272.5 | H19: 1.5
A20: 19 | B20: 67515 | C20: 1 | F20: 19 | G20: 101272.5 | H20: 1.5
A21: 20 | B21: 67515 | C21: 1 | F21: 20 | G21: 101272.5 | H21: 1.5
A22: 21 | B22: 67515 | C22: 1 | F22: 21 | G22: 101272.5 | H22: 1.5
A23: 22 | B23: 67515 | C23: 1 | F23: 22 | G23: 101272.5 | H23: 1.5
A24: 23 | B24: 67515 | C24: 1 | F24: 23 | G24: 101272.5 | H24: 1.5
A25: 24 | B25: 67515 | C25: 1 | F25: 24 | G25: 101272.5 | H25: 1.5
A26: 25 | B26: 67515 | C26: 1 | F26: 25 | G26: 101272.5 | H26: 1.5
A27: 26 | B27: 67515 | C27: 1 | F27: 26 | G27: 101272.5 | H27: 1.5
A28: 27 | B28: 67515 | C28: 1 | F28: 27 | G28: 101272.5 | H28: 1.5
A29: 28 | B29: 67515 | C29: 1 | F29: 28 | G29: 101272.5 | H29: 1.5
A30: 29 | B30: 67515 | C30: 1 | F30: 29 | G30: 101272.5 | H30: 1.5
A31: 30 | B31: 67515 | C31: 1 | F31: 30 | G31: 101272.5 | H31: 1.5
A32: 31 | B32: 67515 | C32: 1 | F32: 31 | G32: 101272.5 | H32: 1.5
A33: 32 | B33: 67515 | C33: 1 | F33: 32 | G33: 101272.5 | H33: 1.5
A34: 33 | B34: 67515 | C34: 1 | F34: 33 | G34: 101272.5 | H34: 1.5
A35: 34 | B35: 67515 | C35: 1 | F35: 34 | G35: 101272.5 | H35: 1.5
A36: 35 | B36: 67515 | C36: 1 | F36: 35 | G36: 101272.5 | H36: 1.5
A37: 36 | B37: 67515 | C37: 1 | F37: 36 | G37: 101272.5 | H37: 1.5
A38: 37 | B38: 67515 | C38: 1 | F38: 37 | G38: 101272.5 | H38: 1.5
A39: 38 | B39: 67515 | C39: 1 | F39: 38 | G39: 101272.5 | H39: 1.5
A40: 39 | B40: 67515 | C40: 1 | F40: 39 | G40: 101272.5 | H40: 1.5
A41: 40 | B41: 67515 | C41: 1 | F41: 40 | G41: 101272.5 | H41: 1.5
A42: 41 | B42: 67515 | C42: 1 | F42: 41 | G42: 101272.5 | H42: 1.5
A43: 42 | B43: 67515 | C43: 1 | F43: 42 | G43: 101272.5 | H43: 1.5
A44: 43 | B44: 67515 | C44: 1 | F44: 43 | G44: 101272.5 | H44: 1.5
A45: 44 | B45: 67515 | C45: 1 | F45: 44 | G45: 101272.5 | H45: 1.5
A46: 45 | B46: 67515 | C46: 1 | F46: 45 | G46: 101272.5 | H46: 1.5
A47: 46 | B47: 67515 | C47: 1 | F47: 46 | G47: 101272.5 | H47: 1.5
A48: 47 | B48: 67515 | C48: 1 | F48: 47 | G48: 101272.5 | H48: 1.5
A49: 48 | B49: 67515 | C49: 1 | F49: 48 | G49: 101272.5 | H49: 1.5
A50: 49 | B50: 67515 | C50: 1 | F50: 49 | G50: 101272.5 | H50: 1.5
A51: 50 | B51: 67515 | C51: 1 | F51: 50 | G51: 101272.5 | H51: 1.5
A52: 51 | B52: 67515 | C52: 1 | F52: 51 | G52: 101272.5 | H52: 1.5
A53: 52 | B53: 67515 | C53: 1 | F53: 52 | G53: 101272.5 | H53: 1.5
A54: 53 | B54: 67515 | C54: 1 | F54: 53 | G54: 101272.5 | H54: 1.5
A55: 54 | B55: 67515 | C55: 1 | F55: 54 | G55: 101272.5 | H55: 1.5
A56: 55 | B56: 67515 | C56: 1 | F56: 55 | G56: 101272.5 | H56: 1.5
A57: 56 | B57: 67515 | C57: 1 | F57: 56 | G57: 101272.5 | H57: 1.5
A58: 57 | B58: 67515 | C58: 1 | F58: 57 | G58: 101272.5 | H58: 1.5
A59: 58 | B59: 67515 | C59: 1 | F59: 58 | G59: 101272.5 | H59: 1.5
A60: 59 | B60: 67515 | C60: 1 | F60: 59 | G60: 101272.5 | H60: 1.5
A61: 60 | B61: 67515 | C61: 1 | F61: 60 | G61: 101272.5 | H61: 1.5
A62: 61 | B62: 67515 | C62: 1 | F62: 61 | G62: 101272.5 | H62: 1.5
A63: 62 | B63: 67515 | C63: 1 | F63: 62 | G63: 101272.5 | H63: 1.5
A64: 63 | B64: 67515 | C64: 1 | F64: 63 | G64: 101272.5 | H64: 1.5
A65: 64 | B65: 67515 | C65: 1 | F65: 64 | G65: 101272.5 | H65: 1.5
A66: 65 | B66: 67515 | C66: 1 | F66: 65 | G66: 101272.5 | H66: 1.5
A67: 66 | B67: =$D$2 -> 67515 | C67: =B67/$D$2 -> 1 | F67: 66 | G67: =H67*$D$2 -> 101272.5 | H67: =$L$1 -> 1.5
A68: 67 | B68: 67515 | C68: 1 | F68: 67 | G68: 101272.5 | H68: 1.5
A69: 68 | B69: 67515 | C69: 1 | F69: 68 | G69: 101272.5 | H69: 1.5
A70: 69 | B70: 67515 | C70: 1 | F70: 69 | G70: 101272.5 | H70: 1.5
A71: 70 | B71: 67515 | C71: 1 | F71: 70 | G71: 101272.5 | H71: 1.5
A72: 71 | B72: 67515 | C72: 1 | F72: 71 | G72: 101272.5 | H72: 1.5
A73: 72 | B73: 67515 | C73: 1 | F73: 72 | G73: 101272.5 | H73: 1.5
A74: 73 | B74: 67515 | C74: 1 | F74: 73 | G74: 101272.5 | H74: 1.5
A75: 74 | B75: 67515 | C75: 1 | F75: 74 | G75: 101272.5 | H75: 1.5
A76: 75 | B76: 67515 | C76: 1 | F76: 75 | G76: 101272.5 | H76: 1.5
A77: 76 | B77: 67515 | C77: 1 | F77: 76 | G77: 101272.5 | H77: 1.5
A78: 77 | B78: 67515 | C78: 1 | F78: 77 | G78: 101272.5 | H78: 1.5
A79: 78 | B79: 67515 | C79: 1 | F79: 78 | G79: 101272.5 | H79: 1.5
A80: 79 | B80: 67515 | C80: 1 | F80: 79 | G80: 101272.5 | H80: 1.5
A81: 80 | B81: 67515 | C81: 1 | F81: 80 | G81: 101272.5 | H81: 1.5
A82: 81 | B82: 67515 | C82: 1 | F82: 81 | G82: 101272.5 | H82: 1.5
A83: 82 | B83: 67515 | C83: 1 | F83: 82 | G83: 101272.5 | H83: 1.5
A84: 83 | B84: 67515 | C84: 1 | F84: 83 | G84: 101272.5 | H84: 1.5
A85: 84 | B85: 67515 | C85: 1 | F85: 84 | G85: 101272.5 | H85: 1.5
A86: 85 | B86: 67515 | C86: 1 | F86: 85 | G86: 101272.5 | H86: 1.5
A87: 86 | B87: 67515 | C87: 1 | F87: 86 | G87: 101272.5 | H87: 1.5
A88: 87 | B88: 67515 | C88: 1 | F88: 87 | G88: 101272.5 | H88: 1.5
A89: 88 | B89: 67515 | C89: 1 | F89: 88 | G89: 101272.5 | H89: 1.5
A90: 89 | B90: 67515 | C90: 1 | F90: 89 | G90: 101272.5 | H90: 1.5
A91: 90 | B91: 67515 | C91: 1 | F91: 90 | G91: 101272.5 | H91: 1.5
A92: 91 | B92: 67515 | C92: 1 | F92: 91 | G92: 101272.5 | H92: 1.5
A93: 92 | B93: 67515 | C93: 1 | F93: 92 | G93: 101272.5 | H93: 1.5
A94: 93 | B94: 67515 | C94: 1 | F94: 93 | G94: 101272.5 | H94: 1.5
A95: 94 | B95: 67515 | C95: 1 | F95: 94 | G95: 101272.5 | H95: 1.5
A96: 95 | B96: 67515 | C96: 1 | F96: 95 | G96: 101272.5 | H96: 1.5
A97: 96 | B97: 67515 | C97: 1 | F97: 96 | G97: 101272.5 | H97: 1.5
A98: 97 | B98: 67515 | C98: 1 | F98: 97 | G98: 101272.5 | H98: 1.5
A99: 98 | B99: 67515 | C99: 1 | F99: 98 | G99: 101272.5 | H99: 1.5
A100: 99 | B100: 67515 | C100: 1 | F100: 99 | G100: 101272.5 | H100: 1.5
A101: 100 | B101: 67515 | C101: 1 | F101: 100 | G101: 101272.5 | H101: 1.5
A102: 101 | B102: 67515 | C102: 1 | F102: 101 | G102: 101272.5 | H102: 1.5
A103: 102 | B103: 67515 | C103: 1 | F103: 102 | G103: 101272.5 | H103: 1.5
A104: 103 | B104: 67515 | C104: 1 | F104: 103 | G104: 101272.5 | H104: 1.5
A105: 104 | B105: 67515 | C105: 1 | F105: 104 | G105: 101272.5 | H105: 1.5
A106: 105 | B106: 67515 | C106: 1 | F106: 105 | G106: 101272.5 | H106: 1.5
A107: 106 | B107: 67515 | C107: 1 | F107: 106 | G107: 101272.5 | H107: 1.5
A108: 107 | B108: 67515 | C108: 1 | F108: 107 | G108: 101272.5 | H108: 1.5
A109: 108 | B109: 67515 | C109: 1 | F109: 108 | G109: 101272.5 | H109: 1.5
A110: 109 | B110: 67515 | C110: 1 | F110: 109 | G110: 101272.5 | H110: 1.5
A111: 110 | B111: 67515 | C111: 1 | F111: 110 | G111: 101272.5 | H111: 1.5
A112: 111 | B112: 67515 | C112: 1 | F112: 111 | G112: 101272.5 | H112: 1.5
A113: 112 | B113: 67515 | C113: 1 | F113: 112 | G113: 101272.5 | H113: 1.5
A114: 113 | B114: 67515 | C114: 1 | F114: 113 | G114: 101272.5 | H114: 1.5
A115: 114 | B115: 67515 | C115: 1 | F115: 114 | G115: 101272.5 | H115: 1.5
A116: 115 | B116: 67515 | C116: 1 | F116: 115 | G116: 101272.5 | H116: 1.5
A117: 116 | B117: 67515 | C117: 1 | F117: 116 | G117: 101272.5 | H117: 1.5
A118: 117 | B118: 67515 | C118: 1 | F118: 117 | G118: 101272.5 | H118: 1.5
A119: 118 | B119: 67515 | C119: 1 | F119: 118 | G119: 101272.5 | H119: 1.5
A120: 119 | B120: 67515 | C120: 1 | F120: 119 | G120: 101272.5 | H120: 1.5
A121: 120 | B121: 67515 | C121: 1 | F121: 120 | G121: 101272.5 | H121: 1.5
A122: 121 | B122: 67515 | C122: 1 | F122: 121 | G122: 101272.5 | H122: 1.5
A123: 122 | B123: 67515 | C123: 1 | F123: 122 | G123: 101272.5 | H123: 1.5
A124: 123 | B124: 67515 | C124: 1 | F124: 123 | G124: 101272.5 | H124: 1.5
A125: 124 | B125: 67515 | C125: 1 | F125: 124 | G125: 101272.5 | H125: 1.5
A126: 125 | B126: 67515 | C126: 1 | F126: 125 | G126: 101272.5 | H126: 1.5
A127: 126 | B127: 67515 | C127: 1 | F127: 126 | G127: 101272.5 | H127: 1.5
A128: 127 | B128: 67515 | C128: 1 | F128: 127 | G128: 101272.5 | H128: 1.5
A129: 128 | B129: 67515 | C129: 1 | F129: 128 | G129: 101272.5 | H129: 1.5
A130: 129 | B130: 67515 | C130: 1 | F130: 129 | G130: 101272.5 | H130: 1.5
A131: 130 | B131: =$D$2 -> 67515 | C131: =B131/$D$2 -> 1 | F131: 130 | G131: =H131*$D$2 -> 101272.5 | H131: =$L$1 -> 1.5
A132: 131 | B132: 67515 | C132: 1 | F132: 131 | G132: 101272.5 | H132: 1.5
A133: 132 | B133: 67515 | C133: 1 | F133: 132 | G133: 101272.5 | H133: 1.5
A134: 133 | B134: 67515 | C134: 1 | F134: 133 | G134: 101272.5 | H134: 1.5
A135: 134 | B135: 67515 | C135: 1 | F135: 134 | G135: 101272.5 | H135: 1.5
A136: 135 | B136: 67515 | C136: 1 | F136: 135 | G136: 101272.5 | H136: 1.5
A137: 136 | B137: 67515 | C137: 1 | F137: 136 | G137: 101272.5 | H137: 1.5
A138: 137 | B138: 67515 | C138: 1 | F138: 137 | G138: 101272.5 | H138: 1.5
A139: 138 | B139: 67515 | C139: 1 | F139: 138 | G139: 101272.5 | H139: 1.5
A140: 139 | B140: 67515 | C140: 1 | F140: 139 | G140: 101272.5 | H140: 1.5
A141: 140 | B141: 67515 | C141: 1 | F141: 140 | G141: 101272.5 | H141: 1.5
A142: 141 | B142: 67515 | C142: 1 | F142: 141 | G142: 101272.5 | H142: 1.5
A143: 142 | B143: 67515 | C143: 1 | F143: 142 | G143: 101272.5 | H143: 1.5
A144: 143 | B144: 67515 | C144: 1 | F144: 143 | G144: 101272.5 | H144: 1.5
A145: 144 | B145: 67515 | C145: 1 | F145: 144 | G145: 101272.5 | H145: 1.5
A146: 145 | B146: 67515 | C146: 1 | F146: 145 | G146: 101272.5 | H146: 1.5
A147: 146 | B147: 67515 | C147: 1 | F147: 146 | G147: 101272.5 | H147: 1.5
A148: 147 | B148: 67515 | C148: 1 | F148: 147 | G148: 101272.5 | H148: 1.5
A149: 148 | B149: 67515 | C149: 1 | F149: 148 | G149: 101272.5 | H149: 1.5
A150: 149 | B150: 67515 | C150: 1 | F150: 149 | G150: 101272.5 | H150: 1.5
A151: 150 | B151: 67515 | C151: 1 | F151: 150 | G151: 101272.5 | H151: 1.5
A152: 151 | B152: 67515 | C152: 1 | F152: 151 | G152: 101272.5 | H152: 1.5
A153: 152 | B153: 67515 | C153: 1 | F153: 152 | G153: 101272.5 | H153: 1.5
A154: 153 | B154: 67515 | C154: 1 | F154: 153 | G154: 101272.5 | H154: 1.5
A155: 154 | B155: 67515 | C155: 1 | F155: 154 | G155: 101272.5 | H155: 1.5
A156: 155 | B156: 67515 | C156: 1 | F156: 155 | G156: 101272.5 | H156: 1.5
A157: 156 | B157: 67515 | C157: 1 | F157: 156 | G157: 101272.5 | H157: 1.5
A158: 157 | B158: 67515 | C158: 1 | F158: 157 | G158: 101272.5 | H158: 1.5
A159: 158 | B159: 67515 | C159: 1 | F159: 158 | G159: 101272.5 | H159: 1.5
A160: 159 | B160: 67515 | C160: 1 | F160: 159 | G160: 101272.5 | H160: 1.5
A161: 160 | B161: 67515 | C161: 1 | F161: 160 | G161: 101272.5 | H161: 1.5
A162: 161 | B162: 67515 | C162: 1 | F162: 161 | G162: 101272.5 | H162: 1.5
A163: 162 | B163: 67515 | C163: 1 | F163: 162 | G163: 101272.5 | H163: 1.5
A164: 163 | B164: 67515 | C164: 1 | F164: 163 | G164: 101272.5 | H164: 1.5
A165: 164 | B165: 67515 | C165: 1 | F165: 164 | G165: 101272.5 | H165: 1.5
A166: 165 | B166: 67515 | C166: 1 | F166: 165 | G166: 101272.5 | H166: 1.5
A167: 166 | B167: 67515 | C167: 1 | F167: 166 | G167: 101272.5 | H167: 1.5
A168: 167 | B168: 67515 | C168: 1 | F168: 167 | G168: 101272.5 | H168: 1.5
A169: 168 | B169: 67515 | C169: 1 | F169: 168 | G169: 101272.5 | H169: 1.5
A170: 169 | B170: 67515 | C170: 1 | F170: 169 | G170: 101272.5 | H170: 1.5
A171: 170 | B171: 67515 | C171: 1 | F171: 170 | G171: 101272.5 | H171: 1.5
A172: 171 | B172: 67515 | C172: 1 | F172: 171 | G172: 101272.5 | H172: 1.5
A173: 172 | B173: 67515 | C173: 1 | F173: 172 | G173: 101272.5 | H173: 1.5
A174: 173 | B174: 67515 | C174: 1 | F174: 173 | G174: 101272.5 | H174: 1.5
A175: 174 | B175: 67515 | C175: 1 | F175: 174 | G175: 101272.5 | H175: 1.5
A176: 175 | B176: 67515 | C176: 1 | F176: 175 | G176: 101272.5 | H176: 1.5
A177: 176 | B177: 67515 | C177: 1 | F177: 176 | G177: 101272.5 | H177: 1.5
A178: 177 | B178: 67515 | C178: 1 | F178: 177 | G178: 101272.5 | H178: 1.5
A179: 178 | B179: 67515 | C179: 1 | F179: 178 | G179: 101272.5 | H179: 1.5
A180: 179 | B180: 67515 | C180: 1 | F180: 179 | G180: 101272.5 | H180: 1.5
A181: 180 | B181: 67515 | C181: 1 | F181: 180 | G181: 101272.5 | H181: 1.5
A182: 181 | B182: 67515 | C182: 1 | F182: 181 | G182: 101272.5 | H182: 1.5
A183: 182 | B183: 67515 | C183: 1 | F183: 182 | G183: 101272.5 | H183: 1.5
A184: 183 | B184: 67515 | C184: 1 | F184: 183 | G184: 101272.5 | H184: 1.5
A185: 184 | B185: 67515 | C185: 1 | F185: 184 | G185: 101272.5 | H185: 1.5
A186: 185 | B186: 67515 | C186: 1 | F186: 185 | G186: 101272.5 | H186: 1.5
A187: 186 | B187: 67515 | C187: 1 | F187: 186 | G187: 101272.5 | H187: 1.5
A188: 187 | B188: 67515 | C188: 1 | F188: 187 | G188: 101272.5 | H188: 1.5
A189: 188 | B189: 67515 | C189: 1 | F189: 188 | G189: 101272.5 | H189: 1.5
A190: 189 | B190: 67515 | C190: 1 | F190: 189 | G190: 101272.5 | H190: 1.5
A191: 190 | B191: 67515 | C191: 1 | F191: 190 | G191: 101272.5 | H191: 1.5
A192: 191 | B192: 67515 | C192: 1 | F192: 191 | G192: 101272.5 | H192: 1.5
A193: 192 | B193: 67515 | C193: 1 | F193: 192 | G193: 101272.5 | H193: 1.5
A194: 193 | B194: 67515 | C194: 1 | F194: 193 | G194: 101272.5 | H194: 1.5
A195: 194 | B195: =$D$2 -> 67515 | C195: =B195/$D$2 -> 1 | F195: 194 | G195: =H195*$D$2 -> 101272.5 | H195: =$L$1 -> 1.5
A196: 195 | B196: 67515 | C196: 1 | F196: 195 | G196: 101272.5 | H196: 1.5
A197: 196 | B197: 67515 | C197: 1 | F197: 196 | G197: 101272.5 | H197: 1.5
A198: 197 | B198: 67515 | C198: 1 | F198: 197 | G198: 101272.5 | H198: 1.5
A199: 198 | B199: 67515 | C199: 1 | F199: 198 | G199: 101272.5 | H199: 1.5
A200: 199 | B200: 67515 | C200: 1 | F200: 199 | G200: 101272.5 | H200: 1.5
... 4801 more rows

Sheet Step 3 - Staffing Tool
C2: ='Start Here - Data Entry '!D3&" - SALARY EXPENSES" -> Legacy Options HS - SALARY EXPENSES | W2: Step 3 - Staff Your School
W3: Determine staffing needs for years 0-5
W4: Several SBB allocations have FTE requirements.
Q5: - Enter in White Cells Only- | W5: They have been pre-populated for you.
W6: Don't forget employee costs for your planning year (year 0)
C8: INFORMATIONAL - REQUIRED PURCHASES
C9: Nurse Days | N9: 0 | Q9: =VALUE('Calculations - HIDE'!$K$214) -> 0.6 | T9: ='Calculations - HIDE'!$Q$214 -> 0.6 | W9: ='Calculations - HIDE'!$W$214 -> 0.6 | Z9: ='Calculations - HIDE'!$AC$214 -> 0.6 | AC9: ='Calculations - HIDE'!$AI$214 -> 0.6
C10: Mental Health Days | N10: 0 | Q10: ='Calculations - HIDE'!$K$239 -> 0.8 | T10: ='Calculations - HIDE'!$Q$239 -> 0.8 | W10: ='Calculations - HIDE'!$W$239 -> 0.8 | Z10: ='Calculations - HIDE'!$AC$239 -> 0.8 | AC10: ='Calculations - HIDE'!$AI$239 -> 0.8
C11: Mild Moderate FTE | N11: 0 | Q11: ='Calculations - HIDE'!$K$192 -> 1 | T11: ='Calculations - HIDE'!$Q$192 -> 1 | W11: ='Calculations - HIDE'!$W$192 -> 1 | Z11: ='Calculations - HIDE'!$AC$192 -> 1.5 | AC11: ='Calculations - HIDE'!$AI$192 -> 1.5
C12: Arts FTEs | N12: 0 | Q12: =VALUE(Q13+Q14) -> 0 | T12: =T13+T14 -> 0 | W12: =W13+W14 -> 0 | Z12: =Z13+Z14 -> 0 | AC12: =AC13+AC14 -> 0
C13: Arts Purchase General Fund | N13: 0 | Q13: =VALUE('Calculations - HIDE'!$K$168) -> 0 | T13: ='Calculations - HIDE'!$Q$168 -> 0 | W13: ='Calculations - HIDE'!$W$168 -> 0 | Z13: ='Calculations - HIDE'!$AC$168 -> 0 | AC13: ='Calculations - HIDE'!$AI$168 -> 0
C14: Arts Purchase Mill Levy | N14: 0 | Q14: =VALUE('Calculations - HIDE'!$K$100) -> 0 | T14: ='Calculations - HIDE'!$Q$100 -> 0 | W14: ='Calculations - HIDE'!$W$100 -> 0 | Z14: ='Calculations - HIDE'!$AC$100 -> 0 | AC14: ='Calculations - HIDE'!$AI$100 -> 0
Q15: 2015-16 | T15: 2016-17 | W15: 2017-18 | Z15: 2018-19 | AC15: 2019-20
A16: JOB CODE | C16: Type | D16: SALARY COST | E16: GF BENEFIT COST | F16: NON-GF BENEFIT COST | G16: GENERAL FUND AVERAGE SALARY + BENEFITS | H16: YEAR 1 AVERAGE | I16: YEAR 2 AVERAGE | J16: YEAR 3 AVERAGE | K16: YEAR 4 AVEARGE | L16: YEAR 5 AVERAGE | N16: YEAR 0 - FTE/HOURS | O16: YEAR 0 - $ | Q16: YEAR 1 - FTE/HOURS | R16: YEAR 1 - $ | T16: YEAR 2 - FTE/HOURS | U16: YEAR 2 - $ | W16: YEAR 3 - FTE/HOURS | X16: YEAR 3 - $ | Z16: YEAR 4 - FTE/HOURS | AA16: YEAR 4 - $ | AC16: YEAR 5 - FTE/HOURS | AD16: YEAR 5 - $
C18: PART TIME & HOURLY | N18: ENTER ANNUAL HOURS | Q18: ENTER ANNUAL HOURS | T18: ENTER ANNUAL HOURS | W18: ENTER ANNUAL HOURS | Z18: ENTER ANNUAL HOURS | AC18: ENTER ANNUAL HOURS
C19: Health Technician | D19: 11.68 | E19: =ROUND(D19*0.25,2) -> 2.92 | F19: =ROUND(D19*0.21,2) -> 2.45 | G19: =D19+E19 -> 14.6 | H19: =G19*(1+'Start Here - Data Entry '!$G$13) -> 14.6 | I19: =H19*(1+'Start Here - Data Entry '!$H$13) -> 14.6 | J19: =I19*(1+'Start Here - Data Entry '!$I$13) -> 14.6 | K19: =J19*(1+'Start Here - Data Entry '!$J$13) -> 14.6 | L19: =K19*(1+'Start Here - Data Entry '!$K$13) -> 14.6 | N19: 0 | O19: =ROUND(N19*$G19,0) -> 0 | Q19: =4*174 -> 696 | R19: =ROUND(Q19*$H19,0) -> 10162 | T19: 696 | U19: 10162 | W19: 696 | X19: 10162 | Z19: 696 | AA19: 10162 | AC19: 696 | AD19: 10162
C20: PARAPROFESSIONAL | D20: 13.25 | E20: =ROUND(D20*0.25,2) -> 3.31 | F20: =ROUND(D20*0.21,2) -> 2.78 | G20: =D20+E20 -> 16.56 | H20: =G20*(1+'Start Here - Data Entry '!$G$13) -> 16.56 | I20: =H20*(1+'Start Here - Data Entry '!$H$13) -> 16.56 | J20: =I20*(1+'Start Here - Data Entry '!$I$13) -> 16.56 | K20: =J20*(1+'Start Here - Data Entry '!$J$13) -> 16.56 | L20: =K20*(1+'Start Here - Data Entry '!$K$13) -> 16.56 | N20: 0 | O20: =ROUND(N20*$G20,0) -> 0 | Q20: 0 | R20: =ROUND(Q20*$H20,0) -> 0 | T20: 0 | U20: =ROUND(T20*$I20,0) -> 0 | W20: 0 | X20: =ROUND(W20*$J20,0) -> 0 | Z20: 0 | AA20: =ROUND(Z20*$K20,0) -> 0 | AC20: 0 | AD20: =ROUND(AC20*$L20,0) -> 0
C21: PARAPROFESSIONAL | D21: 13.25 | E21: 3.31 | F21: 2.78 | G21: 16.56 | H21: =G21*(1+'Start Here - Data Entry '!$G$13) -> 16.56 | I21: =H21*(1+'Start Here - Data Entry '!$H$13) -> 16.56 | J21: =I21*(1+'Start Here - Data Entry '!$I$13) -> 16.56 | K21: =J21*(1+'Start Here - Data Entry '!$J$13) -> 16.56 | L21: =K21*(1+'Start Here - Data Entry '!$K$13) -> 16.56 | N21: 0 | O21: 0 | Q21: 0 | R21: 0 | T21: 0 | U21: 0 | W21: 0 | X21: 0 | Z21: 0 | AA21: 0 | AC21: 0 | AD21: 0
C22: PARAPROFESSIONAL | D22: 13.25 | E22: 3.31 | F22: 2.78 | G22: 16.56 | H22: =G22*(1+'Start Here - Data Entry '!$G$13) -> 16.56 | I22: =H22*(1+'Start Here - Data Entry '!$H$13) -> 16.56 | J22: =I22*(1+'Start Here - Data Entry '!$I$13) -> 16.56 | K22: =J22*(1+'Start Here - Data Entry '!$J$13) -> 16.56 | L22: =K22*(1+'Start Here - Data Entry '!$K$13) -> 16.56 | N22: 0 | O22: 0 | Q22: 0 | R22: 0 | T22: 0 | U22: 0 | W22: 0 | X22: 0 | Z22: 0 | AA22: 0 | AC22: 0 | AD22: 0
C23: PART TIME TOTAL | F23: =SUM(F8:F22) -> 10.79 | N23: =SUM(N19:N22) -> 0 | O23: =SUM(O19:O22) -> 0 | Q23: =SUM(Q19:Q22) -> 696 | R23: =SUM(R19:R22) -> 10162 | T23: =SUM(T19:T22) -> 696 | U23: =SUM(U19:U22) -> 10162 | W23: =SUM(W19:W22) -> 696 | X23: =SUM(X19:X22) -> 10162 | Z23: =SUM(Z19:Z22) -> 696 | AA23: =SUM(AA19:AA22) -> 10162 | AC23: =SUM(AC19:AC22) -> 696 | AD23: =SUM(AD19:AD22) -> 10162
C25: FULL TIME | N25: ENTER FTEs | Q25: ENTER FTEs | T25: ENTER FTEs | W25: ENTER FTEs | Z25: ENTER FTEs | AC25: ENTER FTEs
C26: CLASSROOM STAFF
A27: 3328 | C27: CTE Teacher | D27: 52280 | E27: =(D27*0.1918)+5208 -> 15235.304 | F27: 19620 | G27: =D27+E27 -> 67515.304 | H27: =G27*(1+'Start Here - Data Entry '!$G$13) -> 67515.304 | I27: =H27*(1+'Start Here - Data Entry '!$H$13) -> 67515.304 | J27: =I27*(1+'Start Here - Data Entry '!$I$13) -> 67515.304 | K27: =J27*(1+'Start Here - Data Entry '!$J$13) -> 67515.304 | L27: =K27*(1+'Start Here - Data Entry '!$K$13) -> 67515.304 | N27: 0 | O27: =ROUND(N27*$G27,0) -> 0 | Q27: 0 | R27: =ROUND(Q27*$H27,0) -> 0 | T27: 0 | U27: =T27*G27 -> 0 | X27: =W27*G27 -> 0 | AA27: =Z27*G27 -> 0 | AD27: =AC27*G27 -> 0 | AF27: 3 CTE teachers centrally funded beginning in Year 3
A28: 3302 | C28: Regular/Supplemental Teacher | D28: 41000 | E28: =(D28*0.1918)+5208 -> 13071.8 | F28: 19620 | G28: =D28+E28 -> 54071.8 | H28: =G28*(1+'Start Here - Data Entry '!$G$13) -> 54071.8 | I28: =H28*(1+'Start Here - Data Entry '!$H$13) -> 54071.8 | J28: =I28*(1+'Start Here - Data Entry '!$I$13) -> 54071.8 | K28: =J28*(1+'Start Here - Data Entry '!$J$13) -> 54071.8 | L28: =K28*(1+'Start Here - Data Entry '!$K$13) -> 54071.8 | N28: 0 | O28: 0 | Q28: 4 | R28: 216287 | T28: 8 | U28: =T28*G28 -> 432574.4 | W28: 12 | X28: =W28*G28 -> 648861.6 | Z28: 16 | AA28: =Z28*G28 -> 865148.8 | AC28: 16 | AD28: =AC28*G28 -> 865148.8
A29: 3302 | C29: Gifted & Talented Teacher | D29: 52280 | E29: 15235.304 | F29: 19620 | G29: 67515.304 | H29: =G29*(1+'Start Here - Data Entry '!$G$13) -> 67515.304 | I29: =H29*(1+'Start Here - Data Entry '!$H$13) -> 67515.304 | J29: =I29*(1+'Start Here - Data Entry '!$I$13) -> 67515.304 | K29: =J29*(1+'Start Here - Data Entry '!$J$13) -> 67515.304 | L29: =K29*(1+'Start Here - Data Entry '!$K$13) -> 67515.304 | N29: 0 | O29: 0 | Q29: 0 | R29: 0 | T29: 0 | U29: 0 | W29: 0 | X29: 0 | Z29: 0 | AA29: 0 | AC29: 0 | AD29: 0
A30: 3329 | C30: Lead Teacher | D30: 56265 | E30: 15999.627 | F30: 19620 | G30: 72264.627 | H30: =G30*(1+'Start Here - Data Entry '!$G$13) -> 72264.627 | I30: =H30*(1+'Start Here - Data Entry '!$H$13) -> 72264.627 | J30: =I30*(1+'Start Here - Data Entry '!$I$13) -> 72264.627 | K30: =J30*(1+'Start Here - Data Entry '!$J$13) -> 72264.627 | L30: =K30*(1+'Start Here - Data Entry '!$K$13) -> 72264.627 | N30: 0 | O30: 0 | Q30: 0 | R30: 0 | T30: 0 | U30: 0 | W30: 0 | X30: 0 | Z30: 0 | AA30: 0 | AC30: 0 | AD30: 0
A31: 3337 | C31: Mild/Moderate Teacher (Recommended) | D31: 47500 | E31: 14318.5 | F31: 19620 | G31: 61818.5 | H31: =G31*(1+'Start Here - Data Entry '!$G$13) -> 61818.5 | I31: =H31*(1+'Start Here - Data Entry '!$H$13) -> 61818.5 | J31: =I31*(1+'Start Here - Data Entry '!$I$13) -> 61818.5 | K31: =J31*(1+'Start Here - Data Entry '!$J$13) -> 61818.5 | L31: =K31*(1+'Start Here - Data Entry '!$K$13) -> 61818.5 | N31: 0 | O31: 0 | Q31: 0.5 | R31: 30909 | T31: 1 | U31: 61818.5 | W31: 1 | X31: 61818.5 | Z31: 1 | AA31: 61818.5 | AC31: 1 | AD31: 61818.5
A32: 3302 | C32: ESL / Zone Teacher (ELD Teacher) | D32: 52280 | E32: 15235.304 | F32: 19620 | G32: 67515.304 | H32: =G32*(1+'Start Here - Data Entry '!$G$13) -> 67515.304 | I32: =H32*(1+'Start Here - Data Entry '!$H$13) -> 67515.304 | J32: =I32*(1+'Start Here - Data Entry '!$I$13) -> 67515.304 | K32: =J32*(1+'Start Here - Data Entry '!$J$13) -> 67515.304 | L32: =K32*(1+'Start Here - Data Entry '!$K$13) -> 67515.304 | N32: 0 | O32: 0 | Q32: 0.5 | R32: 33758 | T32: 0.5 | U32: 33757.652 | W32: 0.5 | X32: 33757.652 | Z32: 0.5 | AA32: 33757.652 | AC32: 0.5 | AD32: 33757.652
A33: 3302 | C33: Elective Teachers (Arts, Technology, Language, etc) | D33: 45000 | E33: 13839 | F33: 19620 | G33: 58839 | H33: =G33*(1+'Start Here - Data Entry '!$G$13) -> 58839 | I33: =H33*(1+'Start Here - Data Entry '!$H$13) -> 58839 | J33: =I33*(1+'Start Here - Data Entry '!$I$13) -> 58839 | K33: =J33*(1+'Start Here - Data Entry '!$J$13) -> 58839 | L33: =K33*(1+'Start Here - Data Entry '!$K$13) -> 58839 | N33: 0 | O33: 0 | Q33: 0.5 | R33: 29420 | T33: 1 | U33: 58839 | W33: 1 | X33: 58839 | Z33: 1 | AA33: 58839 | AC33: 1 | AD33: 58839
A34: 3306 | C34: Librarian | D34: 52280 | E34: 15235.304 | F34: 19620 | G34: 67515.304 | H34: =G34*(1+'Start Here - Data Entry '!$G$13) -> 67515.304 | I34: =H34*(1+'Start Here - Data Entry '!$H$13) -> 67515.304 | J34: =I34*(1+'Start Here - Data Entry '!$I$13) -> 67515.304 | K34: =J34*(1+'Start Here - Data Entry '!$J$13) -> 67515.304 | L34: =K34*(1+'Start Here - Data Entry '!$K$13) -> 67515.304 | N34: 0 | O34: 0 | Q34: 0 | R34: 0 | T34: 0 | U34: 0 | W34: 0 | X34: 0 | Z34: 0 | AA34: 0 | AC34: 0 | AD34: 0
A35: 7300 | C35: TOSA (Teacher on Special Assignment) | D35: 58608 | E35: 16449.0144 | F35: 19620 | G35: =D35+E35 -> 75057.0144 | H35: =G35*(1+'Start Here - Data Entry '!$G$13) -> 75057.0144 | I35: =H35*(1+'Start Here - Data Entry '!$H$13) -> 75057.0144 | J35: =I35*(1+'Start Here - Data Entry '!$I$13) -> 75057.0144 | K35: =J35*(1+'Start Here - Data Entry '!$J$13) -> 75057.0144 | L35: =K35*(1+'Start Here - Data Entry '!$K$13) -> 75057.0144 | N35: 0 | O35: 0 | Q35: 0 | R35: 0 | T35: 0 | U35: 0 | V35: 5 | W35: 0 | X35: 0 | Z35: 0 | AA35: 0 | AC35: 0 | AD35: 0
A36: 3362 | C36: Guidance Counselor | D36: 50018 | E36: 14801.4524 | F36: 19620 | G36: 64819.4524 | H36: =G36*(1+'Start Here - Data Entry '!$G$13) -> 64819.4524 | I36: =H36*(1+'Start Here - Data Entry '!$H$13) -> 64819.4524 | J36: =I36*(1+'Start Here - Data Entry '!$I$13) -> 64819.4524 | K36: =J36*(1+'Start Here - Data Entry '!$J$13) -> 64819.4524 | L36: =K36*(1+'Start Here - Data Entry '!$K$13) -> 64819.4524 | N36: 0 | O36: 0 | Q36: 1 | R36: 64819 | T36: 1 | U36: 64819.4524 | W36: 1 | X36: 64819.4524 | Z36: 1 | AA36: 64819.4524 | AC36: 1 | AD36: 64819.4524
A37: 3372 | C37: Phys Ed | D37: 45000 | E37: 13839 | F37: 19620 | G37: 58839 | H37: =G37*(1+'Start Here - Data Entry '!$G$13) -> 58839 | I37: =H37*(1+'Start Here - Data Entry '!$H$13) -> 58839 | J37: =I37*(1+'Start Here - Data Entry '!$I$13) -> 58839 | K37: =J37*(1+'Start Here - Data Entry '!$J$13) -> 58839 | L37: =K37*(1+'Start Here - Data Entry '!$K$13) -> 58839 | N37: 0 | O37: 0 | Q37: 0.5 | R37: 29420 | T37: 0.5 | U37: 29419.5 | W37: 0.5 | X37: 29419.5 | Z37: 0.5 | AA37: 29419.5 | AC37: 0.5 | AD37: 29419.5
A38: 1401 | C38: Mental Health (Psych and/or Social Worker) (min 0.2 Psych req'd) | D38: 59000 | E38: 16524.2 | F38: 19620 | G38: 75524.2 | H38: =G38*(1+'Start Here - Data Entry '!$G$13) -> 75524.2 | I38: =H38*(1+'Start Here - Data Entry '!$H$13) -> 75524.2 | J38: =I38*(1+'Start Here - Data Entry '!$I$13) -> 75524.2 | K38: =J38*(1+'Start Here - Data Entry '!$J$13) -> 75524.2 | L38: =K38*(1+'Start Here - Data Entry '!$K$13) -> 75524.2 | N38: 0 | O38: 0 | Q38: 1 | R38: 75524 | T38: 1 | U38: 75524.2 | W38: 1 | X38: 75524.2 | Z38: 1 | AA38: 75524.2 | AC38: 1 | AD38: 75524.2
A39: 1530 | C39: Nurse (minimum 0.2 FTE required) | D39: 52473 | E39: 15272.3214 | F39: 19620 | G39: 67745.3214 | H39: =G39*(1+'Start Here - Data Entry '!$G$13) -> 67745.3214 | I39: =H39*(1+'Start Here - Data Entry '!$H$13) -> 67745.3214 | J39: =I39*(1+'Start Here - Data Entry '!$I$13) -> 67745.3214 | K39: =J39*(1+'Start Here - Data Entry '!$J$13) -> 67745.3214 | L39: =K39*(1+'Start Here - Data Entry '!$K$13) -> 67745.3214 | N39: 0 | O39: 0 | Q39: 0.2 | R39: 13549 | T39: 0.4 | U39: 27098.12856 | W39: 0.4 | X39: 27098.12856 | Z39: 0.4 | AA39: 27098.12856 | AC39: 0.4 | AD39: 27098.12856
A40: 3407 | C40: Facilitator | D40: 64689 | E40: =(D40*0.1918)+5208 -> 17615.3502 | F40: 19620 | G40: 82304.3502 | H40: =G40*(1+'Start Here - Data Entry '!$G$13) -> 82304.3502 | I40: =H40*(1+'Start Here - Data Entry '!$H$13) -> 82304.3502 | J40: =I40*(1+'Start Here - Data Entry '!$I$13) -> 82304.3502 | K40: =J40*(1+'Start Here - Data Entry '!$J$13) -> 82304.3502 | L40: =K40*(1+'Start Here - Data Entry '!$K$13) -> 82304.3502 | N40: 0 | O40: 0 | Q40: 0 | R40: 0 | T40: 0 | U40: 0 | W40: 0 | X40: 0 | Z40: 0 | AA40: 0 | AC40: 0 | AD40: 0
C41: CLASSROOM STAFF TOTAL | F41: =SUM(F27:F40) -> 274680 | N41: =SUM(N27:N40) -> 0 | O41: =SUM(O27:O40) -> 0 | Q41: =SUM(Q27:Q40) -> 8.2 | R41: =SUM(R27:R40) -> 493686 | S41: =SUM(T28:T40) -> 13.4 | T41: =SUM(T27:T40) -> 13.4 | U41: =SUM(U27:U40) -> 783850.833 | W41: =SUM(W27:W40) -> 17.4 | X41: =SUM(X27:X40) -> 1000138.033 | Z41: =SUM(Z27:Z40) -> 21.4 | AA41: =SUM(AA27:AA40) -> 1216425.233 | AC41: =SUM(AC27:AC40) -> 21.4 | AD41: =SUM(AD27:AD40) -> 1216425.233
C43: PRO TECH STAFF
A44: 6339 | C44: LPN | D44: 33195 | E44: 10274 | F44: 10403 | G44: =D44+E44 -> 43469 | H44: =G44*(1+'Start Here - Data Entry '!$G$13) -> 43469 | I44: =H44*(1+'Start Here - Data Entry '!$H$13) -> 43469 | J44: =I44*(1+'Start Here - Data Entry '!$I$13) -> 43469 | K44: =J44*(1+'Start Here - Data Entry '!$J$13) -> 43469 | L44: =K44*(1+'Start Here - Data Entry '!$K$13) -> 43469 | N44: 0 | O44: =ROUND(N44*$G44,0) -> 0 | Q44: 0 | R44: =ROUND(Q44*$H44,0) -> 0 | T44: 0 | U44: 0 | W44: 0 | X44: 0 | Z44: 0 | AA44: 0 | AC44: 0 | AD44: 0
A45: 6282 | C45: Community Liaison 200 | D45: 34117 | E45: 10223 | F45: 11437 | G45: =D45+E45 -> 44340 | H45: =G45*(1+'Start Here - Data Entry '!$G$13) -> 44340 | I45: =H45*(1+'Start Here - Data Entry '!$H$13) -> 44340 | J45: =I45*(1+'Start Here - Data Entry '!$I$13) -> 44340 | K45: =J45*(1+'Start Here - Data Entry '!$J$13) -> 44340 | L45: =K45*(1+'Start Here - Data Entry '!$K$13) -> 44340 | N45: 0 | O45: 0 | Q45: 0 | R45: 0 | T45: 0 | U45: 0 | W45: 0 | X45: 0 | Z45: 0 | AA45: 0 | AC45: 0 | AD45: 0
A46: 6123 | C46: Math Fellow | D46: 22061 | E46: 8860 | F46: 10875 | G46: 30921 | H46: =G46*(1+'Start Here - Data Entry '!$G$13) -> 30921 | I46: =H46*(1+'Start Here - Data Entry '!$H$13) -> 30921 | J46: =I46*(1+'Start Here - Data Entry '!$I$13) -> 30921 | K46: =J46*(1+'Start Here - Data Entry '!$J$13) -> 30921 | L46: =K46*(1+'Start Here - Data Entry '!$K$13) -> 30921 | N46: 0 | O46: 0 | Q46: 0 | R46: 0 | T46: 0 | U46: 0 | W46: 0 | X46: 0 | Z46: 0 | AA46: 0 | AC46: 0 | AD46: 0
A47: 6354 | C47: SFPC Liaison | D47: 46558 | E47: 13029 | F47: 12009 | G47: 59587 | H47: =G47*(1+'Start Here - Data Entry '!$G$13) -> 59587 | I47: =H47*(1+'Start Here - Data Entry '!$H$13) -> 59587 | J47: =I47*(1+'Start Here - Data Entry '!$I$13) -> 59587 | K47: =J47*(1+'Start Here - Data Entry '!$J$13) -> 59587 | L47: =K47*(1+'Start Here - Data Entry '!$K$13) -> 59587 | N47: 0 | O47: 0 | Q47: 0 | R47: 0 | T47: 0 | U47: 0 | W47: 0 | X47: 0 | Z47: 0 | AA47: 0 | AC47: 0 | AD47: 0
A48: 6327 | C48: Admin Assistant/ Budget Partner | D48: 45000 | E48: 3104 | F48: 10280 | G48: 48104 | H48: =G48*(1+'Start Here - Data Entry '!$G$13) -> 48104 | I48: =H48*(1+'Start Here - Data Entry '!$H$13) -> 48104 | J48: =I48*(1+'Start Here - Data Entry '!$I$13) -> 48104 | K48: =J48*(1+'Start Here - Data Entry '!$J$13) -> 48104 | L48: =K48*(1+'Start Here - Data Entry '!$K$13) -> 48104 | N48: 0 | O48: 0 | Q48: 1 | R48: 48104 | T48: 1 | U48: =T48*G48 -> 48104 | W48: 1 | X48: =W48*G48 -> 48104 | Z48: 1 | AA48: =Z48*G48 -> 48104 | AC48: 1 | AD48: =AC48*G48 -> 48104
A49: 6226 | C49: Restorative Justice Coordinator | D49: 27039 | E49: 9093 | F49: 17054 | G49: 36132 | H49: =G49*(1+'Start Here - Data Entry '!$G$13) -> 36132 | I49: =H49*(1+'Start Here - Data Entry '!$H$13) -> 36132 | J49: =I49*(1+'Start Here - Data Entry '!$I$13) -> 36132 | K49: =J49*(1+'Start Here - Data Entry '!$J$13) -> 36132 | L49: =K49*(1+'Start Here - Data Entry '!$K$13) -> 36132 | N49: 0 | O49: 0 | Q49: 1.5 | R49: 54198 | T49: 1.5 | U49: =T49*G49 -> 54198 | W49: 1.5 | X49: =W49*G49 -> 54198 | Z49: 1.5 | AA49: =Z49*G49 -> 54198 | AC49: 1.5 | AD49: =AC49*G49 -> 54198
A50: 9686 | C50: School Technology Specialist I - 212 days | D50: 32801 | E50: 10198 | F50: 12095 | G50: 42999 | H50: =G50*(1+'Start Here - Data Entry '!$G$13) -> 42999 | I50: =H50*(1+'Start Here - Data Entry '!$H$13) -> 42999 | J50: =I50*(1+'Start Here - Data Entry '!$I$13) -> 42999 | K50: =J50*(1+'Start Here - Data Entry '!$J$13) -> 42999 | L50: =K50*(1+'Start Here - Data Entry '!$K$13) -> 42999 | N50: 0 | O50: 0 | Q50: 0 | R50: 0 | T50: 0 | U50: 0 | W50: 0 | X50: 0 | Z50: 0 | AA50: 0 | AC50: 0 | AD50: 0
A51: 9687 | C51: School Technology Specialist II - 212 days | D51: 48722 | E51: 13252 | F51: 14811 | G51: 61974 | H51: =G51*(1+'Start Here - Data Entry '!$G$13) -> 61974 | I51: =H51*(1+'Start Here - Data Entry '!$H$13) -> 61974 | J51: =I51*(1+'Start Here - Data Entry '!$I$13) -> 61974 | K51: =J51*(1+'Start Here - Data Entry '!$J$13) -> 61974 | L51: =K51*(1+'Start Here - Data Entry '!$K$13) -> 61974 | N51: 0 | O51: 0 | Q51: 0 | R51: 0 | T51: 0 | U51: 0 | W51: 0 | X51: 0 | Z51: 0 | AA51: 0 | AC51: 0 | AD51: 0
C52: PRO TECH STAFF TOTAL | F52: =SUM(F44:F51) -> 98964 | N52: =SUM(N44:N51) -> 0 | O52: =SUM(O44:O51) -> 0 | Q52: =SUM(Q44:Q51) -> 2.5 | R52: =SUM(R44:R51) -> 102302 | T52: =SUM(T44:T51) -> 2.5 | U52: =SUM(U44:U51) -> 102302 | W52: =SUM(W44:W51) -> 2.5 | X52: =SUM(X44:X51) -> 102302 | Z52: =SUM(Z44:Z51) -> 2.5 | AA52: =SUM(AA44:AA51) -> 102302 | AC52: =SUM(AC44:AC51) -> 2.5 | AD52: =SUM(AD44:AD51) -> 102302
C54: ADMINISTRATIVE STAFF
A55: =VLOOKUP('Start Here - Data Entry '!$E$5,'Step 3 - Staffing Tool'!$B$87:$QM$91,3,FALSE) -> 7500-233 | C55: Principal | D55: 116004 | E55: =D55*0.26 -> 30161.04 | F55: 19620 | G55: =D55+E55 -> 146165.04 | H55: =G55*(1+'Start Here - Data Entry '!$G$13) -> 146165.04 | I55: =H55*(1+'Start Here - Data Entry '!$H$13) -> 146165.04 | J55: =I55*(1+'Start Here - Data Entry '!$I$13) -> 146165.04 | K55: =J55*(1+'Start Here - Data Entry '!$J$13) -> 146165.04 | L55: =K55*(1+'Start Here - Data Entry '!$K$13) -> 146165.04 | N55: 0 | O55: =ROUND(N55*$G55,0) -> 0 | Q55: 1 | R55: =ROUND(Q55*$H55,0) -> 146165 | T55: 1 | U55: 146165 | W55: 1 | X55: 146165 | Z55: 1 | AA55: 146165 | AC55: 1 | AD55: 146165
A56: =VLOOKUP('Start Here - Data Entry '!$E$5,'Step 3 - Staffing Tool'!$B$87:$QM$91,6,FALSE) -> 7318-235 | C56: Asst School Principal | D56: 80000 | E56: =D56*0.26 -> 20800 | F56: 19620 | G56: =D56+E56 -> 100800 | H56: =G56*(1+'Start Here - Data Entry '!$G$13) -> 100800 | I56: =H56*(1+'Start Here - Data Entry '!$H$13) -> 100800 | J56: =I56*(1+'Start Here - Data Entry '!$I$13) -> 100800 | K56: =J56*(1+'Start Here - Data Entry '!$J$13) -> 100800 | L56: =K56*(1+'Start Here - Data Entry '!$K$13) -> 100800 | N56: 0 | O56: 0 | Q56: 0 | R56: 0 | T56: 0 | U56: =ROUND(T56*$I56,0) -> 0 | W56: 1 | X56: =ROUND(W56*$J56,0) -> 100800 | Z56: 1 | AA56: =ROUND(Z56*$K56,0) -> 100800 | AC56: 1 | AD56: =ROUND(AC56*$L56,0) -> 100800
A57: =VLOOKUP('Start Here - Data Entry '!$E$5,'Step 3 - Staffing Tool'!$B$87:$QM$91,9,FALSE) -> 7458-233 | C57: Business Manager | D57: =AVERAGE(69538,66590) -> 68064 | E57: 17696.64 | F57: 19620 | G57: =D57+E57 -> 85760.64 | H57: =G57*(1+'Start Here - Data Entry '!$G$13) -> 85760.64 | I57: =H57*(1+'Start Here - Data Entry '!$H$13) -> 85760.64 | J57: =I57*(1+'Start Here - Data Entry '!$I$13) -> 85760.64 | K57: =J57*(1+'Start Here - Data Entry '!$J$13) -> 85760.64 | L57: =K57*(1+'Start Here - Data Entry '!$K$13) -> 85760.64 | N57: 0 | O57: =ROUND(N57*$G57,0) -> 0 | Q57: 0 | R57: =ROUND(Q57*$H57,0) -> 0 | T57: 0 | U57: =ROUND(T57*$I57,0) -> 0 | W57: 0 | X57: =ROUND(W57*$J57,0) -> 0 | Z57: 0 | AA57: =ROUND(Z57*$K57,0) -> 0 | AC57: 0 | AD57: =ROUND(AC57*$L57,0) -> 0
A58: =VLOOKUP('Start Here - Data Entry '!$E$5,'Step 3 - Staffing Tool'!$B$87:$QM$91,9,FALSE) -> 7458-233 | C58: Grade Level Deans | D58: 69000 | E58: 17940 | F58: 19620 | G58: =D58+E58 -> 86940 | H58: =G58*(1+'Start Here - Data Entry '!$G$13) -> 86940 | I58: =H58*(1+'Start Here - Data Entry '!$H$13) -> 86940 | J58: =I58*(1+'Start Here - Data Entry '!$I$13) -> 86940 | K58: =J58*(1+'Start Here - Data Entry '!$J$13) -> 86940 | L58: =K58*(1+'Start Here - Data Entry '!$K$13) -> 86940 | N58: 0 | O58: 0 | Q58: 0 | R58: 0 | T58: 0 | U58: 0 | W58: 0 | X58: 0 | Z58: 0 | AA58: 0 | AC58: 0 | AD58: 0
A59: =VLOOKUP('Start Here - Data Entry '!$E$5,'Step 3 - Staffing Tool'!$B$87:$QM$91,13,FALSE) -> 7464-233 | C59: Office Manager | D59: =AVERAGE(45063,49331,49896) -> 48096.66667 | E59: 12505.13333 | F59: 19620 | G59: =D59+E59 -> 60601.8 | H59: =G59*(1+'Start Here - Data Entry '!$G$13) -> 60601.8 | I59: =H59*(1+'Start Here - Data Entry '!$H$13) -> 60601.8 | J59: =I59*(1+'Start Here - Data Entry '!$I$13) -> 60601.8 | K59: =J59*(1+'Start Here - Data Entry '!$J$13) -> 60601.8 | L59: =K59*(1+'Start Here - Data Entry '!$K$13) -> 60601.8 | N59: 0 | O59: 0 | Q59: 0 | R59: 0 | T59: 0 | U59: 0 | W59: 0 | X59: 0 | Z59: 0 | AA59: 0 | AC59: 0 | AD59: 0
C60: ADMINISTRATIVE STAFF TOTAL | F60: =SUM(F55:F59) -> 98100 | N60: =SUM(N55:N59) -> 0 | O60: =SUM(O55:O59) -> 0 | Q60: =SUM(Q55:Q59) -> 1 | R60: =SUM(R55:R59) -> 146165 | T60: =SUM(T55:T59) -> 1 | U60: =SUM(U55:U59) -> 146165 | W60: =SUM(W55:W59) -> 2 | X60: =SUM(X55:X59) -> 246965 | Z60: =SUM(Z55:Z59) -> 2 | AA60: =SUM(AA55:AA59) -> 246965 | AC60: =SUM(AC55:AC59) -> 2 | AD60: =SUM(AD55:AD59) -> 246965
C62: CLERICAL STAFF
A63: 1749 | C63: OFFICE SUPPORT I - 200 | D63: 25045 | E63: 8680 | F63: 19620 | G63: =D63+E63 -> 33725 | H63: =G63*(1+'Start Here - Data Entry '!$G$13) -> 33725 | I63: =H63*(1+'Start Here - Data Entry '!$H$13) -> 33725 | J63: =I63*(1+'Start Here - Data Entry '!$I$13) -> 33725 | K63: =J63*(1+'Start Here - Data Entry '!$J$13) -> 33725 | L63: =K63*(1+'Start Here - Data Entry '!$K$13) -> 33725 | N63: 0 | O63: =ROUND(N63*$G63,0) -> 0 | Q63: 0 | R63: =ROUND(Q63*$H63,0) -> 0 | T63: 0 | U63: =ROUND(T63*$I63,0) -> 0 | W63: 0 | X63: =ROUND(W63*$J63,0) -> 0 | Z63: 0 | AA63: =ROUND(Z63*$K63,0) -> 0 | AC63: 0 | AD63: =ROUND(AC63*$L63,0) -> 0
A64: 1706 | C64: OFFICE SUPPORT II - 200 | D64: 33860 | E64: 10370 | F64: 19620 | G64: =D64+E64 -> 44230 | H64: =G64*(1+'Start Here - Data Entry '!$G$13) -> 44230 | I64: =H64*(1+'Start Here - Data Entry '!$H$13) -> 44230 | J64: =I64*(1+'Start Here - Data Entry '!$I$13) -> 44230 | K64: =J64*(1+'Start Here - Data Entry '!$J$13) -> 44230 | L64: =K64*(1+'Start Here - Data Entry '!$K$13) -> 44230 | N64: 0 | O64: =ROUND(N64*$G64,0) -> 0 | Q64: 0 | R64: =ROUND(Q64*$H64,0) -> 0 | T64: 0 | U64: =ROUND(T64*$I64,0) -> 0 | W64: 0 | X64: =ROUND(W64*$J64,0) -> 0 | Z64: 0 | AA64: =ROUND(Z64*$K64,0) -> 0 | AC64: 0 | AD64: =ROUND(AC64*$L64,0) -> 0
A65: 1614 | C65: OFFICE SUPPORT III - 200 | D65: 38300 | E65: 11222 | F65: 19620 | G65: =D65+E65 -> 49522 | H65: =G65*(1+'Start Here - Data Entry '!$G$13) -> 49522 | I65: =H65*(1+'Start Here - Data Entry '!$H$13) -> 49522 | J65: =I65*(1+'Start Here - Data Entry '!$I$13) -> 49522 | K65: =J65*(1+'Start Here - Data Entry '!$J$13) -> 49522 | L65: =K65*(1+'Start Here - Data Entry '!$K$13) -> 49522 | N65: 0 | O65: =ROUND(N65*$G65,0) -> 0 | Q65: 0 | R65: =ROUND(Q65*$H65,0) -> 0 | T65: 0 | U65: =ROUND(T65*$I65,0) -> 0 | W65: 0 | X65: =ROUND(W65*$J65,0) -> 0 | Z65: 0 | AA65: =ROUND(Z65*$K65,0) -> 0 | AC65: 0 | AD65: =ROUND(AC65*$L65,0) -> 0
A66: 1711 | C66: OFFICE SUPPORT I - 220 | D66: 32850 | E66: 10177 | F66: 19620 | G66: =D66+E66 -> 43027 | H66: =G66*(1+'Start Here - Data Entry '!$G$13) -> 43027 | I66: =H66*(1+'Start Here - Data Entry '!$H$13) -> 43027 | J66: =I66*(1+'Start Here - Data Entry '!$I$13) -> 43027 | K66: =J66*(1+'Start Here - Data Entry '!$J$13) -> 43027 | L66: =K66*(1+'Start Here - Data Entry '!$K$13) -> 43027 | N66: 0 | O66: =ROUND(N66*$G66,0) -> 0 | Q66: 0 | R66: =ROUND(Q66*$H66,0) -> 0 | T66: 0 | U66: =ROUND(T66*$I66,0) -> 0 | W66: 0 | X66: =ROUND(W66*$J66,0) -> 0 | Z66: 0 | AA66: =ROUND(Z66*$K66,0) -> 0 | AC66: 0 | AD66: =ROUND(AC66*$L66,0) -> 0
A67: 1709 | C67: OFFICE SUPPORT II - 220 | D67: 35913 | E67: 10764 | F67: 19620 | G67: =D67+E67 -> 46677 | H67: =G67*(1+'Start Here - Data Entry '!$G$13) -> 46677 | I67: =H67*(1+'Start Here - Data Entry '!$H$13) -> 46677 | J67: =I67*(1+'Start Here - Data Entry '!$I$13) -> 46677 | K67: =J67*(1+'Start Here - Data Entry '!$J$13) -> 46677 | L67: =K67*(1+'Start Here - Data Entry '!$K$13) -> 46677 | N67: 0 | O67: =ROUND(N67*$G67,0) -> 0 | Q67: 0 | R67: =ROUND(Q67*$H67,0) -> 0 | T67: 0 | U67: =ROUND(T67*$I67,0) -> 0 | W67: 0 | X67: =ROUND(W67*$J67,0) -> 0 | Z67: 0 | AA67: =ROUND(Z67*$K67,0) -> 0 | AC67: 0 | AD67: =ROUND(AC67*$L67,0) -> 0
A68: 1722 | C68: OFFICE SUPPORT III - 220 | D68: 41774 | E68: 11888 | F68: 19620 | G68: =D68+E68 -> 53662 | H68: =G68*(1+'Start Here - Data Entry '!$G$13) -> 53662 | I68: =H68*(1+'Start Here - Data Entry '!$H$13) -> 53662 | J68: =I68*(1+'Start Here - Data Entry '!$I$13) -> 53662 | K68: =J68*(1+'Start Here - Data Entry '!$J$13) -> 53662 | L68: =K68*(1+'Start Here - Data Entry '!$K$13) -> 53662 | N68: 0 | O68: =ROUND(N68*$G68,0) -> 0 | Q68: 0 | R68: =ROUND(Q68*$H68,0) -> 0 | T68: 0 | U68: =ROUND(T68*$I68,0) -> 0 | W68: 0 | X68: =ROUND(W68*$J68,0) -> 0 | Z68: 0 | AA68: =ROUND(Z68*$K68,0) -> 0 | AC68: 0 | AD68: =ROUND(AC68*$L68,0) -> 0
A69: 1702 | C69: Secretary I - 200 | D69: 26567 | E69: 8972 | F69: 19620 | G69: 35539 | H69: =G69*(1+'Start Here - Data Entry '!$G$13) -> 35539 | I69: =H69*(1+'Start Here - Data Entry '!$H$13) -> 35539 | J69: =I69*(1+'Start Here - Data Entry '!$I$13) -> 35539 | K69: =J69*(1+'Start Here - Data Entry '!$J$13) -> 35539 | L69: =K69*(1+'Start Here - Data Entry '!$K$13) -> 35539 | N69: 0 | O69: 0 | Q69: 0 | R69: 0 | T69: 0 | U69: 0 | W69: 0 | X69: 0 | Z69: 0 | AA69: 0 | AC69: 0 | AD69: 0
A70: 1704 | C70: Secretary II - 200 | D70: 31482 | E70: 9914 | F70: 19620 | G70: 41396 | H70: =G70*(1+'Start Here - Data Entry '!$G$13) -> 41396 | I70: =H70*(1+'Start Here - Data Entry '!$H$13) -> 41396 | J70: =I70*(1+'Start Here - Data Entry '!$I$13) -> 41396 | K70: =J70*(1+'Start Here - Data Entry '!$J$13) -> 41396 | L70: =K70*(1+'Start Here - Data Entry '!$K$13) -> 41396 | N70: 0 | O70: 0 | Q70: 0 | R70: 0 | T70: 0 | U70: 0 | W70: 0 | X70: 0 | Z70: 0 | AA70: 0 | AC70: 0 | AD70: 0
A71: 1613 | C71: Secretary I - 220 | D71: 31123 | E71: 9845 | F71: 19620 | G71: 40968 | H71: =G71*(1+'Start Here - Data Entry '!$G$13) -> 40968 | I71: =H71*(1+'Start Here - Data Entry '!$H$13) -> 40968 | J71: =I71*(1+'Start Here - Data Entry '!$I$13) -> 40968 | K71: =J71*(1+'Start Here - Data Entry '!$J$13) -> 40968 | L71: =K71*(1+'Start Here - Data Entry '!$K$13) -> 40968 | N71: 0 | O71: 0 | Q71: 0 | R71: 0 | T71: 0 | U71: 0 | W71: 0 | X71: 0 | Z71: 0 | AA71: 0 | AC71: 0 | AD71: 0
C72: Secretary II - 220 | D72: 34574 | E72: 10507 | F72: 19620 | G72: 45081 | H72: =G72*(1+'Start Here - Data Entry '!$G$13) -> 45081 | I72: =H72*(1+'Start Here - Data Entry '!$H$13) -> 45081 | J72: =I72*(1+'Start Here - Data Entry '!$I$13) -> 45081 | K72: =J72*(1+'Start Here - Data Entry '!$J$13) -> 45081 | L72: =K72*(1+'Start Here - Data Entry '!$K$13) -> 45081 | N72: 0 | O72: 0 | Q72: 1 | R72: 45081 | T72: 1 | U72: 45081 | W72: 1 | X72: 45081 | Z72: 1 | AA72: 45081 | AC72: 1 | AD72: 45081
C73: CLERICAL STAFF TOTAL | F73: =SUM(F63:F72) -> 196200 | N73: =SUM(N63:N72) -> 0 | O73: =SUM(O63:O72) -> 0 | Q73: =SUM(Q63:Q72) -> 1 | R73: =SUM(R63:R72) -> 45081 | T73: =SUM(T63:T72) -> 1 | U73: =SUM(U63:U72) -> 45081 | W73: =SUM(W63:W72) -> 1 | X73: =SUM(X63:X72) -> 45081 | Z73: =SUM(Z63:Z72) -> 1 | AA73: =SUM(AA63:AA72) -> 45081 | AC73: =SUM(AC63:AC72) -> 1 | AD73: =SUM(AD63:AD72) -> 45081
C75: FULL TIME TOTAL | F75: =SUM(F63:F74) -> 392400 | N75: =N41+N52+N60+N73 -> 0 | O75: =O41+O52+O60+O73 -> 0 | Q75: =Q41+Q52+Q60+Q73 -> 12.7 | R75: =R41+R52+R60+R73 -> 787234 | T75: =T41+T52+T60+T73 -> 17.9 | U75: =U41+U52+U60+U73 -> 1077398.833 | W75: =W41+W52+W60+W73 -> 22.9 | X75: =X41+X52+X60+X73 -> 1394486.033 | Z75: =Z41+Z52+Z60+Z73 -> 26.9 | AA75: =AA41+AA52+AA60+AA73 -> 1610773.233 | AC75: =AC41+AC52+AC60+AC73 -> 26.9 | AD75: =AD41+AD52+AD60+AD73 -> 1610773.233
D86: Principal | G86: AP | J86: Business Mgr | N86: Office Manager
B87: 1 | C87: ES | D87: 7500-207 | E87: 91154 | F87: 20854 | G87: 7318-207 | H87: 72257 | I87: 17317 | J87: 7458-207 | K87: 63557 | L87: 15688 | N87: 7464-207 | O87: 43615 | P87: 11955
B88: 2 | C88: K8 | D88: 7500-223 | E88: 95776 | F88: 21719 | G88: 7318-212 | H88: 79876 | I88: 18743 | J88: 7458-223 | K88: 64840 | L88: 15928 | N88: 7464-223 | O88: 43207 | P88: 11878
B89: 3 | C89: MS | D89: 7500-233 | E89: 106563 | F89: 23739 | G89: 7318-235 | H89: 103862 | I89: 23233 | J89: 7458-233 | K89: 66095 | L89: 16163 | N89: 7464-233 | O89: 43941 | P89: 12016
B90: 4 | C90: 6-12 | D90: 7500-233 | E90: 106563 | F90: 23739 | G90: 7318-235 | H90: 103862 | I90: 23233 | J90: 7458-233 | K90: 66095 | L90: 16163 | N90: 7464-233 | O90: 43941 | P90: 12016
B91: 5 | C91: HS | D91: 7500-233 | E91: 106563 | F91: 23739 | G91: 7318-235 | H91: 103862 | I91: 23233 | J91: 7458-233 | K91: 66095 | L91: 16163 | N91: 7464-233 | O91: 43941 | P91: 12016

Sheet Step 4 - Non-Salary
A2: ='Start Here - Data Entry '!D3&" - NON-SALARY BUDGET" -> Legacy Options HS - NON-SALARY BUDGET | E2: Step 4 - Non-Salary Expenses
E3: Identify the necessary non-salary expenses for years 0-5
D4: - Enter in White Cells Only- | E4: Don't forget about costs that may be required based on the funding
E5: source (mill levy textbooks, ECE supplies, etc.) Review the uses of
E6: funding in Step 2, or the Budget Guidance Manual for more information.
E7: 2015-16 | F7: 2016-17 | G7: 2017-18 | H7: 2018-19 | I7: 2019-20
A8: DESCRIPTION | D8: YEAR 0 | E8: YEAR 1 | F8: YEAR 2 | G8: YEAR 3 | H8: YEAR 4 | I8: YEAR 5
A9: Extra Duty Pay/Stipends (add 20% for benefits costs) | D9: 0 | E9: 5364 | F9: 6436.8 | G9: 7241.4 | H9: 7241.4 | I9: 7241.4
A10: Technology | D10: 0 | E10: 10000 | F10: 12000 | G10: 13500 | H10: 13500 | I10: 13500
A11: Professional Development | D11: 0 | E11: 0 | F11: 0 | G11: 0 | H11: 0 | I11: 0
A12: Books and Materials | D12: 0 | E12: 0 | F12: 0 | G12: 0 | H12: 0 | I12: 0
A13: General Instructional Supplies | D13: 0 | E13: =52278+1920 -> 54198 | F13: 65037.6 | G13: 73167.3 | H13: 73167.3 | I13: 73167.3
A14: Administrative (Main Office) Supplies | D14: 0 | E14: 0 | F14: 0 | G14: 0 | H14: 0 | I14: 0
A15: Consultants | D15: 0 | E15: 0 | F15: 0 | G15: 0 | H15: 0 | I15: 0
A16: Other Service Providers | D16: 0 | E16: 0 | F16: 0 | G16: 0 | H16: 0 | I16: 0
A17: Instructional Materials | D17: 0 | E17: 0 | F17: 0 | G17: 0 | H17: 0 | I17: 0
A18: Substitute Teachers ($150/day + 20% benefits costs) | D18: 0 | E18: 17877 | F18: 21452.4 | G18: 24133.95 | H18: 24133.95 | I18: 24133.95
A19: Arts Supplies | D19: 0 | E19: 750 | F19: 900 | G19: 1012.5 | H19: 1012.5 | I19: 1012.5
A20: Phys Ed Supplies & Materials | D20: 0 | E20: =750+2500 -> 3250 | F20: 3900 | G20: 4387.5 | H20: 4387.5 | I20: 4387.5
A21: Furniture | D21: 0 | E21: 0 | F21: 0 | G21: 0 | H21: 0 | I21: 0
A22: Copying | D22: 0 | E22: 10000 | F22: 12000 | G22: 13500 | H22: 13500 | I22: 13500
A23: Other Service Providers | D23: 0 | E23: =5000+7500+30000 -> 42500 | F23: 51000 | G23: 57375 | H23: 57375 | I23: 57375
A24: Field Trips | D24: 0 | E24: 0 | F24: 0 | G24: 0 | H24: 0 | I24: 0
A25: Travel & Registration | D25: 0 | E25: 5000 | F25: 6000 | G25: 6750 | H25: 6750 | I25: 6750
A26: Parent Involvement | D26: 0 | E26: =414+1000 -> 1414 | F26: 1696.8 | G26: 1908.9 | H26: 1908.9 | I26: 1908.9
D27: 0 | E27: 0 | F27: 0 | G27: 0 | H27: 0 | I27: 0
A28: NON-SALARY ACCOUNTS TOTAL | D28: =SUM(D9:D27) -> 0 | E28: 150353 | F28: 180423.6 | G28: 202976.55 | H28: 202976.55 | I28: 202976.55
D30: 0 | E30: 0 | F30: 0 | G30: 0 | H30: 0 | I30: 0
D31: 0 | E31: 0 | F31: 0 | G31: 0 | H31: 0 | I31: 0
D32: 0 | E32: 0 | F32: 0 | G32: 0 | H32: 0 | I32: 0
D33: 0 | E33: 0 | F33: 0 | G33: 0 | H33: 0 | I33: 0
D34: 0 | E34: 0 | F34: 0 | G34: 0 | H34: 0 | I34: 0
D35: 0 | E35: 0 | F35: 0 | G35: 0 | H35: 0 | I35: 0
D36: 0 | E36: 0 | F36: 0 | G36: 0 | H36: 0 | I36: 0
D37: 0 | E37: 0 | F37: 0 | G37: 0 | H37: 0 | I37: 0
D38: 0 | E38: 0 | F38: 0 | G38: 0 | H38: 0 | I38: 0
D39: 0 | E39: 0 | F39: 0 | G39: 0 | H39: 0 | I39: 0
D40: 0 | E40: 0 | F40: 0 | G40: 0 | H40: 0 | I40: 0
D41: 0 | E41: 0 | F41: 0 | G41: 0 | H41: 0 | I41: 0
D42: 0 | E42: 0 | F42: 0 | G42: 0 | H42: 0 | I42: 0
D43: 0 | E43: 0 | F43: 0 | G43: 0 | H43: 0 | I43: 0
A44: OTHER TOTAL | D44: =SUM(D30:D43) -> 0 | E44: 0 | F44: 0 | G44: 0 | H44: 0 | I44: 0
A46: Total Non-Salary Budget per Pupil at School - K-12 | D46: NA | E46: =IF(('Start Here - Data Entry '!G26-'Start Here - Data Entry '!G22)>0,'Step 4 - Non-Salary'!E28/('Start Here - Data Entry '!G26-'Start Here - Data Entry '!G22),"") -> 2505.883333 | F46: =IF(('Start Here - Data Entry '!H26-'Start Here - Data Entry '!H22)>0,'Step 4 - Non-Salary'!F28/('Start Here - Data Entry '!H26-'Start Here - Data Entry '!H22),"") -> 1503.53 | G46: =IF(('Start Here - Data Entry '!I26-'Start Here - Data Entry '!I22)>0,'Step 4 - Non-Salary'!G28/('Start Here - Data Entry '!I26-'Start Here - Data Entry '!I22),"") -> 1127.6475 | H46: =IF(('Start Here - Data Entry '!J26-'Start Here - Data Entry '!J22)>0,'Step 4 - Non-Salary'!H28/('Start Here - Data Entry '!J26-'Start Here - Data Entry '!J22),"") -> 845.735625 | I46: =IF(('Start Here - Data Entry '!K26-'Start Here - Data Entry '!K22)>0,'Step 4 - Non-Salary'!I28/('Start Here - Data Entry '!K26-'Start Here - Data Entry '!K22),"") -> 845.735625
A48: CAPITAL COSTS | D48: 0 | E48: 0 | F48: 0 | G48: 0 | H48: 0 | I48: 0
A50: NON-SALARY BUDGET TOTAL | D50: =D44+D28+D48 -> 0 | E50: 150353 | F50: 180423.6 | G50: 202976.55 | H50: 202976.55 | I50: 202976.55

Sheet Step 5 - Summary Review
A3: ='Start Here - Data Entry '!D3&" - BUDGET SUMMARY" -> Legacy Options HS - BUDGET SUMMARY | E3: Step 5 - Summary Review
E4: Review your budget vs. revenue
E5: "Budgetary Surplus/Shortfall" must balance to zero each year
A7: BUDGET SUMMARY
D8: 2015-16 | E8: 2016-17 | F8: 2017-18 | G8: 2018-19 | H8: 2019-20
A9: REVENUE | D9: YEAR 1 | E9: YEAR 2 | F9: YEAR 3 | G9: YEAR 4 | H9: YEAR 5
A10: SBB Revenue | D10: ='Step 2 - Review Revenue'!J64 -> 385846.906 | E10: ='Step 2 - Review Revenue'!K64 -> 700743.506 | F10: ='Step 2 - Review Revenue'!L64 -> 1017403.566 | G10: ='Step 2 - Review Revenue'!M64 -> 1362946.886 | H10: ='Step 2 - Review Revenue'!N64 -> 1362946.486
A11: Mill Levy Support - Intensive Pathway School Projection | D11: ='Step 2 - Review Revenue'!J9 -> 361902 | E11: ='Step 2 - Review Revenue'!K9 -> 417241 | F11: ='Step 2 - Review Revenue'!L9 -> 590221 | G11: ='Step 2 - Review Revenue'!M9 -> 460965 | H11: ='Step 2 - Review Revenue'!N9 -> 460965
A12: District Start - up Funding | D12: ='Step 2 - Review Revenue'!J10 -> 200000 | E12: ='Step 2 - Review Revenue'!K10 -> 150000 | F12: ='Step 2 - Review Revenue'!L10 -> 0 | G12: ='Step 2 - Review Revenue'!M10 -> 0 | H12: ='Step 2 - Review Revenue'!N10 -> 0
A13: TOTAL REVENUE | D13: ='Step 2 - Review Revenue'!J66 -> 947748.906 | E13: ='Step 2 - Review Revenue'!K66 -> 1267984.506 | F13: ='Step 2 - Review Revenue'!L66 -> 1607624.566 | G13: ='Step 2 - Review Revenue'!M66 -> 1823911.886 | H13: ='Step 2 - Review Revenue'!N66 -> 1823911.486
A15: DISTRIBUTIONS | D15: YEAR 1 | E15: YEAR 2 | F15: YEAR 3 | G15: YEAR 4 | H15: YEAR 5
A16: PART TIME & HOURLY STAFFING TOTAL | D16: ='Step 3 - Staffing Tool'!R23 -> 10162 | E16: ='Step 3 - Staffing Tool'!U23 -> 10162 | F16: ='Step 3 - Staffing Tool'!X23 -> 10162 | G16: ='Step 3 - Staffing Tool'!AA23 -> 10162 | H16: ='Step 3 - Staffing Tool'!AD23 -> 10162
A18: ADMINISTRATIVE FULL TIME STAFF | D18: ='Step 3 - Staffing Tool'!R60 -> 146165 | E18: ='Step 3 - Staffing Tool'!U60 -> 146165 | F18: ='Step 3 - Staffing Tool'!X60 -> 246965 | G18: ='Step 3 - Staffing Tool'!AA60 -> 246965 | H18: ='Step 3 - Staffing Tool'!AD60 -> 246965
A19: TEACHING FULL TIME STAFF | D19: ='Step 3 - Staffing Tool'!R41 -> 493686 | E19: ='Step 3 - Staffing Tool'!U41 -> 783850.833 | F19: ='Step 3 - Staffing Tool'!X41 -> 1000138.033 | G19: ='Step 3 - Staffing Tool'!AA41 -> 1216425.233 | H19: ='Step 3 - Staffing Tool'!AD41 -> 1216425.233
A20: PRO-TECH FULL TIME STAFF | D20: ='Step 3 - Staffing Tool'!R52 -> 102302 | E20: ='Step 3 - Staffing Tool'!U52 -> 102302 | F20: ='Step 3 - Staffing Tool'!X52 -> 102302 | G20: ='Step 3 - Staffing Tool'!AA52 -> 102302 | H20: ='Step 3 - Staffing Tool'!AD52 -> 102302
A21: CLERICAL FULL TIME STAFF | D21: ='Step 3 - Staffing Tool'!R73 -> 45081 | E21: ='Step 3 - Staffing Tool'!U73 -> 45081 | F21: ='Step 3 - Staffing Tool'!X73 -> 45081 | G21: ='Step 3 - Staffing Tool'!AA73 -> 45081 | H21: ='Step 3 - Staffing Tool'!AD73 -> 45081
A22: FULL TIME STAFFING TOTAL | D22: =SUM(D18:D21) -> 787234 | E22: 1077398.833 | F22: 1394486.033 | G22: 1610773.233 | H22: =SUM(H18:H21) -> 1610773.233
A24: NON-SALARY BUDGET TOTAL | D24: ='Step 4 - Non-Salary'!E50 -> 150353 | E24: ='Step 4 - Non-Salary'!F50 -> 180423.6 | F24: ='Step 4 - Non-Salary'!G50 -> 202976.55 | G24: ='Step 4 - Non-Salary'!H50 -> 202976.55 | H24: ='Step 4 - Non-Salary'!I50 -> 202976.55
A26: CAPITAL BUDGET TOTAL | D26: ='Step 4 - Non-Salary'!E48 -> 0 | E26: ='Step 4 - Non-Salary'!F48 -> 0 | F26: ='Step 4 - Non-Salary'!G48 -> 0 | G26: ='Step 4 - Non-Salary'!H48 -> 0 | H26: ='Step 4 - Non-Salary'!I48 -> 0
A28: DISTRIBUTED BUDGET TOTAL | D28: =D22+D16+D24+D26 -> 947749 | E28: 1267984.433 | F28: 1607624.583 | G28: 1823911.783 | H28: 1823911.783
A30: BUDGETARY SURPLUS/SHORTFALL (must balance to zero) | D30: =D13-D28 -> -0.09400000004 | E30: 0.07304000016 | F30: -0.01695999992 | G30: 0.1030399995 | H30: -0.2969600004
A32: PER PUPIL METRICS
A33: Estimated Per Student SBB Revenue - K-12 | D33: =IF(('Start Here - Data Entry '!G26-'Start Here - Data Entry '!G22)>0,(D10/('Start Here - Data Entry '!G26-'Start Here - Data Entry '!G22)),"") -> 6430.781767 | E33: =IF(('Start Here - Data Entry '!H26-'Start Here - Data Entry '!H22)>0,(E10/('Start Here - Data Entry '!H26-'Start Here - Data Entry '!H22)),"") -> 5839.529217 | F33: =IF(('Start Here - Data Entry '!I26-'Start Here - Data Entry '!I22)>0,(F10/('Start Here - Data Entry '!I26-'Start Here - Data Entry '!I22)),"") -> 5652.242033 | G33: =IF(('Start Here - Data Entry '!J26-'Start Here - Data Entry '!J22)>0,(G10/('Start Here - Data Entry '!J26-'Start Here - Data Entry '!J22)),"") -> 5678.945358 | H33: =IF(('Start Here - Data Entry '!K26-'Start Here - Data Entry '!K22)>0,(H10/('Start Here - Data Entry '!K26-'Start Here - Data Entry '!K22)),"") -> 5678.943692
A34: Estimated Total Cost Per Student - K-12 | D34: =IF(('Start Here - Data Entry '!G26-'Start Here - Data Entry '!G22)>0,D13/('Start Here - Data Entry '!G26-'Start Here - Data Entry '!G22),"") -> 15795.8151 | E34: =IF(('Start Here - Data Entry '!H26-'Start Here - Data Entry '!H22)>0,E13/('Start Here - Data Entry '!H26-'Start Here - Data Entry '!H22),"") -> 10566.53755 | F34: =IF(('Start Here - Data Entry '!I26-'Start Here - Data Entry '!I22)>0,F13/('Start Here - Data Entry '!I26-'Start Here - Data Entry '!I22),"") -> 8931.247589 | G34: =IF(('Start Here - Data Entry '!J26-'Start Here - Data Entry '!J22)>0,G13/('Start Here - Data Entry '!J26-'Start Here - Data Entry '!J22),"") -> 7599.632858 | H34: =IF(('Start Here - Data Entry '!K26-'Start Here - Data Entry '!K22)>0,H13/('Start Here - Data Entry '!K26-'Start Here - Data Entry '!K22),"") -> 7599.631192
A35: Total Instructional FTEs (includes mental health) | D35: ='Step 3 - Staffing Tool'!Q41 -> 8.2 | E35: ='Step 3 - Staffing Tool'!T41 -> 13.4 | F35: ='Step 3 - Staffing Tool'!W41 -> 17.4 | G35: ='Step 3 - Staffing Tool'!Z41 -> 21.4 | H35: ='Step 3 - Staffing Tool'!AC41 -> 21.4
A36: Total Students per FTE at school - K-12 | D36: =IF('Step 3 - Staffing Tool'!Q75>0,('Start Here - Data Entry '!G26-'Start Here - Data Entry '!G22)/D35,"") -> 7.317073171 | E36: =IF('Step 3 - Staffing Tool'!T75>0,('Start Here - Data Entry '!H26-'Start Here - Data Entry '!H22)/E35,"") -> 8.955223881 | F36: =IF('Step 3 - Staffing Tool'!W75>0,('Start Here - Data Entry '!I26-'Start Here - Data Entry '!I22)/F35,"") -> 10.34482759 | G36: =IF('Step 3 - Staffing Tool'!Z75>0,('Start Here - Data Entry '!J26-'Start Here - Data Entry '!J22)/G35,"") -> 11.21495327 | H36: =IF('Step 3 - Staffing Tool'!AC75>0,('Start Here - Data Entry '!K26-'Start Here - Data Entry '!K22)/H35,"") -> 11.21495327

Sheet NOTES
A1: Use this tab to take notes and further explain staffing and budget decisions, including
A2: options you might consider should you obtain additional funding
